{"text_format":"1","workbook":"xlsx","n_sheets":7,"sheets":["Accueil","Fiche Vierge","Données","Feuil-References","BD","Espion","Admin"],"not_rendered":{"charts":0,"images":26,"macros":1,"external_links":0,"defined_names":26,"comments":2,"pivot_tables":0},"unopened":[],"bounds":{"document_bytes":16777216,"sheet_cells":100000,"rows_first":2000,"rows_last":500,"rows_between":2000,"halvings":0,"cell_chars":16384,"cell_head_chars":4096},"cells_cut":0,"cells_raw":0,"read":"whole","date_system":"1900"}

{"sheet":"Accueil","index":0,"n_rows":3,"n_cols":12,"rows_kept":3,"cut":false,"hidden":false,"merged":[]}
[]
["","",null,null,null,null,null,null,null,"","",""]
["","",null,null,null,null,null,null,null,"","",""]

{"sheet":"Fiche Vierge","index":1,"n_rows":16,"n_cols":17,"rows_kept":16,"cut":false,"hidden":false,"merged":[[6,10,6,13],[6,14,6,17],[13,17,15,17],[14,12,14,13],[14,14,14,16],[15,12,15,13],[15,14,15,16],[12,12,12,13],[12,14,12,16],[13,2,15,11],[13,12,13,13],[13,14,13,16],[7,1,7,17],[8,1,8,7],[8,8,8,17],[9,0,16,0],[9,2,9,17],[10,1,16,1],[10,2,12,11],[10,12,10,13],[10,14,10,16],[10,17,12,17],[16,2,16,4],[16,5,16,10],[16,11,16,17],[11,12,11,13],[11,14,11,16],[0,0,0,3],[2,0,2,2],[2,3,2,10],[2,11,2,17],[3,0,8,0],[3,1,3,4],[3,13,3,17],[4,1,4,6],[3,5,3,12],[4,7,4,17],[5,1,5,9],[5,10,5,15],[5,16,5,17],[6,1,6,5],[6,6,6,9],[1,0,1,17]]}
[]
[]
[]
[null,"REDACTEUR DE LA FICHE",null,null,null,"Nom Prénom :",null,null,null,null,null,null,null,"Date :"]
[null,"Catégorie :",null,null,null,null,null,"Typologie :"]
[null,"Nom, Prénom de la victime / du demandeur :",null,null,null,null,null,null,null,null,"Date :",null,null,null,null,null,"Heure :"]
[null,"Département :",null,null,null,null,"Métier :",null,null,null,"Machine :",null,null,null,"Poste :"]
[]
[null,"Nom et prénom du correspondant HSE :"]
[null,"Action(s)\nimmédiate(s)","Actions:                                                                                                                                                                                                              Personne(s) / service en charge de l’action :"]
[null,null,"Mesures proposées pour éviter un autre accident :\n"]
[]
[null,null,null,null,null,null,null,null,null,null,null,null,null,null,"/         /"]
[null,null,"Si actions précédentes inefficaces nouvelles actions  :\n1._ _ _ _ _ _ _ _ _ _ _ _ _ _ _ _ _ _ _ _ _ _ _ _ _ _ _ _ _ _ _ _ _ _ _ _ _ _ _ _ _ _ _ _ _ _ _ _ _ _ _ _ _ _ _ _ _ _\n2._ _ _ _ _ _ _ _ _ _ _ _ _ _ _ _ _ _ _ _ _ _ _ _ _ _ _ _ _ _ _ _ _ _ _ _ _ _ _ _ _ _ _ _ _ _ _ _ _ _ _ _ _ _ _ _ _ _\n3._ _ _ _ _ _ _ _ _ _ _ _ _ _ _ _ _ _ _ _ _ _ _ _ _ _ _ _ _ _ _ _ _ _ _ _ _ _ _ _ _ _ _ _ _ _ _ _ _ _ _ _ _ _ _ _ _ _\n4._ _ _ _ _ _ _ _ _ _ _ _ _ _ _ _ _ _ _ _ _ _ _ _ _ _ _ _ _ _ _ _ _ _ _ _ _ _ _ _ _ _ _ _ _ _  _ _Date : _ _/ _ _/ _ _"]
[]
[null,null,null,null,null,null,null,null,null,null,null,null,null,null,"/         /"]

{"sheet":"Données","index":2,"n_rows":6637,"n_cols":223,"rows_kept":281,"cut":true,"hidden":false,"merged":[[0,4,0,5],[0,195,2,196],[9,203,9,204],[9,205,9,206],[9,207,9,208],[9,209,9,210],[9,211,9,212],[9,213,9,214],[9,215,9,216],[12,213,12,214],[12,215,12,216],[13,187,13,188],[13,189,13,190],[13,191,13,192],[6511,60,6511,61],[6513,60,6513,61],[6506,60,6509,60],[6510,60,6510,62],[6512,60,6512,62],[6511,63,6511,64],[6511,65,6511,66],[6511,67,6511,68],[6511,69,6511,70],[6511,71,6511,72],[6511,73,6511,74],[6511,75,6511,76],[6511,77,6511,78],[6511,79,6511,80],[6511,81,6511,82],[6511,83,6511,84],[6511,85,6511,86],[6511,87,6511,88],[6511,89,6511,90],[6511,91,6511,92],[3,195,3,196],[3,197,3,198],[3,199,3,200],[3,201,3,202],[3,203,3,204],[3,205,3,206],[3,207,3,208],[3,209,3,210],[3,211,3,212],[6501,201,6501,202],[6501,203,6501,204],[6501,205,6501,206],[6501,207,6501,208],[6501,209,6501,210],[6501,187,6501,188],[6501,189,6501,190],[6501,191,6501,192],[6501,193,6501,194],[6501,195,6501,196],[6501,197,6501,198],[6501,199,6501,200],[6,187,6,188],[6,189,6,190],[6,191,6,192],[6,193,6,194],[13,193,13,194],[13,195,13,196],[13,197,13,198],[13,199,13,200],[13,201,13,202],[6504,60,6504,61],[6505,60,6505,61],[6505,65,6505,66],[6505,67,6505,68],[6505,69,6505,70],[6505,71,6505,72],[6505,73,6505,74],[6505,75,6505,76],[6505,77,6505,78],[6505,79,6505,80],[6505,81,6505,82],[6505,83,6505,84],[6505,85,6505,86],[6505,87,6505,88],[6505,89,6505,90],[6505,91,6505,92],[6504,63,6504,64],[6504,65,6504,66],[6504,67,6504,68],[6504,69,6504,70],[6504,71,6504,72],[6504,73,6504,74],[6504,75,6504,76],[6504,77,6504,78],[6504,79,6504,80],[6504,81,6504,82],[6504,83,6504,84],[6504,85,6504,86],[6504,87,6504,88],[6504,89,6504,90],[6504,91,6504,92],[6503,63,6503,64],[6503,65,6503,66],[6503,67,6503,68],[6503,69,6503,70],[6503,71,6503,72],[6503,73,6503,74],[6503,75,6503,76],[6503,77,6503,78],[6503,79,6503,80],[6503,81,6503,82],[6503,83,6503,84],[6503,85,6503,86],[6503,87,6503,88],[6503,89,6503,90],[6503,91,6503,92],[6505,63,6505,64],[6622,187,6622,188],[6622,201,6629,201],[6623,187,6623,188],[6624,187,6624,188],[6625,187,6625,188],[6626,187,6626,188],[6627,187,6627,188],[6630,187,6630,188],[6630,201,6637,201],[6631,187,6631,188],[6632,187,6632,188],[6633,187,6633,188],[6634,187,6634,188],[6635,187,6635,188],[6510,186,6516,186],[6566,187,6566,188],[6566,201,6573,201],[6567,187,6567,188],[6568,187,6568,188],[6569,187,6569,188],[6570,187,6570,188],[6571,187,6571,188],[6574,187,6574,188],[6574,201,6581,201],[6575,187,6575,188],[6576,187,6576,188],[6577,187,6577,188],[6578,187,6578,188],[6579,187,6579,188],[6582,187,6582,188],[6582,201,6589,201],[6583,187,6583,188],[6584,187,6584,188],[6585,187,6585,188],[6586,187,6586,188],[6587,187,6587,188],[6590,187,6590,188],[6590,201,6597,201],[6591,187,6591,188],[6592,187,6592,188],[6593,187,6593,188],[6594,187,6594,188],[6595,187,6595,188],[6598,187,6598,188],[6598,201,6605,201],[6599,187,6599,188],[6600,187,6600,188],[6601,187,6601,188],[6602,187,6602,188],[6603,187,6603,188],[6542,187,6542,188],[6542,201,6549,201],[6543,187,6543,188],[6544,187,6544,188],[6545,187,6545,188],[6546,187,6546,188],[6547,187,6547,188],[6550,187,6550,188],[6550,201,6557,201],[6551,187,6551,188],[6552,187,6552,188],[6553,187,6553,188],[6554,187,6554,188],[6555,187,6555,188],[6558,187,6558,188],[6558,201,6565,201],[6559,187,6559,188],[6560,187,6560,188],[6561,187,6561,188],[6562,187,6562,188],[6563,187,6563,188],[6606,187,6606,188],[6606,201,6613,201],[6607,187,6607,188],[6608,187,6608,188],[6609,187,6609,188],[6610,187,6610,188],[6611,187,6611,188],[6614,187,6614,188],[6614,201,6621,201],[6615,187,6615,188],[6616,187,6616,188],[6617,187,6617,188],[6618,187,6618,188],[6619,187,6619,188],[6500,60,6500,61],[2,63,2,64],[2,89,2,90],[2,65,2,66],[2,67,2,68],[2,69,2,70],[2,71,2,72],[2,73,2,74],[2,75,2,76],[2,77,2,78],[2,79,2,80],[2,81,2,82],[2,83,2,84],[2,85,2,86],[2,87,2,88],[9,191,9,192],[9,193,9,194],[9,195,9,196],[9,197,9,198],[9,199,9,200],[9,201,9,202],[6513,63,6513,64],[6513,65,6513,66],[6513,67,6513,68],[6513,69,6513,70],[6513,71,6513,72],[6513,73,6513,74],[6513,75,6513,76],[6513,77,6513,78],[6513,79,6513,80],[6513,81,6513,82],[6513,83,6513,84],[6513,85,6513,86],[6513,87,6513,88],[6513,89,6513,90],[6513,91,6513,92],[6520,77,6520,78],[6521,77,6537,77],[6519,79,6520,79],[6519,80,6520,80],[6519,81,6520,81],[9,187,9,188],[9,189,9,190],[0,9,0,57],[2,28,3,28],[2,6,3,6],[2,8,3,8],[2,14,2,15],[2,16,2,17],[2,9,3,9],[2,10,3,10],[2,12,3,12],[2,13,3,13],[2,18,2,19],[2,20,3,20],[2,21,3,21],[2,23,3,23],[3,182,3,184],[3,134,10,134],[3,139,9,139],[10,139,10,140],[10,136,10,137],[3,167,3,169],[3,170,3,172],[3,173,3,175],[3,176,3,178],[3,179,3,181],[3,152,3,154],[3,155,3,157],[3,158,3,160],[3,161,3,163],[3,164,3,166],[3,140,3,142],[3,143,3,145],[3,146,3,148],[3,149,3,151],[3,110,10,110],[3,132,10,132],[2,24,3,24],[0,60,1,66],[0,67,1,68],[0,94,2,102],[0,105,2,106],[1,0,1,2],[2,0,3,0],[2,3,2,4],[2,34,2,37],[2,38,3,38],[2,33,3,33],[2,27,3,27],[2,29,3,29],[2,30,3,30],[2,31,3,31],[2,32,3,32],[1,5,1,7],[2,5,3,5],[2,7,3,7],[2,26,3,26],[2,11,3,11],[2,22,3,22],[2,52,3,52],[2,25,3,25],[2,53,2,56],[2,39,2,51],[3,60,3,61],[2,91,2,92],[2,57,3,57],[2,58,3,58],[2,2,3,2],[2,1,3,1],[4,215,4,216],[5,187,5,188],[5,189,5,190],[5,191,5,192],[5,193,5,194],[5,195,5,196],[5,197,5,198],[5,199,5,200],[5,201,5,202],[5,203,5,204],[5,205,5,206],[5,207,5,208],[5,209,5,210],[5,211,5,212],[5,213,5,214],[5,215,5,216],[3,213,3,214],[3,215,3,216],[4,187,4,188],[4,189,4,190],[4,191,4,192],[4,193,4,194],[4,195,4,196],[4,197,4,198],[4,199,4,200],[4,201,4,202],[4,203,4,204],[4,205,4,206],[4,207,4,208],[4,209,4,210],[4,211,4,212],[4,213,4,214],[3,187,3,188],[3,189,3,190],[3,191,3,192],[3,193,3,194],[0,186,2,193],[7,213,7,214],[7,215,7,216],[8,187,8,188],[8,189,8,190],[8,191,8,192],[8,193,8,194],[8,195,8,196],[8,197,8,198],[8,199,8,200],[8,201,8,202],[8,203,8,204],[8,205,8,206],[8,207,8,208],[8,209,8,210],[8,211,8,212],[8,213,8,214],[6,211,6,212],[6,213,6,214],[6,215,6,216],[7,187,7,188],[7,189,7,190],[7,191,7,192],[7,193,7,194],[7,195,7,196],[7,197,7,198],[7,199,7,200],[7,201,7,202],[7,203,7,204],[7,205,7,206],[7,207,7,208],[7,209,7,210],[7,211,7,212],[6,201,6,202],[6,203,6,204],[6,205,6,206],[6,207,6,208],[6,209,6,210],[6,195,6,196],[6,197,6,198],[6,199,6,200],[8,215,8,216],[11,211,11,212],[11,213,11,214],[11,215,11,216],[12,187,12,188],[12,189,12,190],[12,191,12,192],[12,193,12,194],[12,195,12,196],[12,197,12,198],[12,199,12,200],[12,201,12,202],[12,203,12,204],[12,205,12,206],[12,207,12,208],[12,209,12,210],[12,211,12,212],[10,209,10,210],[10,211,10,212],[10,213,10,214],[10,215,10,216],[11,187,11,188],[11,189,11,190],[11,191,11,192],[11,193,11,194],[11,195,11,196],[11,197,11,198],[11,199,11,200],[11,201,11,202],[11,203,11,204],[11,205,11,206],[11,207,11,208],[11,209,11,210],[10,199,10,200],[10,201,10,202],[10,203,10,204],[10,205,10,206],[10,207,10,208],[10,189,10,190],[10,191,10,192],[10,193,10,194],[10,195,10,196],[10,197,10,198],[10,187,10,188],[16,213,16,214],[16,215,16,216],[16,197,16,198],[16,199,16,200],[16,201,16,202],[16,203,16,204],[16,205,16,206],[16,187,16,188],[16,189,16,190],[16,191,16,192],[16,193,16,194],[16,195,16,196],[15,207,15,208],[15,209,15,210],[15,211,15,212],[15,213,15,214],[15,215,15,216],[15,197,15,198],[15,199,15,200],[15,201,15,202],[15,203,15,204],[15,205,15,206],[15,187,15,188],[15,189,15,190],[15,191,15,192],[15,193,15,194],[15,195,15,196],[13,215,13,216],[14,187,14,188],[14,189,14,190],[14,191,14,192],[14,193,14,194],[14,195,14,196],[14,197,14,198],[14,199,14,200],[14,201,14,202],[14,203,14,204],[14,205,14,206],[14,207,14,208],[14,209,14,210],[14,211,14,212],[14,213,14,214],[14,215,14,216],[13,213,13,214],[13,207,13,208],[13,209,13,210],[13,211,13,212],[16,207,16,208],[16,209,16,210],[16,211,16,212],[13,205,13,206],[13,203,13,204],[19,213,19,214],[19,215,19,216],[19,197,19,198],[19,199,19,200],[19,201,19,202],[19,203,19,204],[19,205,19,206],[19,187,19,188],[19,189,19,190],[19,191,19,192],[19,193,19,194],[19,195,19,196],[18,207,18,208],[18,209,18,210],[18,211,18,212],[18,213,18,214],[18,215,18,216],[18,197,18,198],[18,199,18,200],[18,201,18,202],[18,203,18,204],[18,205,18,206],[18,187,18,188],[18,189,18,190],[18,191,18,192],[18,193,18,194],[18,195,18,196],[17,207,17,208],[17,209,17,210],[17,211,17,212],[17,213,17,214],[17,215,17,216],[17,197,17,198],[17,199,17,200],[17,201,17,202],[17,203,17,204],[17,205,17,206],[17,187,17,188],[17,189,17,190],[17,191,17,192],[17,193,17,194],[17,195,17,196],[19,207,19,208],[19,209,19,210],[19,211,19,212],[22,213,22,214],[22,215,22,216],[22,197,22,198],[22,199,22,200],[22,201,22,202],[22,203,22,204],[22,205,22,206],[22,187,22,188],[22,189,22,190],[22,191,22,192],[22,193,22,194],[22,195,22,196],[21,207,21,208],[21,209,21,210],[21,211,21,212],[21,213,21,214],[21,215,21,216],[21,197,21,198],[21,199,21,200],[21,201,21,202],[21,203,21,204],[21,205,21,206],[21,187,21,188],[21,189,21,190],[21,191,21,192],[21,193,21,194],[21,195,21,196],[20,207,20,208],[20,209,20,210],[20,211,20,212],[20,213,20,214],[20,215,20,216],[20,197,20,198],[20,199,20,200],[20,201,20,202],[20,203,20,204],[20,205,20,206],[20,187,20,188],[20,189,20,190],[20,191,20,192],[20,193,20,194],[20,195,20,196],[22,207,22,208],[22,209,22,210],[22,211,22,212],[25,207,25,208],[25,209,25,210],[25,211,25,212],[25,213,25,214],[25,215,25,216],[25,197,25,198],[25,199,25,200],[25,201,25,202],[25,203,25,204],[25,205,25,206],[25,187,25,188],[25,189,25,190],[25,191,25,192],[25,193,25,194],[25,195,25,196],[24,207,24,208],[24,209,24,210],[24,211,24,212],[24,213,24,214],[24,215,24,216],[24,197,24,198],[24,199,24,200],[24,201,24,202],[24,203,24,204],[24,205,24,206],[24,187,24,188],[24,189,24,190],[24,191,24,192],[24,193,24,194],[24,195,24,196],[23,207,23,208],[23,209,23,210],[23,211,23,212],[23,213,23,214],[23,215,23,216],[23,197,23,198],[23,199,23,200],[23,201,23,202],[23,203,23,204],[23,205,23,206],[23,187,23,188],[23,189,23,190],[23,191,23,192],[23,193,23,194],[23,195,23,196],[28,207,28,208],[28,209,28,210],[28,211,28,212],[28,213,28,214],[28,215,28,216],[28,197,28,198],[28,199,28,200],[28,201,28,202],[28,203,28,204],[28,205,28,206],[28,187,28,188],[28,189,28,190],[28,191,28,192],[28,193,28,194],[28,195,28,196],[27,207,27,208],[27,209,27,210],[27,211,27,212],[27,213,27,214],[27,215,27,216],[27,197,27,198],[27,199,27,200],[27,201,27,202],[27,203,27,204],[27,205,27,206],[27,187,27,188],[27,189,27,190],[27,191,27,192],[27,193,27,194],[27,195,27,196],[26,207,26,208],[26,209,26,210],[26,211,26,212],[26,213,26,214],[26,215,26,216],[26,197,26,198],[26,199,26,200],[26,201,26,202],[26,203,26,204],[26,205,26,206],[26,187,26,188],[26,189,26,190],[26,191,26,192],[26,193,26,194],[26,195,26,196],[31,207,31,208],[31,209,31,210],[31,211,31,212],[31,213,31,214],[31,215,31,216],[31,197,31,198],[31,199,31,200],[31,201,31,202],[31,203,31,204],[31,205,31,206],[31,187,31,188],[31,189,31,190],[31,191,31,192],[31,193,31,194],[31,195,31,196],[30,207,30,208],[30,209,30,210],[30,211,30,212],[30,213,30,214],[30,215,30,216],[30,197,30,198],[30,199,30,200],[30,201,30,202],[30,203,30,204],[30,205,30,206],[30,187,30,188],[30,189,30,190],[30,191,30,192],[30,193,30,194],[30,195,30,196],[29,207,29,208],[29,209,29,210],[29,211,29,212],[29,213,29,214],[29,215,29,216],[29,197,29,198],[29,199,29,200],[29,201,29,202],[29,203,29,204],[29,205,29,206],[29,187,29,188],[29,189,29,190],[29,191,29,192],[29,193,29,194],[29,195,29,196],[34,207,34,208],[34,209,34,210],[34,211,34,212],[34,213,34,214],[34,215,34,216],[34,197,34,198],[34,199,34,200],[34,201,34,202],[34,203,34,204],[34,205,34,206],[34,187,34,188],[34,189,34,190],[34,191,34,192],[34,193,34,194],[34,195,34,196],[33,207,33,208],[33,209,33,210],[33,211,33,212],[33,213,33,214],[33,215,33,216],[33,197,33,198],[33,199,33,200],[33,201,33,202],[33,203,33,204],[33,205,33,206],[33,187,33,188],[33,189,33,190],[33,191,33,192],[33,193,33,194],[33,195,33,196],[32,207,32,208],[32,209,32,210],[32,211,32,212],[32,213,32,214],[32,215,32,216],[32,197,32,198],[32,199,32,200],[32,201,32,202],[32,203,32,204],[32,205,32,206],[32,187,32,188],[32,189,32,190],[32,191,32,192],[32,193,32,194],[32,195,32,196],[37,207,37,208],[37,209,37,210],[37,211,37,212],[37,213,37,214],[37,215,37,216],[37,197,37,198],[37,199,37,200],[37,201,37,202],[37,203,37,204],[37,205,37,206],[37,187,37,188],[37,189,37,190],[37,191,37,192],[37,193,37,194],[37,195,37,196],[36,207,36,208],[36,209,36,210],[36,211,36,212],[36,213,36,214],[36,215,36,216],[36,197,36,198],[36,199,36,200],[36,201,36,202],[36,203,36,204],[36,205,36,206],[36,187,36,188],[36,189,36,190],[36,191,36,192],[36,193,36,194],[36,195,36,196],[35,207,35,208],[35,209,35,210],[35,211,35,212],[35,213,35,214],[35,215,35,216],[35,197,35,198],[35,199,35,200],[35,201,35,202],[35,203,35,204],[35,205,35,206],[35,187,35,188],[35,189,35,190],[35,191,35,192],[35,193,35,194],[35,195,35,196],[40,207,40,208],[40,209,40,210],[40,211,40,212],[40,213,40,214],[40,215,40,216],[40,197,40,198],[40,199,40,200],[40,201,40,202],[40,203,40,204],[40,205,40,206],[40,187,40,188],[40,189,40,190],[40,191,40,192],[40,193,40,194],[40,195,40,196],[39,207,39,208],[39,209,39,210],[39,211,39,212],[39,213,39,214],[39,215,39,216],[39,197,39,198],[39,199,39,200],[39,201,39,202],[39,203,39,204],[39,205,39,206],[39,187,39,188],[39,189,39,190],[39,191,39,192],[39,193,39,194],[39,195,39,196],[38,207,38,208],[38,209,38,210],[38,211,38,212],[38,213,38,214],[38,215,38,216],[38,197,38,198],[38,199,38,200],[38,201,38,202],[38,203,38,204],[38,205,38,206],[38,187,38,188],[38,189,38,190],[38,191,38,192],[38,193,38,194],[38,195,38,196],[43,207,43,208],[43,209,43,210],[43,211,43,212],[43,213,43,214],[43,215,43,216],[43,197,43,198],[43,199,43,200],[43,201,43,202],[43,203,43,204],[43,205,43,206],[43,187,43,188],[43,189,43,190],[43,191,43,192],[43,193,43,194],[43,195,43,196],[42,207,42,208],[42,209,42,210],[42,211,42,212],[42,213,42,214],[42,215,42,216],[42,197,42,198],[42,199,42,200],[42,201,42,202],[42,203,42,204],[42,205,42,206],[42,187,42,188],[42,189,42,190],[42,191,42,192],[42,193,42,194],[42,195,42,196],[41,207,41,208],[41,209,41,210],[41,211,41,212],[41,213,41,214],[41,215,41,216],[41,197,41,198],[41,199,41,200],[41,201,41,202],[41,203,41,204],[41,205,41,206],[41,187,41,188],[41,189,41,190],[41,191,41,192],[41,193,41,194],[41,195,41,196],[46,207,46,208],[46,209,46,210],[46,211,46,212],[46,213,46,214],[46,215,46,216],[46,197,46,198],[46,199,46,200],[46,201,46,202],[46,203,46,204],[46,205,46,206],[46,187,46,188],[46,189,46,190],[46,191,46,192],[46,193,46,194],[46,195,46,196],[45,207,45,208],[45,209,45,210],[45,211,45,212],[45,213,45,214],[45,215,45,216],[45,197,45,198],[45,199,45,200],[45,201,45,202],[45,203,45,204],[45,205,45,206],[45,187,45,188],[45,189,45,190],[45,191,45,192],[45,193,45,194],[45,195,45,196],[44,207,44,208],[44,209,44,210],[44,211,44,212],[44,213,44,214],[44,215,44,216],[44,197,44,198],[44,199,44,200],[44,201,44,202],[44,203,44,204],[44,205,44,206],[44,187,44,188],[44,189,44,190],[44,191,44,192],[44,193,44,194],[44,195,44,196],[49,207,49,208],[49,209,49,210],[49,211,49,212],[49,213,49,214],[49,215,49,216],[49,197,49,198],[49,199,49,200],[49,201,49,202],[49,203,49,204],[49,205,49,206],[49,187,49,188],[49,189,49,190],[49,191,49,192],[49,193,49,194],[49,195,49,196],[48,207,48,208],[48,209,48,210],[48,211,48,212],[48,213,48,214],[48,215,48,216],[48,197,48,198],[48,199,48,200],[48,201,48,202],[48,203,48,204],[48,205,48,206],[48,187,48,188],[48,189,48,190],[48,191,48,192],[48,193,48,194],[48,195,48,196],[47,207,47,208],[47,209,47,210],[47,211,47,212],[47,213,47,214],[47,215,47,216],[47,197,47,198],[47,199,47,200],[47,201,47,202],[47,203,47,204],[47,205,47,206],[47,187,47,188],[47,189,47,190],[47,191,47,192],[47,193,47,194],[47,195,47,196],[52,207,52,208],[52,209,52,210],[52,211,52,212],[52,213,52,214],[52,215,52,216],[52,197,52,198],[52,199,52,200],[52,201,52,202],[52,203,52,204],[52,205,52,206],[52,187,52,188],[52,189,52,190],[52,191,52,192],[52,193,52,194],[52,195,52,196],[51,207,51,208],[51,209,51,210],[51,211,51,212],[51,213,51,214],[51,215,51,216],[51,197,51,198],[51,199,51,200],[51,201,51,202],[51,203,51,204],[51,205,51,206],[51,187,51,188]],"bounds":{"rows_first":125,"rows_last":31,"rows_between":125,"halvings":4},"merged_total":97743,"flags":["merged_cut"]}
[null,null,null,null,{"$f":"COUNTA(D5:D6499)","v":2},null,null,null,null,null,null,null,null,null,null,null,null,null,null,null,null,null,null,null,null,null,null,null,null,null,null,null,null,null,null,null,null,null,null,null,null,null,null,null,null,null,null,null,null,null,null,null,null,null,null,null,null,null,null,null,"Risk Level",null,null,null,null,null,null,{"$f":"BI6507","v":1},null,null,null,null,null,null,null,null,null,null,null,null,null,null,null,null,null,null,null,null,null,null,null,null,null,null,"Pyramide de Bird",null,null,null,null,null,null,null,null,null,null,{"$f":"DX11","v":1},null,null,null,null,null,null,null,null,null,null,null,null,null,null,null,null,null,null,null,null,null,null,null,null,null,null,null,null,null,null,null,null,null,null,null,null,null,null,null,null,null,null,null,null,null,null,null,null,null,null,null,null,null,null,null,null,null,null,null,null,null,null,null,null,null,null,null,null,null,null,null,null,null,null,null,null,null,null,null,null,"SUIVI DES FICHES",null,null,null,null,null,null,null,null,{"$f":"GE6509","v":1}]
[null,null,null,null,null,null,null,null,null,null,null,null,null,null,null,null,null,null,null,null,null,null,null,null,null,null,null,null,null,null,null,null,null,null,null,null,null,null,null,null,null,null,null,null,null,null,null,null,null,null,null,null,null,null,null,null,null,{"$f":"TODAY()","v":"2016-03-20"}]
["Année","Sites","Sécu / Env","N°",null,"Date\nJJ/MM/AA","enregistré sur","Rédacteur / Accidenté\nNom Prénom","Salarié West","Typologie","Recordable","Comet / arbre des causes","Heure","Poste","Arrêt(date)",null,"Jours d'arrêt",null,"CRAM (Eléments matériels)",null,"Nature","Siège","localisation","Soins internes et externes","Département","Fiche métier complétée","Métier","Activité","Missions","Lieux ","Risques","Situation(s) dangereuse(s) repérée(s) = Dans le Cadre de l'EvRP","Evènement dangereux / Faits accidentels","Maitrise du risque","Cotation",null,null,null,"rang","Plans d'actions",null,null,null,null,null,null,null,null,null,null,null,null,"Coût","Cotation Après travaux",null,null,null,"Efficacité","Action n°",null,null,null,null,"Services_supports",null,"Logistique",null,"PM",null,"Compression_MacNeil",null,"Compression_Wickert",null,"Découpe_B2","Découpe/B2","Injection",null,"Finition",null,"Outillage",null,"Maintenance_TN",null,"Nettoyage",null,"Laboratoire",null,"AQ",null,"Saint_Germain",null,"SSE"]
[null,null,null,"XXX / AAAA","Registre",null,null,null,null,null,null,null,null,null,"Début","fin","Ouvrés\n(Fr)","Avec WE\n(US)","n°","Désignation",null,null,null,null,null,null,null,null,null,null,null,null,null,null,"G","F","M","Note\n(GxF)/M",null,null,"Participants à l'enquête","Actions immédiates\n(si nécessaire)","Actions correctives\net /ou Préventives","Pilote","Année prév de réalisation",null,"Dpt en charge du suivi","Dpt en charge de la réalisation","Délai\nJJ/MM/AA","Commentaire","Date de clôture","Etat",null,"G","F","M","Note",null,null,null,"Risques Dommageables",null,"Etat des actions","Risque brut","Après travaux","Risque brut","Après travaux","Risque brut","Après travaux","Risque brut","Après travaux","Risque brut","Après travaux","Risque brut","Après travaux","Risque brut","Après travaux","Risque brut","Après travaux","Risque brut","Après travaux","Risque brut","Après travaux","Risque brut","Après travaux","Risque brut","Après travaux","Risque brut","Après travaux","Risque brut","Après travaux","Risque brut","Après travaux",null,"Services_supports","Logistique","PM","Compression_MacNeil","Compression_Wickert","Découpe","Injection","Finition","Outillage","Maintenance","Nettoyage","Laboratoire","AQ","Saint_Germain","SSE",null,2016,null,"Services_supports","Logistique","PM","Compression_MacNeil","Compression_Wickert","Découpe","Injection","Finition","Outillage","Maintenance_TN","Nettoyage","Laboratoire","AQ","Saint_Germain","SSE","total","soldées","non soldé","tx réalis.",null,{"$f":"SUM(DX5:DX10)","v":1},null,2016,null,null,null,null,2016,"Services Supports",null,null,"Logistique",null,null,"PM",null,null,"Mac Neil",null,null,"Wickert",null,null,"Découpe",null,null,"Injection",null,null,"Finition",null,null,"Outillage",null,null,"Maintenance",null,null,"Nettoyage",null,null,"Laboratoire",null,null,"AQ",null,null,"Ventes (StGer.)",null,null,"SSE",null,null,null,null,"Services_supports",null,"Logistique",null,"PM",null,"Compression_MacNeil",null,"Compression_Wickert",null,"Découpe_B2",null,"Injection",null,"Finition",null,"Outillage",null,"Maintenance_TN",null,"Nettoyage",null,"Laboratoire",null,"AQ",null,"Saint_Germain",null,"SSE"]
[2016,"LN","S","001_2016","001/16","2016-01-11","Janv",null,"W","SB.I","N","N","14h15","AM",null,null,{"$f":"IF(O5=\"\",\"\",IF(O5>0,NETWORKDAYS(O5,P5),NETWORKDAYS(O5,P5)))","v":""},{"$f":"IF(P5=\"\",\"\",IF(P5>0,P5-O5+1))","v":""},4,{"$f":"IF(S5=\"\",\"\",IF(S5>0,VLOOKUP(S5,#REF!,2,FALSE)))","v":{"$error":"#REF!"}},"Contusion","Memb. Sup","poignet gauche","Interne : Non\nExterne : Non","AQ","NA","Contrôle mélange",null,null,"escalier couloir visite coté bureau finition (4 marches)","Chute plain pied",null,"Mains chargées, a glissé dans l'escalier","NA",1,50,1,{"$f":"IF(AK5=\"\",\"\",IF(AK5>0,((AI5*AJ5)/AK5),\"\"))","v":50},{"$f":"IF(AL5=\"\",\"\",RANK(AL5,$AL:$AL))","v":1},{"$f":"COUNTA(AP5:AW5)","v":5},null,"pose de bandes anti-derapantes sur les marches\ninformation sensibilisation des operateurs par mail ","information sensibilisation des operateurs par mail (fait le 13/01)",null,null,null,"AQ","AQ","2016-01-13",null,"2016-01-13",{"$f":"IF(D5=\"\",\"\",IF(AW5=\"\",\"A Planifier\",IF(AY5<>\"\",\"Soldées\",IF(AW5<TODAY(),\"Retard\",\"En cours\"))))","v":"Soldées"},null,{"$f":"AI5","v":1},{"$f":"AJ5","v":50},10,{"$f":"IF(BD5=\"\",\"\",IF(BD5>0,((BB5*BC5)/BD5),\"\"))","v":5},{"$f":"IF(BE5=\"\",\"\",IF(BE5>=50,\"Action(s) inefficace(s)\",\"OK\"))","v":"OK"},1,null,{"$f":"IF(AL5=\"\",\"\",IF(AL5>=#REF!,\"x\",\"\"))","v":{"$error":"#REF!"}},{"$f":"CONCATENATE(Y5,BI5)","v":{"$error":"#REF!"}},{"$f":"CONCATENATE(Y5,AZ5)","v":"AQSoldées"},{"$f":"IF(Y5=\"Services_supports\",AL5,\"\")","v":""},{"$f":"IF(Y5=\"Services_supports\",BE5,\"\")","v":""},{"$f":"IF(Y5=\"Logistique\",AL5,\"\")","v":""},{"$f":"IF(Y5=\"Logistique\",BE5,\"\")","v":""},{"$f":"IF(Y5=\"PM\",AL5,\"\")","v":""},{"$f":"IF(Y5=\"PM\",BE5,\"\")","v":""},{"$f":"IF(Y5=\"Compression_MacNeil\",AL5,\"\")","v":""},{"$f":"IF(Y5=\"Compression_MacNeil\",BE5,\"\")","v":""},{"$f":"IF(Y5=\"Compression_Wickert\",AL5,\"\")","v":""},{"$f":"IF(Y5=\"Compression_Wickert\",BE5,\"\")","v":""},{"$f":"IF(Y5=\"Découpe_B2\",AL5,\"\")","v":""},{"$f":"IF(Y5=\"Découpe_B2\",BE5,\"\")","v":""},{"$f":"IF(Y5=\"Injection\",AL5,\"\")","v":""},{"$f":"IF(Y5=\"Injection\",BE5,\"\")","v":""},{"$f":"IF(Y5=\"Finition\",AL5,\"\")","v":""},{"$f":"IF(Y5=\"Finition\",BE5,\"\")","v":""},{"$f":"IF(Y5=\"Outillage\",AL5,\"\")","v":""},{"$f":"IF(Y5=\"Outillage\",BE5,\"\")","v":""},{"$f":"IF(Y5=\"Maintenance_TN\",AL5,\"\")","v":""},{"$f":"IF(Y5=\"Maintenance_TN\",BE5,\"\")","v":""},{"$f":"IF(Y5=\"Nettoyage\",AL5,\"\")","v":""},{"$f":"IF(Y5=\"Nettoyage\",BE5,\"\")","v":""},{"$f":"IF(Y5=\"Laboratoire\",AL5,\"\")","v":""},{"$f":"IF(Y5=\"Laboratoire\",BE5,\"\")","v":""},{"$f":"IF(Y5=\"AQ\",AL5,\"\")","v":50},{"$f":"IF(Y5=\"AQ\",BE5,\"\")","v":5},{"$f":"IF(Y5=\"Saint_Germain\",AL5,\"\")","v":""},{"$f":"IF(Y5=\"Saint_Germain\",BE5,\"\")","v":""},{"$f":"IF(Y5=\"SSE\",AL5,\"\")","v":""},{"$f":"IF(Y5=\"SSE\",BE5,\"\")","v":""},null,{"$f":"IF(Y5=\"Services_Supports\",CONCATENATE(A5,J5),\"\")","v":""},{"$f":"IF(Y5=\"Logistique\",CONCATENATE(A5,J5),\"\")","v":""},{"$f":"IF(Y5=\"PM\",CONCATENATE(A5,J5),\"\")","v":""},{"$f":"IF(Y5=\"Compression_Macneil\",CONCATENATE(A5,J5),\"\")","v":""},{"$f":"IF(Y5=\"Compression_Wickert\",CONCATENATE(A5,J5),\"\")","v":""},{"$f":"IF(Y5=\"Découpe_B2\",CONCATENATE(A5,J5),\"\")","v":""},{"$f":"IF(Y5=\"Injection\",CONCATENATE(A5,J5),\"\")","v":""},{"$f":"IF(Y5=\"Finition\",CONCATENATE(A5,J5),\"\")","v":""},{"$f":"IF(Y5=\"Outillage\",CONCATENATE(A5,J5),\"\")","v":""},{"$f":"IF(Y5=\"Maintenance_TN\",CONCATENATE(A5,J5),\"\")","v":""},{"$f":"IF(Y5=\"Nettoyage\",CONCATENATE(A5,J5),\"\")","v":""},{"$f":"IF(Y5=\"Laboratoire\",CONCATENATE(A5,J5),\"\")","v":""},{"$f":"IF(Y5=\"AQ\",CONCATENATE(A5,J5),\"\")","v":"2016SB.I"},{"$f":"IF(Y5=\"Saint_Germain\",CONCATENATE(A5,J5),\"\")","v":""},{"$f":"IF(Y5=\"SSE\",CONCATENATE(A5,J5),\"\")","v":""},{"$f":"CONCATENATE(J5,AZ5)","v":"SB.ISoldées"},null,"ATM",{"$f":"COUNTIF(CQ5:CQ6500,\"2016ATM\")","v":0},0,0,0,0,0,0,0,0,0,0,0,0,0,0,{"$f":"SUM(DI5:DW5)","v":0},{"$f":"COUNTIF(DF5:DF6500,\"ATMsoldées\")","v":0},{"$f":"ABS(DX5-DY5)","v":0},{"$f":"DY5/DX5","v":{"$error":"#DIV/0!"}},"ATM",null,null,null,"ATM",{"$f":"DX5","v":0},{"$f":"DX5*(-1)","v":0},null,null,"ATM",{"$f":"DI5","v":0},{"$f":"DI5*(-1)","v":0},"ATM",{"$f":"DJ5","v":0},{"$f":"DJ5*(-1)","v":0},"ATM",{"$f":"DK5","v":0},{"$f":"DK5*(-1)","v":0},"ATM",{"$f":"DL5","v":0},{"$f":"DL5*(-1)","v":0},"ATM",{"$f":"DM5","v":0},{"$f":"DM5*(-1)","v":0},"ATM",{"$f":"DN5","v":0},{"$f":"DN5*(-1)","v":0},"ATM",{"$f":"DO5","v":0},{"$f":"DO5*(-1)","v":0},"ATM",{"$f":"DP5","v":0},{"$f":"DP5*(-1)","v":0},"ATM",{"$f":"DQ5","v":0},{"$f":"DQ5*(-1)","v":0},"ATM",{"$f":"DR5","v":0},{"$f":"DR5*(-1)","v":0},"ATM",{"$f":"DS5","v":0},{"$f":"DS5*(-1)","v":0},"ATM",{"$f":"DT5","v":0},{"$f":"DT5*(-1)","v":0},"ATM",{"$f":"DU5","v":0},{"$f":"DU5*(-1)","v":0},"ATM",{"$f":"DV5","v":0},{"$f":"DV5*(-1)","v":0},"ATM",{"$f":"DW5","v":0},{"$f":"DW5*(-1)","v":0},null,{"$f":"CONCATENATE(Y5,AZ5)","v":"AQSoldées"},{"$f":"IF(Y5=\"Services_Supports\",GE5,\"\")","v":""},null,{"$f":"IF(Y5=\"Logistique\",GE5,\"\")","v":""},null,{"$f":"IF(Y5=\"PM\",GE5,\"\")","v":""},null,{"$f":"IF(Y5=\"Compression_MacNeil\",GE5,\"\")","v":""},null,{"$f":"IF(Y5=\"Compression_Wickert\",GE5,\"\")","v":""},null,{"$f":"IF(Y5=\"Découpe_B2\",GE5,\"\")","v":""},null,{"$f":"IF(Y5=\"Injection\",GE5,\"\")","v":""},null,{"$f":"IF(Y5=\"Finition\",GE5,\"\")","v":""},null,{"$f":"IF(Y5=\"Outillage\",GE5,\"\")","v":""},null,{"$f":"IF(Y5=\"Maintenance_TN\",GE5,\"\")","v":""},null,{"$f":"IF(Y5=\"Nettoyage\",GE5,\"\")","v":""},null,{"$f":"IF(Y5=\"Laboratoire\",GE5,\"\")","v":""},null,{"$f":"IF(Y5=\"AQ\",GE5,\"\")","v":"AQSoldées"},null,{"$f":"IF(Y5=\"Saint_Germain\",GE5,\"\")","v":""},null,{"$f":"IF(Y5=\"SSE\",GE5,\"\")","v":""}]
[2016,"LN","SÉCURITÉ","002_2016",null,"20/03/2016",null,"tesy",null,"ATAA",null,"","18:04:07",null,null,null,null,null,null,null,null,null,null,null,null,null,"",null,null,null,null,null,"",null,null,null,null,null,null,null,null,"","",null,null,null,null,null,null,null,null,null,null,null,null,null,null,"",2,null,{"$f":"IF(AL6=\"\",\"\",IF(AL6>=#REF!,\"x\",\"\"))","v":""},"","",{"$f":"IF(Y6=\"Services_supports\",AL6,\"\")","v":""},{"$f":"IF(Y6=\"Services_supports\",BE6,\"\")","v":""},{"$f":"IF(Y6=\"Logistique\",AL6,\"\")","v":""},{"$f":"IF(Y6=\"Logistique\",BE6,\"\")","v":""},{"$f":"IF(Y6=\"PM\",AL6,\"\")","v":""},{"$f":"IF(Y6=\"PM\",BE6,\"\")","v":""},{"$f":"IF(Y6=\"Compression_MacNeil\",AL6,\"\")","v":""},{"$f":"IF(Y6=\"Compression_MacNeil\",BE6,\"\")","v":""},{"$f":"IF(Y6=\"Compression_Wickert\",AL6,\"\")","v":""},{"$f":"IF(Y6=\"Compression_Wickert\",BE6,\"\")","v":""},{"$f":"IF(Y6=\"Découpe_B2\",AL6,\"\")","v":""},{"$f":"IF(Y6=\"Découpe_B2\",BE6,\"\")","v":""},{"$f":"IF(Y6=\"Injection\",AL6,\"\")","v":""},{"$f":"IF(Y6=\"Injection\",BE6,\"\")","v":""},{"$f":"IF(Y6=\"Finition\",AL6,\"\")","v":""},{"$f":"IF(Y6=\"Finition\",BE6,\"\")","v":""},{"$f":"IF(Y6=\"Outillage\",AL6,\"\")","v":""},{"$f":"IF(Y6=\"Outillage\",BE6,\"\")","v":""},{"$f":"IF(Y6=\"Maintenance_TN\",AL6,\"\")","v":""},{"$f":"IF(Y6=\"Maintenance_TN\",BE6,\"\")","v":""},{"$f":"IF(Y6=\"Nettoyage\",AL6,\"\")","v":""},{"$f":"IF(Y6=\"Nettoyage\",BE6,\"\")","v":""},{"$f":"IF(Y6=\"Laboratoire\",AL6,\"\")","v":""},{"$f":"IF(Y6=\"Laboratoire\",BE6,\"\")","v":""},{"$f":"IF(Y6=\"AQ\",AL6,\"\")","v":""},{"$f":"IF(Y6=\"AQ\",BE6,\"\")","v":""},{"$f":"IF(Y6=\"Saint_Germain\",AL6,\"\")","v":""},{"$f":"IF(Y6=\"Saint_Germain\",BE6,\"\")","v":""},{"$f":"IF(Y6=\"SSE\",AL6,\"\")","v":""},{"$f":"IF(Y6=\"SSE\",BE6,\"\")","v":""},null,{"$f":"IF(Y6=\"Services_Supports\",CONCATENATE(A6,J6),\"\")","v":""},{"$f":"IF(Y6=\"Logistique\",CONCATENATE(A6,J6),\"\")","v":""},{"$f":"IF(Y6=\"PM\",CONCATENATE(A6,J6),\"\")","v":""},{"$f":"IF(Y6=\"Compression_Macneil\",CONCATENATE(A6,J6),\"\")","v":""},{"$f":"IF(Y6=\"Compression_Wickert\",CONCATENATE(A6,J6),\"\")","v":""},{"$f":"IF(Y6=\"Découpe_B2\",CONCATENATE(A6,J6),\"\")","v":""},{"$f":"IF(Y6=\"Injection\",CONCATENATE(A6,J6),\"\")","v":""},{"$f":"IF(Y6=\"Finition\",CONCATENATE(A6,J6),\"\")","v":""},{"$f":"IF(Y6=\"Outillage\",CONCATENATE(A6,J6),\"\")","v":""},{"$f":"IF(Y6=\"Maintenance_TN\",CONCATENATE(A6,J6),\"\")","v":""},{"$f":"IF(Y6=\"Nettoyage\",CONCATENATE(A6,J6),\"\")","v":""},{"$f":"IF(Y6=\"Laboratoire\",CONCATENATE(A6,J6),\"\")","v":""},{"$f":"IF(Y6=\"AQ\",CONCATENATE(A6,J6),\"\")","v":""},{"$f":"IF(Y6=\"Saint_Germain\",CONCATENATE(A6,J6),\"\")","v":""},{"$f":"IF(Y6=\"SSE\",CONCATENATE(A6,J6),\"\")","v":""},"ATAA",null,"ATAA",{"$f":"COUNTIF(CQ5:CQ6500,\"2016ATAA\")","v":0},0,0,0,0,0,0,0,0,0,0,0,0,0,0,0,{"$f":"COUNTIF(DF5:DF6500,\"ATAAsoldées\")","v":0},0,{"$error":"#DIV/0!"},"ATAA",null,null,null,"ATAA",0,0,null,null,"ATAA",0,0,"ATAA",0,0,"ATAA",0,0,"ATAA",0,0,"ATAA",0,0,"ATAA",0,0,"ATAA",0,0,"ATAA",0,0,"ATAA",0,0,"ATAA",0,0,"ATAA",0,0,"ATAA",0,0,"ATAA",0,0,"ATAA",0,0,"ATAA",0,0,null,"",{"$f":"IF(Y6=\"Services_Supports\",GE6,\"\")","v":""},null,{"$f":"IF(Y6=\"Logistique\",GE6,\"\")","v":""},null,{"$f":"IF(Y6=\"PM\",GE6,\"\")","v":""},null,{"$f":"IF(Y6=\"Compression_MacNeil\",GE6,\"\")","v":""},null,{"$f":"IF(Y6=\"Compression_Wickert\",GE6,\"\")","v":""},null,{"$f":"IF(Y6=\"Découpe_B2\",GE6,\"\")","v":""},null,{"$f":"IF(Y6=\"Injection\",GE6,\"\")","v":""},null,{"$f":"IF(Y6=\"Finition\",GE6,\"\")","v":""},null,{"$f":"IF(Y6=\"Outillage\",GE6,\"\")","v":""},null,{"$f":"IF(Y6=\"Maintenance_TN\",GE6,\"\")","v":""},null,{"$f":"IF(Y6=\"Nettoyage\",GE6,\"\")","v":""},null,{"$f":"IF(Y6=\"Laboratoire\",GE6,\"\")","v":""},null,{"$f":"IF(Y6=\"AQ\",GE6,\"\")","v":""},null,{"$f":"IF(Y6=\"Saint_Germain\",GE6,\"\")","v":""},null,{"$f":"IF(Y6=\"SSE\",GE6,\"\")","v":""}]
[null,null,null,null,null,null,null,null,null,null,null,null,null,null,null,null,null,null,null,null,null,null,null,null,null,null,"",null,null,null,null,null,"",null,null,null,null,null,null,null,null,"","",null,null,null,null,null,null,null,null,null,null,null,null,null,null,"",3,null,{"$f":"IF(AL7=\"\",\"\",IF(AL7>=#REF!,\"x\",\"\"))","v":""},"","","","","","","","","","","","","","","","","","","","","","","","","","","","","","","","",null,"","","","","","","","","","","","","","","","",null,"ATSA",{"$f":"COUNTIF(CQ5:CQ6500,\"2016ATSA\")","v":0},0,0,0,0,0,0,0,0,0,0,0,0,0,0,0,{"$f":"COUNTIF(DF5:DF6500,\"ATSAsoldées\")","v":0},0,{"$error":"#DIV/0!"},"ATSA",null,null,null,"ATSA",0,0,null,null,"ATSA",0,0,"ATSA",0,0,"ATSA",0,0,"ATSA",0,0,"ATSA",0,0,"ATSA",0,0,"ATSA",0,0,"ATSA",0,0,"ATSA",0,0,"ATSA",0,0,"ATSA",0,0,"ATSA",0,0,"ATSA",0,0,"ATSA",0,0,"ATSA",0,0,null,"","",null,"",null,"",null,"",null,"",null,"",null,"",null,"",null,"",null,"",null,"",null,"",null,"",null,"",null,""]
[null,null,null,null,null,null,null,null,null,null,null,null,null,null,null,null,null,null,null,null,null,null,null,null,null,null,"",null,null,null,null,null,"",null,null,null,null,null,null,null,null,"","",null,null,null,null,null,null,null,null,null,null,null,null,null,null,"",4,null,{"$f":"IF(AL8=\"\",\"\",IF(AL8>=#REF!,\"x\",\"\"))","v":""},"","","","","","","","","","","","","","","","","","","","","","","","","","","","","","","","",null,"","","","","","","","","","","","","","","","",null,"SB.I",{"$f":"COUNTIF(CQ5:CQ6500,\"2016SB.I\")","v":0},0,0,0,0,0,0,0,0,0,0,0,1,0,0,1,{"$f":"COUNTIF(DF5:DF6500,\"SB.Isoldées\")","v":1},0,1,"SB.I",null,null,null,"SB.I",1,-1,null,null,"SB.I",0,0,"SB.I",0,0,"SB.I",0,0,"SB.I",0,0,"SB.I",0,0,"SB.I",0,0,"SB.I",0,0,"SB.I",0,0,"SB.I",0,0,"SB.I",0,0,"SB.I",0,0,"SB.I",0,0,"SB.I",1,-1,"SB.I",0,0,"SB.I",0,0,null,"","",null,"",null,"",null,"",null,"",null,"",null,"",null,"",null,"",null,"",null,"",null,"",null,"",null,"",null,""]
[null,null,null,null,null,null,null,null,null,null,null,null,null,null,null,null,null,null,null,null,null,null,"",null,null,null,"",null,null,null,null,null,"",null,null,null,null,null,null,null,null,"","",null,null,null,null,null,null,null,null,null,null,null,null,null,null,"",5,null,{"$f":"IF(AL9=\"\",\"\",IF(AL9>=#REF!,\"x\",\"\"))","v":""},"","","","","","","","","","","","","","","","","","","","","","","","","","","","","","","","",null,"","","","","","","","","","","","","","","","",null,"PA",{"$f":"COUNTIF(CQ5:CQ6500,\"2016PA\")","v":0},0,0,0,0,0,0,0,0,0,0,0,0,0,0,0,{"$f":"COUNTIF(DF5:DF6500,\"PAsoldées\")","v":0},0,{"$error":"#DIV/0!"},"PA",null,null,null,"PA",0,0,null,null,"PA",0,0,"PA",0,0,"PA",0,0,"PA",0,0,"PA",0,0,"PA",0,0,"PA",0,0,"PA",0,0,"PA",0,0,"PA",0,0,"PA",0,0,"PA",0,0,"PA",0,0,"PA",0,0,"PA",0,0,null,"","",null,"",null,"",null,"",null,"",null,"",null,"",null,"",null,"",null,"",null,"",null,"",null,"",null,"",null,""]
[null,null,null,null,null,null,null,null,null,null,null,null,null,null,null,null,null,null,null,null,null,null,"",null,null,null,"",null,null,null,null,null,"",null,null,null,null,null,null,null,null,"","",null,null,null,null,null,null,null,null,null,null,null,null,null,null,"",6,null,{"$f":"IF(AL10=\"\",\"\",IF(AL10>=#REF!,\"x\",\"\"))","v":""},"","","","","","","","","","","","","","","","","","","","","","","","","","","","","","","","",null,"","","","","","","","","","","","","","","","",null,"RP",{"$f":"COUNTIF(CQ5:CQ6500,\"2016RP\")","v":0},0,0,0,0,0,0,0,0,0,0,0,0,0,0,0,{"$f":"COUNTIF(DF5:DF6500,\"RPsoldées\")","v":0},0,{"$error":"#DIV/0!"},"RP",null,null,null,"RP",0,0,null,null,"RP",0,0,"RP",0,0,"RP",0,0,"RP",0,0,"RP",0,0,"RP",0,0,"RP",0,0,"RP",0,0,"RP",0,0,"RP",0,0,"RP",0,0,"RP",0,0,"RP",0,0,"RP",0,0,"RP",0,0,null,"","",null,"",null,"",null,"",null,"",null,"",null,"",null,"",null,"",null,"",null,"",null,"",null,"",null,"",null,""]
[null,null,null,null,null,null,null,null,null,null,null,null,null,null,null,null,null,null,null,null,null,null,"",null,null,null,"",null,null,null,null,null,"",null,null,null,null,null,null,null,null,"","",null,null,null,null,null,null,null,null,null,null,null,null,null,"","",7,null,{"$f":"IF(AL11=\"\",\"\",IF(AL11>=#REF!,\"x\",\"\"))","v":""},"","","","","","","","","","","","","","","","","","","","","","","","","","","","","","","","",null,"","","","","","","","","","","","","","","","",null,null,{"$f":"SUM(DI5:DI10)","v":0},{"$f":"SUM(DJ5:DJ10)","v":0},0,0,0,0,0,0,0,0,0,0,1,0,0,{"$f":"SUM(DX5:DX10)","v":1},{"$f":"SUM(DY5:DY10)","v":1},{"$f":"SUM(DZ5:DZ10)","v":0},1,{"$f":"DX11=(DY11+DZ11)","v":true},null,null,null,null,{"$f":"SUM(EG5:EG10)","v":1},null,null,{"$f":"SUM(EL11:GC11)","v":1},null,{"$f":"SUM(EL5:EL10)","v":0},null,null,{"$f":"SUM(EO5:EO10)","v":0},null,null,{"$f":"SUM(ER5:ER10)","v":0},null,null,{"$f":"SUM(EU5:EU10)","v":0},null,null,{"$f":"SUM(EX5:EX10)","v":0},null,null,{"$f":"SUM(FA5:FA10)","v":0},null,null,{"$f":"SUM(FD5:FD10)","v":0},null,null,{"$f":"SUM(FG5:FG10)","v":0},null,null,{"$f":"SUM(FJ5:FJ10)","v":0},null,null,{"$f":"SUM(FM5:FM10)","v":0},null,null,{"$f":"SUM(FP5:FP10)","v":0},null,null,{"$f":"SUM(FS5:FS10)","v":0},null,null,{"$f":"SUM(FV5:FV10)","v":1},null,null,{"$f":"SUM(FY5:FY10)","v":0},null,null,{"$f":"SUM(GB5:GB10)","v":0},null,null,"","",null,"",null,"",null,"",null,"",null,"",null,"",null,"",null,"",null,"",null,"",null,"",null,"",null,"",null,""]
[null,null,null,null,null,null,null,null,null,null,null,null,null,null,null,null,null,null,null,null,null,null,"",null,null,null,"",null,null,null,null,null,"",null,null,null,null,null,null,null,null,"","",null,null,null,null,null,null,null,null,null,null,null,null,null,"","",8,null,{"$f":"IF(AL12=\"\",\"\",IF(AL12>=#REF!,\"x\",\"\"))","v":""},"","","","","","","","","","","","","","","","","","","","","","","","","","","","","","","","",null,"","","","","","","","","","","","","","","","",null,null,null,null,null,null,null,null,null,null,null,null,null,null,null,null,null,null,null,null,null,null,null,null,null,null,null,null,null,null,null,null,null,null,null,null,null,null,null,null,null,null,null,null,null,null,null,null,null,null,null,null,null,null,null,null,null,null,null,null,null,null,null,null,null,null,null,null,null,null,null,null,null,null,null,null,"","",null,"",null,"",null,"",null,"",null,"",null,"",null,"",null,"",null,"",null,"",null,"",null,"",null,"",null,""]
[null,null,null,null,null,null,null,null,null,null,null,null,null,null,null,null,null,null,null,null,null,null,"",null,null,null,"",null,null,null,null,null,"",null,null,null,null,null,null,null,null,"","",null,null,null,null,null,null,null,null,null,null,null,null,null,"","",9,null,{"$f":"IF(AL13=\"\",\"\",IF(AL13>=#REF!,\"x\",\"\"))","v":""},"","","","","","","","","","","","","","","","","","","","","","","","","","","","","","","","",null,"","","","","","","","","","","","","","","","",null,null,null,null,null,null,null,null,null,null,null,null,null,null,null,null,null,null,null,null,null,null,null,null,null,null,null,null,null,null,null,null,null,null,null,null,null,null,null,null,null,null,null,null,null,null,null,null,null,null,null,null,null,null,null,null,null,null,null,null,null,null,null,null,null,null,null,null,null,null,null,null,null,null,null,null,"","",null,"",null,"",null,"",null,"",null,"",null,"",null,"",null,"",null,"",null,"",null,"",null,"",null,"",null,""]
[null,null,null,null,null,null,null,null,null,null,null,null,null,null,null,null,null,null,null,null,null,null,"",null,null,null,"",null,null,null,null,null,"",null,null,null,null,null,null,null,null,"","",null,null,null,null,null,null,null,null,null,null,null,null,null,"","",10,null,{"$f":"IF(AL14=\"\",\"\",IF(AL14>=#REF!,\"x\",\"\"))","v":""},"","","","","","","","","","","","","","","","","","","","","","","","","","","","","","","","",null,"","","","","","","","","","","","","","","","",null,null,null,null,null,null,null,null,null,null,null,null,null,null,null,null,null,null,null,null,null,null,null,null,null,null,null,null,null,null,null,null,null,null,null,null,null,null,null,null,null,null,null,null,null,null,null,null,null,null,null,null,null,null,null,null,null,null,null,null,null,null,null,null,null,null,null,null,null,null,null,null,null,null,null,null,"","",null,"",null,"",null,"",null,"",null,"",null,"",null,"",null,"",null,"",null,"",null,"",null,"",null,"",null,""]
[null,null,null,null,null,null,null,null,null,null,null,null,null,null,null,null,null,null,null,null,null,null,"",null,null,null,"",null,null,null,null,null,"",null,null,null,null,null,null,null,null,"","",null,null,null,null,null,null,null,null,null,null,null,null,null,"","",11,null,{"$f":"IF(AL15=\"\",\"\",IF(AL15>=#REF!,\"x\",\"\"))","v":""},"","","","","","","","","","","","","","","","","","","","","","","","","","","","","","","","",null,"","","","","","","","","","","","","","","","",null,null,null,null,null,null,null,null,null,null,null,null,null,null,null,null,null,null,null,null,null,null,null,null,null,null,null,null,null,null,null,null,null,null,null,null,null,null,null,null,null,null,null,null,null,null,null,null,null,null,null,null,null,null,null,null,null,null,null,null,null,null,null,null,null,null,null,null,null,null,null,null,null,null,null,null,"","",null,"",null,"",null,"",null,"",null,"",null,"",null,"",null,"",null,"",null,"",null,"",null,"",null,"",null,""]
[null,null,null,null,null,null,null,null,null,null,null,null,null,"",null,null,null,null,null,null,null,null,"",null,null,null,"",null,null,null,null,null,"",null,null,null,null,null,null,null,null,"","",null,null,null,null,null,null,null,null,null,null,null,null,null,"","",12,null,{"$f":"IF(AL16=\"\",\"\",IF(AL16>=#REF!,\"x\",\"\"))","v":""},"","","","","","","","","","","","","","","","","","","","","","","","","","","","","","","","",null,"","","","","","","","","","","","","","","","",null,null,null,null,null,null,null,null,null,null,null,null,null,null,null,null,null,null,null,null,null,null,null,null,null,null,null,null,null,null,null,null,null,null,null,null,null,null,null,null,null,null,null,null,null,null,null,null,null,null,null,null,null,null,null,null,null,null,null,null,null,null,null,null,null,null,null,null,null,null,null,null,null,null,null,null,"","",null,"",null,"",null,"",null,"",null,"",null,"",null,"",null,"",null,"",null,"",null,"",null,"",null,"",null,""]
[null,null,null,null,null,null,null,null,null,null,null,null,null,"",null,null,null,null,null,null,null,null,"",null,null,null,"",null,null,null,null,null,"",null,null,null,null,null,null,null,null,"","",null,null,null,null,null,null,null,null,null,null,null,null,null,"","",13,null,{"$f":"IF(AL17=\"\",\"\",IF(AL17>=#REF!,\"x\",\"\"))","v":""},"","","","","","","","","","","","","","","","","","","","","","","","","","","","","","","","",null,"","","","","","","","","","","","","","","","",null,null,null,null,null,null,null,null,null,null,null,null,null,null,null,null,null,null,null,null,null,null,null,null,null,null,null,null,null,null,null,null,null,null,null,null,null,null,null,null,null,null,null,null,null,null,null,null,null,null,null,null,null,null,null,null,null,null,null,null,null,null,null,null,null,null,null,null,null,null,null,null,null,null,null,null,"","",null,"",null,"",null,"",null,"",null,"",null,"",null,"",null,"",null,"",null,"",null,"",null,"",null,"",null,""]
[null,null,null,null,null,null,null,null,null,null,null,null,null,"",null,null,null,null,null,null,null,null,"",null,null,null,"",null,null,null,null,null,"",null,null,null,null,null,null,null,null,"","",null,null,null,null,null,null,null,null,null,null,null,null,null,"","",14,null,{"$f":"IF(AL18=\"\",\"\",IF(AL18>=#REF!,\"x\",\"\"))","v":""},"","","","","","","","","","","","","","","","","","","","","","","","","","","","","","","","",null,"","","","","","","","","","","","","","","","",null,null,null,null,null,null,null,null,null,null,null,null,null,null,null,null,null,null,null,null,null,null,null,null,null,null,null,null,null,null,null,null,null,null,null,null,null,null,null,null,null,null,null,null,null,null,null,null,null,null,null,null,null,null,null,null,null,null,null,null,null,null,null,null,null,null,null,null,null,null,null,null,null,null,null,null,"","",null,"",null,"",null,"",null,"",null,"",null,"",null,"",null,"",null,"",null,"",null,"",null,"",null,"",null,""]
[null,null,null,null,null,null,null,null,null,null,null,null,null,"",null,null,null,null,null,null,null,null,"",null,null,null,"",null,null,null,null,null,"",null,null,null,null,null,null,null,null,"","",null,null,null,null,null,null,null,null,null,null,null,null,null,"","",15,null,{"$f":"IF(AL19=\"\",\"\",IF(AL19>=#REF!,\"x\",\"\"))","v":""},"","","","","","","","","","","","","","","","","","","","","","","","","","","","","","","","",null,"","","","","","","","","","","","","","","","",null,null,null,null,null,null,null,null,null,null,null,null,null,null,null,null,null,null,null,null,null,null,null,null,null,null,null,null,null,null,null,null,null,null,null,null,null,null,null,null,null,null,null,null,null,null,null,null,null,null,null,null,null,null,null,null,null,null,null,null,null,null,null,null,null,null,null,null,null,null,null,null,null,null,null,null,"","",null,"",null,"",null,"",null,"",null,"",null,"",null,"",null,"",null,"",null,"",null,"",null,"",null,"",null,""]
[null,null,null,null,null,null,null,null,null,null,null,null,null,"",null,null,null,null,null,null,null,null,"",null,null,null,"",null,null,null,null,null,"",null,null,null,null,null,null,null,null,"","",null,null,null,null,null,null,null,null,null,null,null,null,null,"","",16,null,{"$f":"IF(AL20=\"\",\"\",IF(AL20>=#REF!,\"x\",\"\"))","v":""},"","","","","","","","","","","","","","","","","","","","","","","","","","","","","","","","",null,"","","","","","","","","","","","","","","","",null,null,null,null,null,null,null,null,null,null,null,null,null,null,null,null,null,null,null,null,null,null,null,null,null,null,null,null,null,null,null,null,null,null,null,null,null,null,null,null,null,null,null,null,null,null,null,null,null,null,null,null,null,null,null,null,null,null,null,null,null,null,null,null,null,null,null,null,null,null,null,null,null,null,null,null,"","",null,"",null,"",null,"",null,"",null,"",null,"",null,"",null,"",null,"",null,"",null,"",null,"",null,"",null,""]
[null,null,null,null,null,null,null,null,null,null,null,null,null,"",null,null,null,null,null,null,null,null,"",null,null,null,"",null,null,null,null,null,"",null,null,null,null,null,null,null,null,"","",null,null,null,null,null,null,null,null,null,null,null,null,null,"","",17,null,{"$f":"IF(AL21=\"\",\"\",IF(AL21>=#REF!,\"x\",\"\"))","v":""},"","","","","","","","","","","","","","","","","","","","","","","","","","","","","","","","",null,"","","","","","","","","","","","","","","","",null,null,null,null,null,null,null,null,null,null,null,null,null,null,null,null,null,null,null,null,null,null,null,null,null,null,null,null,null,null,null,null,null,null,null,null,null,null,null,null,null,null,null,null,null,null,null,null,null,null,null,null,null,null,null,null,null,null,null,null,null,null,null,null,null,null,null,null,null,null,null,null,null,null,null,null,"","",null,"",null,"",null,"",null,"",null,"",null,"",null,"",null,"",null,"",null,"",null,"",null,"",null,"",null,""]
[null,null,null,null,null,null,null,null,null,null,null,null,null,"",null,null,null,null,null,null,null,null,"",null,null,null,"",null,null,null,null,null,"",null,null,null,null,null,null,null,null,"","",null,null,null,null,null,null,null,null,null,null,null,null,null,"","",18,null,{"$f":"IF(AL22=\"\",\"\",IF(AL22>=#REF!,\"x\",\"\"))","v":""},"","","","","","","","","","","","","","","","","","","","","","","","","","","","","","","","",null,"","","","","","","","","","","","","","","","",null,null,null,null,null,null,null,null,null,null,null,null,null,null,null,null,null,null,null,null,null,null,null,null,null,null,null,null,null,null,null,null,null,null,null,null,null,null,null,null,null,null,null,null,null,null,null,null,null,null,null,null,null,null,null,null,null,null,null,null,null,null,null,null,null,null,null,null,null,null,null,null,null,null,null,null,"","",null,"",null,"",null,"",null,"",null,"",null,"",null,"",null,"",null,"",null,"",null,"",null,"",null,"",null,""]
[null,null,null,null,null,null,null,null,null,null,null,null,null,"",null,null,null,null,null,null,null,null,"",null,null,null,"",null,null,null,null,null,"",null,null,null,null,null,null,null,null,"Tester","envoyer email à Hans Hallebeek",null,null,null,null,null,null,null,null,null,null,null,null,null,"","",19,null,{"$f":"IF(AL23=\"\",\"\",IF(AL23>=#REF!,\"x\",\"\"))","v":""},"","","","","","","","","","","","","","","","","","","","","","","","","","","","","","","","",null,"","","","","","","","","","","","","","","","",null,null,null,null,null,null,null,null,null,null,null,null,null,null,null,null,null,null,null,null,null,null,null,null,null,null,null,null,null,null,null,null,null,null,null,null,null,null,null,null,null,null,null,null,null,null,null,null,null,null,null,null,null,null,null,null,null,null,null,null,null,null,null,null,null,null,null,null,null,null,null,null,null,null,null,null,"","",null,"",null,"",null,"",null,"",null,"",null,"",null,"",null,"",null,"",null,"",null,"",null,"",null,"",null,""]
[null,null,null,null,null,null,null,null,null,null,null,null,null,"",null,null,null,null,null,null,null,null,"",null,null,null,"",null,null,null,null,null,"",null,null,null,null,null,null,null,null,"Tester","envoyer email à Hans Hallebeek",null,null,null,null,null,null,null,null,null,null,null,null,null,"","",20,null,{"$f":"IF(AL24=\"\",\"\",IF(AL24>=#REF!,\"x\",\"\"))","v":""},"","","","","","","","","","","","","","","","","","","","","","","","","","","","","","","","",null,"","","","","","","","","","","","","","","","",null,null,null,null,null,null,null,null,null,null,null,null,null,null,null,null,null,null,null,null,null,null,null,null,null,null,null,null,null,null,null,null,null,null,null,null,null,null,null,null,null,null,null,null,null,null,null,null,null,null,null,null,null,null,null,null,null,null,null,null,null,null,null,null,null,null,null,null,null,null,null,null,null,null,null,null,"","",null,"",null,"",null,"",null,"",null,"",null,"",null,"",null,"",null,"",null,"",null,"",null,"",null,"",null,""]
[null,null,null,null,null,null,null,null,null,null,null,null,null,"",null,null,null,null,null,null,null,null,"",null,null,null,"",null,null,null,null,null,"",null,null,null,null,null,null,null,null,"Tester","envoyer email à Hans Hallebeek",null,null,null,null,null,null,null,null,null,null,null,null,null,"","",21,null,{"$f":"IF(AL25=\"\",\"\",IF(AL25>=#REF!,\"x\",\"\"))","v":""},"","","","","","","","","","","","","","","","","","","","","","","","","","","","","","","","",null,"","","","","","","","","","","","","","","","",null,null,null,null,null,null,null,null,null,null,null,null,null,null,null,null,null,null,null,null,null,null,null,null,null,null,null,null,null,null,null,null,null,null,null,null,null,null,null,null,null,null,null,null,null,null,null,null,null,null,null,null,null,null,null,null,null,null,null,null,null,null,null,null,null,null,null,null,null,null,null,null,null,null,null,null,"","",null,"",null,"",null,"",null,"",null,"",null,"",null,"",null,"",null,"",null,"",null,"",null,"",null,"",null,""]
[null,null,null,null,null,null,null,null,null,null,null,null,null,"",null,null,null,null,null,null,null,null,"",null,null,null,"",null,null,null,null,null,"",null,null,null,null,null,null,null,null,"Tester","envoyer email à Hans Hallebeek",null,null,null,null,null,null,null,null,null,null,null,null,null,"","",22,null,{"$f":"IF(AL26=\"\",\"\",IF(AL26>=#REF!,\"x\",\"\"))","v":""},"","","","","","","","","","","","","","","","","","","","","","","","","","","","","","","","",null,"","","","","","","","","","","","","","","","",null,null,null,null,null,null,null,null,null,null,null,null,null,null,null,null,null,null,null,null,null,null,null,null,null,null,null,null,null,null,null,null,null,null,null,null,null,null,null,null,null,null,null,null,null,null,null,null,null,null,null,null,null,null,null,null,null,null,null,null,null,null,null,null,null,null,null,null,null,null,null,null,null,null,null,null,"","",null,"",null,"",null,"",null,"",null,"",null,"",null,"",null,"",null,"",null,"",null,"",null,"",null,"",null,""]
[null,null,null,null,null,null,null,null,null,null,null,null,null,"",null,null,null,null,null,null,null,null,"",null,null,null,"",null,null,null,null,null,"",null,null,null,null,null,null,null,null,"test pour voir si ça marche","correction du code en VBA",null,null,null,null,null,null,null,null,null,null,null,null,null,"","",23,null,{"$f":"IF(AL27=\"\",\"\",IF(AL27>=#REF!,\"x\",\"\"))","v":""},"","","","","","","","","","","","","","","","","","","","","","","","","","","","","","","","",null,"","","","","","","","","","","","","","","","",null,null,null,null,null,null,null,null,null,null,null,null,null,null,null,null,null,null,null,null,null,null,null,null,null,null,null,null,null,null,null,null,null,null,null,null,null,null,null,null,null,null,null,null,null,null,null,null,null,null,null,null,null,null,null,null,null,null,null,null,null,null,null,null,null,null,null,null,null,null,null,null,null,null,null,null,"","",null,"",null,"",null,"",null,"",null,"",null,"",null,"",null,"",null,"",null,"",null,"",null,"",null,"",null,""]
[null,null,null,null,null,null,null,null,null,null,null,null,null,"",null,null,null,null,null,null,null,null,"",null,null,null,"",null,null,null,null,null,"",null,null,null,null,null,null,null,null,"test pour voir si ça marche","correction du code en VBA",null,null,null,null,null,null,null,null,null,null,null,null,null,"","",24,null,{"$f":"IF(AL28=\"\",\"\",IF(AL28>=#REF!,\"x\",\"\"))","v":""},"","","","","","","","","","","","","","","","","","","","","","","","","","","","","","","","",null,"","","","","","","","","","","","","","","","",null,null,null,null,null,null,null,null,null,null,null,null,null,null,null,null,null,null,null,null,null,null,null,null,null,null,null,null,null,null,null,null,null,null,null,null,null,null,null,null,null,null,null,null,null,null,null,null,null,null,null,null,null,null,null,null,null,null,null,null,null,null,null,null,null,null,null,null,null,null,null,null,null,null,null,null,"","",null,"",null,"",null,"",null,"",null,"",null,"",null,"",null,"",null,"",null,"",null,"",null,"",null,"",null,""]
[null,null,null,null,null,null,null,null,null,null,null,null,null,"",null,null,null,null,null,null,null,null,"",null,null,null,"",null,null,null,null,null,"",null,null,null,null,null,null,null,null,"Test de fonccionnement","editer la madule VBA",null,null,null,null,null,null,null,null,null,null,null,null,null,"","",25,null,{"$f":"IF(AL29=\"\",\"\",IF(AL29>=#REF!,\"x\",\"\"))","v":""},"","","","","","","","","","","","","","","","","","","","","","","","","","","","","","","","",null,"","","","","","","","","","","","","","","","",null,null,null,null,null,null,null,null,null,null,null,null,null,null,null,null,null,null,null,null,null,null,null,null,null,null,null,null,null,null,null,null,null,null,null,null,null,null,null,null,null,null,null,null,null,null,null,null,null,null,null,null,null,null,null,null,null,null,null,null,null,null,null,null,null,null,null,null,null,null,null,null,null,null,null,null,"","",null,"",null,"",null,"",null,"",null,"",null,"",null,"",null,"",null,"",null,"",null,"",null,"",null,"",null,""]
[null,null,null,null,null,null,null,null,null,null,null,null,null,"",null,null,null,null,null,null,null,null,"",null,null,null,"",null,null,null,null,null,"",null,null,null,null,null,null,null,null,"Dormire la petite Siesta est aprés controler","Test, test test test test etc",null,null,null,null,null,null,null,null,null,null,null,null,null,"","",26,null,{"$f":"IF(AL30=\"\",\"\",IF(AL30>=#REF!,\"x\",\"\"))","v":""},"","","","","","","","","","","","","","","","","","","","","","","","","","","","","","","","",null,"","","","","","","","","","","","","","","","",null,null,null,null,null,null,null,null,null,null,null,null,null,null,null,null,null,null,null,null,null,null,null,null,null,null,null,null,null,null,null,null,null,null,null,null,null,null,null,null,null,null,null,null,null,null,null,null,null,null,null,null,null,null,null,null,null,null,null,null,null,null,null,null,null,null,null,null,null,null,null,null,null,null,null,null,"","",null,"",null,"",null,"",null,"",null,"",null,"",null,"",null,"",null,"",null,"",null,"",null,"",null,"",null,""]
[null,null,null,null,null,null,null,null,null,null,null,null,null,"",null,null,null,null,null,null,null,null,"",null,null,null,"",null,null,null,null,null,"",null,null,null,null,null,null,null,null,"Verifier si tout fonccionne","continuer aprendre VBA (aprés la Siesta!)",null,null,null,null,null,null,null,null,null,null,null,null,null,"","",27,null,{"$f":"IF(AL31=\"\",\"\",IF(AL31>=#REF!,\"x\",\"\"))","v":""},"","","","","","","","","","","","","","","","","","","","","","","","","","","","","","","","",null,"","","","","","","","","","","","","","","","",null,null,null,null,null,null,null,null,null,null,null,null,null,null,null,null,null,null,null,null,null,null,null,null,null,null,null,null,null,null,null,null,null,null,null,null,null,null,null,null,null,null,null,null,null,null,null,null,null,null,null,null,null,null,null,null,null,null,null,null,null,null,null,null,null,null,null,null,null,null,null,null,null,null,null,null,"","",null,"",null,"",null,"",null,"",null,"",null,"",null,"",null,"",null,"",null,"",null,"",null,"",null,"",null,""]
[null,null,null,null,null,null,null,null,null,null,null,null,null,"",null,null,null,null,null,null,null,null,"",null,null,null,"",null,null,null,null,null,"",null,null,null,null,null,null,null,null,"","",null,null,null,null,null,null,null,null,null,null,null,null,null,"","",28,null,{"$f":"IF(AL32=\"\",\"\",IF(AL32>=#REF!,\"x\",\"\"))","v":""},"","","","","","","","","","","","","","","","","","","","","","","","","","","","","","","","",null,"","","","","","","","","","","","","","","","",null,null,null,null,null,null,null,null,null,null,null,null,null,null,null,null,null,null,null,null,null,null,null,null,null,null,null,null,null,null,null,null,null,null,null,null,null,null,null,null,null,null,null,null,null,null,null,null,null,null,null,null,null,null,null,null,null,null,null,null,null,null,null,null,null,null,null,null,null,null,null,null,null,null,null,null,"","",null,"",null,"",null,"",null,"",null,"",null,"",null,"",null,"",null,"",null,"",null,"",null,"",null,"",null,""]
[null,null,null,null,null,null,null,null,null,null,null,null,null,"",null,null,null,null,null,null,null,null,"",null,null,null,"",null,null,null,null,null,"",null,null,null,null,null,null,null,null,"fgdfgfd","",null,null,null,null,null,null,null,null,null,null,null,null,null,"","",29,null,{"$f":"IF(AL33=\"\",\"\",IF(AL33>=#REF!,\"x\",\"\"))","v":""},"","","","","","","","","","","","","","","","","","","","","","","","","","","","","","","","",null,"","","","","","","","","","","","","","","","",null,null,null,null,null,null,null,null,null,null,null,null,null,null,null,null,null,null,null,null,null,null,null,null,null,null,null,null,null,null,null,null,null,null,null,null,null,null,null,null,null,null,null,null,null,null,null,null,null,null,null,null,null,null,null,null,null,null,null,null,null,null,null,null,null,null,null,null,null,null,null,null,null,null,null,null,"","",null,"",null,"",null,"",null,"",null,"",null,"",null,"",null,"",null,"",null,"",null,"",null,"",null,"",null,""]
[null,null,null,null,null,null,null,null,null,null,null,null,null,"",null,null,null,null,null,null,null,null,"",null,null,null,"",null,null,null,null,null,"",null,null,null,null,null,null,null,null,"ghjghjhg","",null,null,null,null,null,null,null,null,null,null,null,null,null,"","",30,null,{"$f":"IF(AL34=\"\",\"\",IF(AL34>=#REF!,\"x\",\"\"))","v":""},"","","","","","","","","","","","","","","","","","","","","","","","","","","","","","","","",null,"","","","","","","","","","","","","","","","",null,null,null,null,null,null,null,null,null,null,null,null,null,null,null,null,null,null,null,null,null,null,null,null,null,null,null,null,null,null,null,null,null,null,null,null,null,null,null,null,null,null,null,null,null,null,null,null,null,null,null,null,null,null,null,null,null,null,null,null,null,null,null,null,null,null,null,null,null,null,null,null,null,null,null,null,"","",null,"",null,"",null,"",null,"",null,"",null,"",null,"",null,"",null,"",null,"",null,"",null,"",null,"",null,""]
[null,null,null,null,null,null,null,null,null,null,null,null,null,"",null,null,null,null,null,null,null,null,"",null,null,null,"",null,null,null,null,null,"",null,null,null,null,null,null,null,null,"fghfggf","",null,null,null,null,null,null,null,null,null,null,null,null,null,"","",31,null,{"$f":"IF(AL35=\"\",\"\",IF(AL35>=#REF!,\"x\",\"\"))","v":""},"","","","","","","","","","","","","","","","","","","","","","","","","","","","","","","","",null,"","","","","","","","","","","","","","","","",null,null,null,null,null,null,null,null,null,null,null,null,null,null,null,null,null,null,null,null,null,null,null,null,null,null,null,null,null,null,null,null,null,null,null,null,null,null,null,null,null,null,null,null,null,null,null,null,null,null,null,null,null,null,null,null,null,null,null,null,null,null,null,null,null,null,null,null,null,null,null,null,null,null,null,null,"","",null,"",null,"",null,"",null,"",null,"",null,"",null,"",null,"",null,"",null,"",null,"",null,"",null,"",null,""]
[null,null,null,null,null,null,null,null,null,null,null,null,null,"",null,null,null,null,null,null,null,null,"",null,null,null,"",null,null,null,null,null,"",null,null,null,null,null,null,null,null,"gfhfg","",null,null,null,null,null,null,null,null,null,null,null,null,null,"","",32,null,{"$f":"IF(AL36=\"\",\"\",IF(AL36>=#REF!,\"x\",\"\"))","v":""},"","","","","","","","","","","","","","","","","","","","","","","","","","","","","","","","",null,"","","","","","","","","","","","","","","","",null,null,null,null,null,null,null,null,null,null,null,null,null,null,null,null,null,null,null,null,null,null,null,null,null,null,null,null,null,null,null,null,null,null,null,null,null,null,null,null,null,null,null,null,null,null,null,null,null,null,null,null,null,null,null,null,null,null,null,null,null,null,null,null,null,null,null,null,null,null,null,null,null,null,null,null,"","",null,"",null,"",null,"",null,"",null,"",null,"",null,"",null,"",null,"",null,"",null,"",null,"",null,"",null,""]
[null,null,null,null,null,null,null,null,null,null,null,null,null,"",null,null,null,null,null,null,null,null,"",null,null,null,"",null,null,null,null,null,"",null,null,null,null,null,null,null,null,"gfgh","",null,null,null,null,null,null,null,null,null,null,null,null,null,"","",33,null,{"$f":"IF(AL37=\"\",\"\",IF(AL37>=#REF!,\"x\",\"\"))","v":""},"","","","","","","","","","","","","","","","","","","","","","","","","","","","","","","","",null,"","","","","","","","","","","","","","","","",null,null,null,null,null,null,null,null,null,null,null,null,null,null,null,null,null,null,null,null,null,null,null,null,null,null,null,null,null,null,null,null,null,null,null,null,null,null,null,null,null,null,null,null,null,null,null,null,null,null,null,null,null,null,null,null,null,null,null,null,null,null,null,null,null,null,null,null,null,null,null,null,null,null,null,null,"","",null,"",null,"",null,"",null,"",null,"",null,"",null,"",null,"",null,"",null,"",null,"",null,"",null,"",null,""]
[null,null,null,null,null,null,null,null,null,null,null,null,null,"Jour",null,null,null,null,null,null,null,null,"",null,null,null,"",null,null,null,null,null,"",null,null,null,null,null,null,null,null,"vbbv","",null,null,null,null,null,null,null,null,null,null,null,null,null,"","",34,null,{"$f":"IF(AL38=\"\",\"\",IF(AL38>=#REF!,\"x\",\"\"))","v":""},"","","","","","","","","","","","","","","","","","","","","","","","","","","","","","","","",null,"","","","","","","","","","","","","","","","",null,null,null,null,null,null,null,null,null,null,null,null,null,null,null,null,null,null,null,null,null,null,null,null,null,null,null,null,null,null,null,null,null,null,null,null,null,null,null,null,null,null,null,null,null,null,null,null,null,null,null,null,null,null,null,null,null,null,null,null,null,null,null,null,null,null,null,null,null,null,null,null,null,null,null,null,"","",null,"",null,"",null,"",null,"",null,"",null,"",null,"",null,"",null,"",null,"",null,"",null,"",null,"",null,""]
[null,null,null,null,null,null,null,null,null,null,null,null,null,"Jour",null,null,null,null,null,null,null,null,"",null,null,null,"",null,null,null,null,null,"",null,null,null,null,null,null,null,null,"fggf","",null,null,null,null,null,null,null,null,null,null,null,null,null,"","",35,null,{"$f":"IF(AL39=\"\",\"\",IF(AL39>=#REF!,\"x\",\"\"))","v":""},"","","","","","","","","","","","","","","","","","","","","","","","","","","","","","","","",null,"","","","","","","","","","","","","","","","",null,null,null,null,null,null,null,null,null,null,null,null,null,null,null,null,null,null,null,null,null,null,null,null,null,null,null,null,null,null,null,null,null,null,null,null,null,null,null,null,null,null,null,null,null,null,null,null,null,null,null,null,null,null,null,null,null,null,null,null,null,null,null,null,null,null,null,null,null,null,null,null,null,null,null,null,"","",null,"",null,"",null,"",null,"",null,"",null,"",null,"",null,"",null,"",null,"",null,"",null,"",null,"",null,""]
[null,null,null,null,null,null,null,null,null,null,null,null,null,"Jour",null,null,null,null,null,null,null,null,"",null,null,null,"",null,null,null,null,null,"",null,null,null,null,null,null,null,null,"fghfgh","",null,null,null,null,null,null,null,null,null,null,null,null,null,"","",36,null,{"$f":"IF(AL40=\"\",\"\",IF(AL40>=#REF!,\"x\",\"\"))","v":""},"","","","","","","","","","","","","","","","","","","","","","","","","","","","","","","","",null,"","","","","","","","","","","","","","","","",null,null,null,null,null,null,null,null,null,null,null,null,null,null,null,null,null,null,null,null,null,null,null,null,null,null,null,null,null,null,null,null,null,null,null,null,null,null,null,null,null,null,null,null,null,null,null,null,null,null,null,null,null,null,null,null,null,null,null,null,null,null,null,null,null,null,null,null,null,null,null,null,null,null,null,null,"","",null,"",null,"",null,"",null,"",null,"",null,"",null,"",null,"",null,"",null,"",null,"",null,"",null,"",null,""]
[null,null,null,null,null,null,null,null,null,null,null,null,null,"Matin",null,null,null,null,null,null,null,null,"",null,null,null,"",null,null,null,null,null,"",null,null,null,null,null,null,null,null,"test2","",null,null,null,null,null,null,null,null,null,null,null,null,null,"","",37,null,{"$f":"IF(AL41=\"\",\"\",IF(AL41>=#REF!,\"x\",\"\"))","v":""},"","","","","","","","","","","","","","","","","","","","","","","","","","","","","","","","",null,"","","","","","","","","","","","","","","","",null,null,null,null,null,null,null,null,null,null,null,null,null,null,null,null,null,null,null,null,null,null,null,null,null,null,null,null,null,null,null,null,null,null,null,null,null,null,null,null,null,null,null,null,null,null,null,null,null,null,null,null,null,null,null,null,null,null,null,null,null,null,null,null,null,null,null,null,null,null,null,null,null,null,null,null,"","",null,"",null,"",null,"",null,"",null,"",null,"",null,"",null,"",null,"",null,"",null,"",null,"",null,"",null,""]
[null,null,null,null,null,null,null,null,null,null,null,null,null,"Matin",null,null,null,null,null,null,null,null,"",null,null,null,"",null,null,null,null,null,"",null,null,null,null,null,null,null,null,"gfjghj","",null,null,null,null,null,null,null,null,null,null,null,null,null,"","",38,null,{"$f":"IF(AL42=\"\",\"\",IF(AL42>=#REF!,\"x\",\"\"))","v":""},"","","","","","","","","","","","","","","","","","","","","","","","","","","","","","","","",null,"","","","","","","","","","","","","","","","",null,null,null,null,null,null,null,null,null,null,null,null,null,null,null,null,null,null,null,null,null,null,null,null,null,null,null,null,null,null,null,null,null,null,null,null,null,null,null,null,null,null,null,null,null,null,null,null,null,null,null,null,null,null,null,null,null,null,null,null,null,null,null,null,null,null,null,null,null,null,null,null,null,null,null,null,"","",null,"",null,"",null,"",null,"",null,"",null,"",null,"",null,"",null,"",null,"",null,"",null,"",null,"",null,""]
[null,null,null,null,null,null,null,null,null,null,null,null,null,"",null,null,null,null,null,null,null,null,"",null,null,null,"",null,null,null,null,null,"",null,null,null,null,null,null,null,null,"dfgdfgdf","",null,null,null,null,null,null,null,null,null,null,null,null,null,"","",39,null,{"$f":"IF(AL43=\"\",\"\",IF(AL43>=#REF!,\"x\",\"\"))","v":""},"","","","","","","","","","","","","","","","","","","","","","","","","","","","","","","","",null,"","","","","","","","","","","","","","","","",null,null,null,null,null,null,null,null,null,null,null,null,null,null,null,null,null,null,null,null,null,null,null,null,null,null,null,null,null,null,null,null,null,null,null,null,null,null,null,null,null,null,null,null,null,null,null,null,null,null,null,null,null,null,null,null,null,null,null,null,null,null,null,null,null,null,null,null,null,null,null,null,null,null,null,null,"","",null,"",null,"",null,"",null,"",null,"",null,"",null,"",null,"",null,"",null,"",null,"",null,"",null,"",null,""]
[null,null,null,null,null,null,null,null,null,null,null,null,null,"Matin",null,null,null,null,null,null,null,null,"",null,null,null,"",null,null,null,null,null,"",null,null,null,null,null,null,null,null,"ghfjghjghf","",null,null,null,null,null,null,null,null,null,null,null,null,null,"","",40,null,{"$f":"IF(AL44=\"\",\"\",IF(AL44>=#REF!,\"x\",\"\"))","v":""},"","","","","","","","","","","","","","","","","","","","","","","","","","","","","","","","",null,"","","","","","","","","","","","","","","","",null,null,null,null,null,null,null,null,null,null,null,null,null,null,null,null,null,null,null,null,null,null,null,null,null,null,null,null,null,null,null,null,null,null,null,null,null,null,null,null,null,null,null,null,null,null,null,null,null,null,null,null,null,null,null,null,null,null,null,null,null,null,null,null,null,null,null,null,null,null,null,null,null,null,null,null,"","",null,"",null,"",null,"",null,"",null,"",null,"",null,"",null,"",null,"",null,"",null,"",null,"",null,"",null,""]
[null,null,null,null,null,null,null,null,null,null,null,null,null,"Matin",null,null,null,null,null,null,null,null,"fgdsfgs",null,null,null,"Encadrant/Animateur/Apprenti HSE",null,null,null,null,null,"gtgdfg",null,null,null,null,null,null,null,null,"gfhfgh","",null,null,null,null,null,null,null,null,null,null,null,null,null,"","",41,null,{"$f":"IF(AL45=\"\",\"\",IF(AL45>=#REF!,\"x\",\"\"))","v":""},"","","","","","","","","","","","","","","","","","","","","","","","","","","","","","","","",null,"","","","","","","","","","","","","","","","",null,null,null,null,null,null,null,null,null,null,null,null,null,null,null,null,null,null,null,null,null,null,null,null,null,null,null,null,null,null,null,null,null,null,null,null,null,null,null,null,null,null,null,null,null,null,null,null,null,null,null,null,null,null,null,null,null,null,null,null,null,null,null,null,null,null,null,null,null,null,null,null,null,null,null,null,"","",null,"",null,"",null,"",null,"",null,"",null,"",null,"",null,"",null,"",null,"",null,"",null,"",null,"",null,""]
[null,null,null,null,null,null,null,null,null,null,null,null,null,"Matin",null,null,null,null,null,null,null,null,"fgdsfgs",null,null,null,"Encadrant/Animateur/Apprenti HSE",null,null,null,null,null,"gtgdfg",null,null,null,null,null,null,null,null,"test","",null,null,null,null,null,null,null,null,null,null,null,null,null,"","",42,null,{"$f":"IF(AL46=\"\",\"\",IF(AL46>=#REF!,\"x\",\"\"))","v":""},"","","","","","","","","","","","","","","","","","","","","","","","","","","","","","","","",null,"","","","","","","","","","","","","","","","",null,null,null,null,null,null,null,null,null,null,null,null,null,null,null,null,null,null,null,null,null,null,null,null,null,null,null,null,null,null,null,null,null,null,null,null,null,null,null,null,null,null,null,null,null,null,null,null,null,null,null,null,null,null,null,null,null,null,null,null,null,null,null,null,null,null,null,null,null,null,null,null,null,null,null,null,"","",null,"",null,"",null,"",null,"",null,"",null,"",null,"",null,"",null,"",null,"",null,"",null,"",null,"",null,""]
[null,null,null,null,null,null,null,null,null,null,null,null,null,"",null,null,null,null,null,null,null,null,"fgdsfgs",null,null,null,"Encadrant/Animateur/Apprenti HSE",null,null,null,null,null,"gtgdfg",null,null,null,null,null,null,null,null,"dfgdfg","",null,null,null,null,null,null,null,null,null,null,null,null,null,"","",43,null,{"$f":"IF(AL47=\"\",\"\",IF(AL47>=#REF!,\"x\",\"\"))","v":""},"","","","","","","","","","","","","","","","","","","","","","","","","","","","","","","","",null,"","","","","","","","","","","","","","","","",null,null,null,null,null,null,null,null,null,null,null,null,null,null,null,null,null,null,null,null,null,null,null,null,null,null,null,null,null,null,null,null,null,null,null,null,null,null,null,null,null,null,null,null,null,null,null,null,null,null,null,null,null,null,null,null,null,null,null,null,null,null,null,null,null,null,null,null,null,null,null,null,null,null,null,null,"","",null,"",null,"",null,"",null,"",null,"",null,"",null,"",null,"",null,"",null,"",null,"",null,"",null,"",null,""]
[null,null,null,null,null,null,null,null,null,null,null,null,null,"",null,null,null,null,null,null,null,null,"",null,null,null,"Régleur",null,null,null,null,null,"ghgf",null,null,null,null,null,null,null,null,"hgjgh","",null,null,null,null,null,null,null,null,null,null,null,null,null,"","",44,null,{"$f":"IF(AL48=\"\",\"\",IF(AL48>=#REF!,\"x\",\"\"))","v":""},"","","","","","","","","","","","","","","","","","","","","","","","","","","","","","","","",null,"","","","","","","","","","","","","","","","",null,null,null,null,null,null,null,null,null,null,null,null,null,null,null,null,null,null,null,null,null,null,null,null,null,null,null,null,null,null,null,null,null,null,null,null,null,null,null,null,null,null,null,null,null,null,null,null,null,null,null,null,null,null,null,null,null,null,null,null,null,null,null,null,null,null,null,null,null,null,null,null,null,null,null,null,"","",null,"",null,"",null,"",null,"",null,"",null,"",null,"",null,"",null,"",null,"",null,"",null,"",null,"",null,""]
[null,null,null,null,null,null,null,null,null,null,null,null,null,"",null,null,null,null,null,null,null,null,"",null,null,null,"Régleur",null,null,null,null,null,"ghgf",null,null,null,null,null,null,null,null,"jhkjhk","",null,null,null,null,null,null,null,null,null,null,null,null,null,"","",45,null,{"$f":"IF(AL49=\"\",\"\",IF(AL49>=#REF!,\"x\",\"\"))","v":""},"","","","","","","","","","","","","","","","","","","","","","","","","","","","","","","","",null,"","","","","","","","","","","","","","","","",null,null,null,null,null,null,null,null,null,null,null,null,null,null,null,null,null,null,null,null,null,null,null,null,null,null,null,null,null,null,null,null,null,null,null,null,null,null,null,null,null,null,null,null,null,null,null,null,null,null,null,null,null,null,null,null,null,null,null,null,null,null,null,null,null,null,null,null,null,null,null,null,null,null,null,null,"","",null,"",null,"",null,"",null,"",null,"",null,"",null,"",null,"",null,"",null,"",null,"",null,"",null,"",null,""]
[null,null,null,null,null,null,null,null,null,null,null,null,null,"",null,null,null,null,null,null,null,null,"",null,null,null,"",null,null,null,null,null,"",null,null,null,null,null,null,null,null,"test","",null,null,null,null,null,null,null,null,null,null,null,null,null,"","",46,null,{"$f":"IF(AL50=\"\",\"\",IF(AL50>=#REF!,\"x\",\"\"))","v":""},"","","","","","","","","","","","","","","","","","","","","","","","","","","","","","","","",null,"","","","","","","","","","","","","","","","",null,null,null,null,null,null,null,null,null,null,null,null,null,null,null,null,null,null,null,null,null,null,null,null,null,null,null,null,null,null,null,null,null,null,null,null,null,null,null,null,null,null,null,null,null,null,null,null,null,null,null,null,null,null,null,null,null,null,null,null,null,null,null,null,null,null,null,null,null,null,null,null,null,null,null,null,"","",null,"",null,"",null,"",null,"",null,"",null,"",null,"",null,"",null,"",null,"",null,"",null,"",null,"",null,""]
[null,null,null,null,null,null,null,null,null,null,null,null,null,"",null,null,null,null,null,null,null,null,"",null,null,null,"Encadrant/Animateur/Apprenti HSE",null,null,null,null,null,"ghkhgk",null,null,null,null,null,null,null,null,"hgfgh","",null,null,null,null,null,null,null,null,null,null,null,null,null,"","",47,null,{"$f":"IF(AL51=\"\",\"\",IF(AL51>=#REF!,\"x\",\"\"))","v":""},"","","","","","","","","","","","","","","","","","","","","","","","","","","","","","","","",null,"","","","","","","","","","","","","","","","",null,null,null,null,null,null,null,null,null,null,null,null,null,null,null,null,null,null,null,null,null,null,null,null,null,null,null,null,null,null,null,null,null,null,null,null,null,null,null,null,null,null,null,null,null,null,null,null,null,null,null,null,null,null,null,null,null,null,null,null,null,null,null,null,null,null,null,null,null,null,null,null,null,null,null,null,"","",null,"",null,"",null,"",null,"",null,"",null,"",null,"",null,"",null,"",null,"",null,"",null,"",null,"",null,""]
[null,null,null,null,null,null,null,null,null,null,null,null,null,"",null,null,null,null,null,null,null,null,"",null,null,null,"Encadrant/Animateur/Apprenti HSE",null,null,null,null,null,"ghkhgk",null,null,null,null,null,null,null,null,"hfgh","",null,null,null,null,null,null,null,null,null,null,null,null,null,"","",48,null,{"$f":"IF(AL52=\"\",\"\",IF(AL52>=#REF!,\"x\",\"\"))","v":""},"","","","","","","","","","","","","","","","","","","","","","","","","","","","","","","","",null,"","","","","","","","","","","","","","","","",null,null,null,null,null,null,null,null,null,null,null,null,null,null,null,null,null,null,null,null,null,null,null,null,null,null,null,null,null,null,null,null,null,null,null,null,null,null,null,null,null,null,null,null,null,null,null,null,null,null,null,null,null,null,null,null,null,null,null,null,null,null,null,null,null,null,null,null,null,null,null,null,null,null,null,null,"","",null,"",null,"",null,"",null,"",null,"",null,"",null,"",null,"",null,"",null,"",null,"",null,"",null,"",null,""]
[null,null,null,null,null,null,null,null,null,null,null,null,null,"",null,null,null,null,null,null,null,null,"",null,null,null,"Manager/AM/Technicien",null,null,null,null,null,"fhgh",null,null,null,null,null,null,null,null,"ghjhgjhg","",null,null,null,null,null,null,null,null,null,null,null,null,null,"","",49,null,{"$f":"IF(AL53=\"\",\"\",IF(AL53>=#REF!,\"x\",\"\"))","v":""},"","","","","","","","","","","","","","","","","","","","","","","","","","","","","","","","",null,"","","","","","","","","","","","","","","","",null,null,null,null,null,null,null,null,null,null,null,null,null,null,null,null,null,null,null,null,null,null,null,null,null,null,null,null,null,null,null,null,null,null,null,null,null,null,null,null,null,null,null,null,null,null,null,null,null,null,null,null,null,null,null,null,null,null,null,null,null,null,null,null,null,null,null,null,null,null,null,null,null,null,null,null,"","",null,"",null,"",null,"",null,"",null,"",null,"",null,"",null,"",null,"",null,"",null,"",null,"",null,"",null,""]
[null,null,null,null,null,null,null,null,null,null,null,null,null,"",null,null,null,null,null,null,null,null,"",null,null,null,"",null,null,null,null,null,"",null,null,null,null,null,null,null,null,"jhkjhk","",null,null,null,null,null,null,null,null,null,null,null,null,null,"","",50,null,{"$f":"IF(AL54=\"\",\"\",IF(AL54>=#REF!,\"x\",\"\"))","v":""},"","","","","","","","","","","","","","","","","","","","","","","","","","","","","","","","",null,"","","","","","","","","","","","","","","","",null,null,null,null,null,null,null,null,null,null,null,null,null,null,null,null,null,null,null,null,null,null,null,null,null,null,null,null,null,null,null,null,null,null,null,null,null,null,null,null,null,null,null,null,null,null,null,null,null,null,null,null,null,null,null,null,null,null,null,null,null,null,null,null,null,null,null,null,null,null,null,null,null,null,null,null,"","",null,"",null,"",null,"",null,"",null,"",null,"",null,"",null,"",null,"",null,"",null,"",null,"",null,"",null,""]
[null,null,null,null,null,null,null,null,null,null,null,null,null,"",null,null,null,null,null,null,null,null,"",null,null,null,"",null,null,null,null,null,"",null,null,null,null,null,null,null,null,"gjghjghj","",null,null,null,null,null,null,null,null,null,null,null,null,null,"","",51,null,{"$f":"IF(AL55=\"\",\"\",IF(AL55>=#REF!,\"x\",\"\"))","v":""},"","","","","","","","","","","","","","","","","","","","","","","","","","","","","","","","",null,"","","","","","","","","","","","","","","","",null,null,null,null,null,null,null,null,null,null,null,null,null,null,null,null,null,null,null,null,null,null,null,null,null,null,null,null,null,null,null,null,null,null,null,null,null,null,null,null,null,null,null,null,null,null,null,null,null,null,null,null,null,null,null,null,null,null,null,null,null,null,null,null,null,null,null,null,null,null,null,null,null,null,null,null,"","",null,"",null,"",null,"",null,"",null,"",null,"",null,"",null,"",null,"",null,"",null,"",null,"",null,"",null,""]
[null,null,null,null,null,null,null,null,null,null,null,null,null,"",null,null,null,null,null,null,null,null,"",null,null,null,"",null,null,null,null,null,"",null,null,null,null,null,null,null,null,"fghfgh","",null,null,null,null,null,null,null,null,null,null,null,null,null,"","",52,null,{"$f":"IF(AL56=\"\",\"\",IF(AL56>=#REF!,\"x\",\"\"))","v":""},"","","","","","","","","","","","","","","","","","","","","","","","","","","","","","","","",null,"","","","","","","","","","","","","","","","",null,null,null,null,null,null,null,null,null,null,null,null,null,null,null,null,null,null,null,null,null,null,null,null,null,null,null,null,null,null,null,null,null,null,null,null,null,null,null,null,null,null,null,null,null,null,null,null,null,null,null,null,null,null,null,null,null,null,null,null,null,null,null,null,null,null,null,null,null,null,null,null,null,null,null,null,"","",null,"",null,"",null,"",null,"",null,"",null,"",null,"",null,"",null,"",null,"",null,"",null,"",null,"",null,""]
[null,null,null,null,null,null,null,null,null,null,null,null,null,"",null,null,null,null,null,null,null,null,"",null,null,null,"",null,null,null,null,null,"",null,null,null,null,null,null,null,null,"fggfh","",null,null,null,null,null,null,null,null,null,null,null,null,null,"","",53,null,{"$f":"IF(AL57=\"\",\"\",IF(AL57>=#REF!,\"x\",\"\"))","v":""},"","","","","","","","","","","","","","","","","","","","","","","","","","","","","","","","",null,"","","","","","","","","","","","","","","","",null,null,null,null,null,null,null,null,null,null,null,null,null,null,null,null,null,null,null,null,null,null,null,null,null,null,null,null,null,null,null,null,null,null,null,null,null,null,null,null,null,null,null,null,null,null,null,null,null,null,null,null,null,null,null,null,null,null,null,null,null,null,null,null,null,null,null,null,null,null,null,null,null,null,null,null,"","",null,"",null,"",null,"",null,"",null,"",null,"",null,"",null,"",null,"",null,"",null,"",null,"",null,"",null,""]
[null,null,null,null,null,null,null,null,null,null,null,null,null,"",null,null,null,null,null,null,null,null,"",null,null,null,"",null,null,null,null,null,"",null,null,null,null,null,null,null,null,null,null,null,null,null,null,null,null,null,null,null,null,null,null,null,"","",54,null,{"$f":"IF(AL58=\"\",\"\",IF(AL58>=#REF!,\"x\",\"\"))","v":""},"","","","","","","","","","","","","","","","","","","","","","","","","","","","","","","","",null,"","","","","","","","","","","","","","","","",null,null,null,null,null,null,null,null,null,null,null,null,null,null,null,null,null,null,null,null,null,null,null,null,null,null,null,null,null,null,null,null,null,null,null,null,null,null,null,null,null,null,null,null,null,null,null,null,null,null,null,null,null,null,null,null,null,null,null,null,null,null,null,null,null,null,null,null,null,null,null,null,null,null,null,null,"","",null,"",null,"",null,"",null,"",null,"",null,"",null,"",null,"",null,"",null,"",null,"",null,"",null,"",null,""]
[null,null,null,null,null,null,null,null,null,null,null,null,null,"",null,null,null,null,null,null,null,null,"",null,null,null,"",null,null,null,null,null,"",null,null,null,null,null,null,null,null,null,null,null,null,null,null,null,null,null,null,null,null,null,null,null,"","",55,null,{"$f":"IF(AL59=\"\",\"\",IF(AL59>=#REF!,\"x\",\"\"))","v":""},"","","","","","","","","","","","","","","","","","","","","","","","","","","","","","","","",null,"","","","","","","","","","","","","","","","",null,null,null,null,null,null,null,null,null,null,null,null,null,null,null,null,null,null,null,null,null,null,null,null,null,null,null,null,null,null,null,null,null,null,null,null,null,null,null,null,null,null,null,null,null,null,null,null,null,null,null,null,null,null,null,null,null,null,null,null,null,null,null,null,null,null,null,null,null,null,null,null,null,null,null,null,"","",null,"",null,"",null,"",null,"",null,"",null,"",null,"",null,"",null,"",null,"",null,"",null,"",null,"",null,""]
[null,null,null,null,null,null,null,null,null,null,null,null,null,"",null,null,null,null,null,null,null,null,"",null,null,null,"",null,null,null,null,null,"",null,null,null,null,null,null,null,null,null,null,null,null,null,null,null,null,null,null,null,null,null,null,null,"","",56,null,{"$f":"IF(AL60=\"\",\"\",IF(AL60>=#REF!,\"x\",\"\"))","v":""},"","","","","","","","","","","","","","","","","","","","","","","","","","","","","","","","",null,"","","","","","","","","","","","","","","","",null,null,null,null,null,null,null,null,null,null,null,null,null,null,null,null,null,null,null,null,null,null,null,null,null,null,null,null,null,null,null,null,null,null,null,null,null,null,null,null,null,null,null,null,null,null,null,null,null,null,null,null,null,null,null,null,null,null,null,null,null,null,null,null,null,null,null,null,null,null,null,null,null,null,null,null,"","",null,"",null,"",null,"",null,"",null,"",null,"",null,"",null,"",null,"",null,"",null,"",null,"",null,"",null,""]
[null,null,null,null,null,null,null,null,null,null,null,null,null,"",null,null,null,null,null,null,null,null,"",null,null,null,"",null,null,null,null,null,"",null,null,null,null,null,null,null,null,null,null,null,null,null,null,null,null,null,null,null,null,null,null,null,"","",57,null,{"$f":"IF(AL61=\"\",\"\",IF(AL61>=#REF!,\"x\",\"\"))","v":""},"","","","","","","","","","","","","","","","","","","","","","","","","","","","","","","","",null,"","","","","","","","","","","","","","","","",null,null,null,null,null,null,null,null,null,null,null,null,null,null,null,null,null,null,null,null,null,null,null,null,null,null,null,null,null,null,null,null,null,null,null,null,null,null,null,null,null,null,null,null,null,null,null,null,null,null,null,null,null,null,null,null,null,null,null,null,null,null,null,null,null,null,null,null,null,null,null,null,null,null,null,null,"","",null,"",null,"",null,"",null,"",null,"",null,"",null,"",null,"",null,"",null,"",null,"",null,"",null,"",null,""]
[null,null,null,null,null,null,null,null,null,null,null,null,null,"",null,null,null,null,null,null,null,null,"",null,null,null,"",null,null,null,null,null,"",null,null,null,null,null,null,null,null,null,null,null,null,null,null,null,null,null,null,null,null,null,null,null,"","",58,null,{"$f":"IF(AL62=\"\",\"\",IF(AL62>=#REF!,\"x\",\"\"))","v":""},"","","","","","","","","","","","","","","","","","","","","","","","","","","","","","","","",null,"","","","","","","","","","","","","","","","",null,null,null,null,null,null,null,null,null,null,null,null,null,null,null,null,null,null,null,null,null,null,null,null,null,null,null,null,null,null,null,null,null,null,null,null,null,null,null,null,null,null,null,null,null,null,null,null,null,null,null,null,null,null,null,null,null,null,null,null,null,null,null,null,null,null,null,null,null,null,null,null,null,null,null,null,"","",null,"",null,"",null,"",null,"",null,"",null,"",null,"",null,"",null,"",null,"",null,"",null,"",null,"",null,""]
[null,null,null,null,null,null,null,null,null,null,null,null,null,"",null,null,null,null,null,null,null,null,"",null,null,null,"",null,null,null,null,null,"",null,null,null,null,null,null,null,null,null,null,null,null,null,null,null,null,null,null,null,null,null,null,null,"","",59,null,{"$f":"IF(AL63=\"\",\"\",IF(AL63>=#REF!,\"x\",\"\"))","v":""},"","","","","","","","","","","","","","","","","","","","","","","","","","","","","","","","",null,"","","","","","","","","","","","","","","","",null,null,null,null,null,null,null,null,null,null,null,null,null,null,null,null,null,null,null,null,null,null,null,null,null,null,null,null,null,null,null,null,null,null,null,null,null,null,null,null,null,null,null,null,null,null,null,null,null,null,null,null,null,null,null,null,null,null,null,null,null,null,null,null,null,null,null,null,null,null,null,null,null,null,null,null,"","",null,"",null,"",null,"",null,"",null,"",null,"",null,"",null,"",null,"",null,"",null,"",null,"",null,"",null,""]
[null,null,null,null,null,null,null,null,null,null,null,null,null,"Matin",null,null,null,null,null,null,null,null,"",null,null,null,"",null,null,null,null,null,"",null,null,null,null,null,null,null,null,null,null,null,null,null,null,null,null,null,null,null,null,null,null,null,"","",60,null,{"$f":"IF(AL64=\"\",\"\",IF(AL64>=#REF!,\"x\",\"\"))","v":""},"","","","","","","","","","","","","","","","","","","","","","","","","","","","","","","","",null,"","","","","","","","","","","","","","","","",null,null,null,null,null,null,null,null,null,null,null,null,null,null,null,null,null,null,null,null,null,null,null,null,null,null,null,null,null,null,null,null,null,null,null,null,null,null,null,null,null,null,null,null,null,null,null,null,null,null,null,null,null,null,null,null,null,null,null,null,null,null,null,null,null,null,null,null,null,null,null,null,null,null,null,null,"","",null,"",null,"",null,"",null,"",null,"",null,"",null,"",null,"",null,"",null,"",null,"",null,"",null,"",null,""]
[null,null,null,null,null,null,null,null,null,null,null,null,null,"Matin",null,null,null,null,null,null,null,null,"",null,null,null,"",null,null,null,null,null,"",null,null,null,null,null,null,null,null,null,null,null,null,null,null,null,null,null,null,null,null,null,null,null,"","",61,null,{"$f":"IF(AL65=\"\",\"\",IF(AL65>=#REF!,\"x\",\"\"))","v":""},"","","","","","","","","","","","","","","","","","","","","","","","","","","","","","","","",null,"","","","","","","","","","","","","","","","",null,null,null,null,null,null,null,null,null,null,null,null,null,null,null,null,null,null,null,null,null,null,null,null,null,null,null,null,null,null,null,null,null,null,null,null,null,null,null,null,null,null,null,null,null,null,null,null,null,null,null,null,null,null,null,null,null,null,null,null,null,null,null,null,null,null,null,null,null,null,null,null,null,null,null,null,"","",null,"",null,"",null,"",null,"",null,"",null,"",null,"",null,"",null,"",null,"",null,"",null,"",null,"",null,""]
[null,null,null,null,null,null,null,null,null,null,null,null,null,"Matin",null,null,null,null,null,null,null,null,"",null,null,null,"",null,null,null,null,null,"",null,null,null,null,null,null,null,null,null,null,null,null,null,null,null,null,null,null,null,null,null,null,null,"","",62,null,{"$f":"IF(AL66=\"\",\"\",IF(AL66>=#REF!,\"x\",\"\"))","v":""},"","","","","","","","","","","","","","","","","","","","","","","","","","","","","","","","",null,"","","","","","","","","","","","","","","","",null,null,null,null,null,null,null,null,null,null,null,null,null,null,null,null,null,null,null,null,null,null,null,null,null,null,null,null,null,null,null,null,null,null,null,null,null,null,null,null,null,null,null,null,null,null,null,null,null,null,null,null,null,null,null,null,null,null,null,null,null,null,null,null,null,null,null,null,null,null,null,null,null,null,null,null,"","",null,"",null,"",null,"",null,"",null,"",null,"",null,"",null,"",null,"",null,"",null,"",null,"",null,"",null,""]
[null,null,null,null,null,null,null,null,null,null,null,null,null,"Matin",null,null,null,null,null,null,null,null,"",null,null,null,"",null,null,null,null,null,"",null,null,null,null,null,null,null,null,null,null,null,null,null,null,null,null,null,null,null,null,null,null,null,"","",63,null,{"$f":"IF(AL67=\"\",\"\",IF(AL67>=#REF!,\"x\",\"\"))","v":""},"","","","","","","","","","","","","","","","","","","","","","","","","","","","","","","","",null,"","","","","","","","","","","","","","","","",null,null,null,null,null,null,null,null,null,null,null,null,null,null,null,null,null,null,null,null,null,null,null,null,null,null,null,null,null,null,null,null,null,null,null,null,null,null,null,null,null,null,null,null,null,null,null,null,null,null,null,null,null,null,null,null,null,null,null,null,null,null,null,null,null,null,null,null,null,null,null,null,null,null,null,null,"","",null,"",null,"",null,"",null,"",null,"",null,"",null,"",null,"",null,"",null,"",null,"",null,"",null,"",null,""]
[null,null,null,null,null,null,null,null,null,null,null,null,null,"Aprés-Midi",null,null,null,null,null,null,null,null,"",null,null,null,"",null,null,null,null,null,"",null,null,null,null,null,null,null,null,null,null,null,null,null,null,null,null,null,null,null,null,null,null,null,"","",64,null,{"$f":"IF(AL68=\"\",\"\",IF(AL68>=#REF!,\"x\",\"\"))","v":""},"","","","","","","","","","","","","","","","","","","","","","","","","","","","","","","","",null,"","","","","","","","","","","","","","","","",null,null,null,null,null,null,null,null,null,null,null,null,null,null,null,null,null,null,null,null,null,null,null,null,null,null,null,null,null,null,null,null,null,null,null,null,null,null,null,null,null,null,null,null,null,null,null,null,null,null,null,null,null,null,null,null,null,null,null,null,null,null,null,null,null,null,null,null,null,null,null,null,null,null,null,null,"","",null,"",null,"",null,"",null,"",null,"",null,"",null,"",null,"",null,"",null,"",null,"",null,"",null,"",null,""]
[null,null,null,null,null,null,null,null,null,null,null,null,null,"Aprés-Midi",null,null,null,null,null,null,null,null,"",null,null,null,"",null,null,null,null,null,"",null,null,null,null,null,null,null,null,null,null,null,null,null,null,null,null,null,null,null,null,{"$f":"AI69","v":0},{"$f":"AJ69","v":0},{"$f":"AK69","v":0},{"$f":"IF(BD69=\"\",\"\",IF(BD69>0,((BB69*BC69)/BD69),\"\"))","v":""},{"$f":"IF(BE69=\"\",\"\",IF(BE69>=50,\"Action(s) inefficace(s)\",\"OK\"))","v":""},65,null,{"$f":"IF(AL69=\"\",\"\",IF(AL69>=#REF!,\"x\",\"\"))","v":""},{"$f":"CONCATENATE(Y69,BI69)","v":""},{"$f":"CONCATENATE(Y69,AZ69)","v":""},"","","","","","","","","","","","","","","","","","","","","","","","","","","","","","",null,"","","","","","","","","","","","","","","",{"$f":"CONCATENATE(J69,AZ69)","v":""},null,null,null,null,null,null,null,null,null,null,null,null,null,null,null,null,null,null,null,null,null,null,null,null,null,null,null,null,null,null,null,null,null,null,null,null,null,null,null,null,null,null,null,null,null,null,null,null,null,null,null,null,null,null,null,null,null,null,null,null,null,null,null,null,null,null,null,null,null,null,null,null,null,null,null,null,{"$f":"CONCATENATE(Y69,AZ69)","v":""},"",null,"",null,"",null,"",null,"",null,"",null,"",null,"",null,"",null,"",null,"",null,"",null,"",null,"",null,""]
[null,null,null,null,null,null,null,null,null,null,null,null,null,"Aprés-Midi",null,null,null,null,null,null,null,null,"",null,null,null,"",null,null,null,null,null,"",null,null,null,null,null,null,null,null,null,null,null,null,null,null,null,null,null,null,null,null,0,0,0,"","",66,null,{"$f":"IF(AL70=\"\",\"\",IF(AL70>=#REF!,\"x\",\"\"))","v":""},"","",{"$f":"IF(Y70=\"Services_supports\",AL70,\"\")","v":""},{"$f":"IF(Y70=\"Services_supports\",BE70,\"\")","v":""},{"$f":"IF(Y70=\"Logistique\",AL70,\"\")","v":""},{"$f":"IF(Y70=\"Logistique\",BE70,\"\")","v":""},{"$f":"IF(Y70=\"PM\",AL70,\"\")","v":""},{"$f":"IF(Y70=\"PM\",BE70,\"\")","v":""},{"$f":"IF(Y70=\"Compression_MacNeil\",AL70,\"\")","v":""},{"$f":"IF(Y70=\"Compression_MacNeil\",BE70,\"\")","v":""},{"$f":"IF(Y70=\"Compression_Wickert\",AL70,\"\")","v":""},{"$f":"IF(Y70=\"Compression_Wickert\",BE70,\"\")","v":""},{"$f":"IF(Y70=\"Découpe_B2\",AL70,\"\")","v":""},{"$f":"IF(Y70=\"Découpe_B2\",BE70,\"\")","v":""},{"$f":"IF(Y70=\"Injection\",AL70,\"\")","v":""},{"$f":"IF(Y70=\"Injection\",BE70,\"\")","v":""},{"$f":"IF(Y70=\"Finition\",AL70,\"\")","v":""},{"$f":"IF(Y70=\"Finition\",BE70,\"\")","v":""},{"$f":"IF(Y70=\"Outillage\",AL70,\"\")","v":""},{"$f":"IF(Y70=\"Outillage\",BE70,\"\")","v":""},{"$f":"IF(Y70=\"Maintenance_TN\",AL70,\"\")","v":""},{"$f":"IF(Y70=\"Maintenance_TN\",BE70,\"\")","v":""},{"$f":"IF(Y70=\"Nettoyage\",AL70,\"\")","v":""},{"$f":"IF(Y70=\"Nettoyage\",BE70,\"\")","v":""},{"$f":"IF(Y70=\"Laboratoire\",AL70,\"\")","v":""},{"$f":"IF(Y70=\"Laboratoire\",BE70,\"\")","v":""},{"$f":"IF(Y70=\"AQ\",AL70,\"\")","v":""},{"$f":"IF(Y70=\"AQ\",BE70,\"\")","v":""},{"$f":"IF(Y70=\"Saint_Germain\",AL70,\"\")","v":""},{"$f":"IF(Y70=\"Saint_Germain\",BE70,\"\")","v":""},{"$f":"IF(Y70=\"SSE\",AL70,\"\")","v":""},{"$f":"IF(Y70=\"SSE\",BE70,\"\")","v":""},null,{"$f":"IF(Y70=\"Services_Supports\",CONCATENATE(A70,J70),\"\")","v":""},{"$f":"IF(Y70=\"Logistique\",CONCATENATE(A70,J70),\"\")","v":""},{"$f":"IF(Y70=\"PM\",CONCATENATE(A70,J70),\"\")","v":""},{"$f":"IF(Y70=\"Compression_Macneil\",CONCATENATE(A70,J70),\"\")","v":""},{"$f":"IF(Y70=\"Compression_Wickert\",CONCATENATE(A70,J70),\"\")","v":""},{"$f":"IF(Y70=\"Découpe_B2\",CONCATENATE(A70,J70),\"\")","v":""},{"$f":"IF(Y70=\"Injection\",CONCATENATE(A70,J70),\"\")","v":""},{"$f":"IF(Y70=\"Finition\",CONCATENATE(A70,J70),\"\")","v":""},{"$f":"IF(Y70=\"Outillage\",CONCATENATE(A70,J70),\"\")","v":""},{"$f":"IF(Y70=\"Maintenance_TN\",CONCATENATE(A70,J70),\"\")","v":""},{"$f":"IF(Y70=\"Nettoyage\",CONCATENATE(A70,J70),\"\")","v":""},{"$f":"IF(Y70=\"Laboratoire\",CONCATENATE(A70,J70),\"\")","v":""},{"$f":"IF(Y70=\"AQ\",CONCATENATE(A70,J70),\"\")","v":""},{"$f":"IF(Y70=\"Saint_Germain\",CONCATENATE(A70,J70),\"\")","v":""},{"$f":"IF(Y70=\"SSE\",CONCATENATE(A70,J70),\"\")","v":""},"",null,null,null,null,null,null,null,null,null,null,null,null,null,null,null,null,null,null,null,null,null,null,null,null,null,null,null,null,null,null,null,null,null,null,null,null,null,null,null,null,null,null,null,null,null,null,null,null,null,null,null,null,null,null,null,null,null,null,null,null,null,null,null,null,null,null,null,null,null,null,null,null,null,null,null,null,"",{"$f":"IF(Y70=\"Services_Supports\",GE70,\"\")","v":""},null,{"$f":"IF(Y70=\"Logistique\",GE70,\"\")","v":""},null,{"$f":"IF(Y70=\"PM\",GE70,\"\")","v":""},null,{"$f":"IF(Y70=\"Compression_MacNeil\",GE70,\"\")","v":""},null,{"$f":"IF(Y70=\"Compression_Wickert\",GE70,\"\")","v":""},null,{"$f":"IF(Y70=\"Découpe_B2\",GE70,\"\")","v":""},null,{"$f":"IF(Y70=\"Injection\",GE70,\"\")","v":""},null,{"$f":"IF(Y70=\"Finition\",GE70,\"\")","v":""},null,{"$f":"IF(Y70=\"Outillage\",GE70,\"\")","v":""},null,{"$f":"IF(Y70=\"Maintenance_TN\",GE70,\"\")","v":""},null,{"$f":"IF(Y70=\"Nettoyage\",GE70,\"\")","v":""},null,{"$f":"IF(Y70=\"Laboratoire\",GE70,\"\")","v":""},null,{"$f":"IF(Y70=\"AQ\",GE70,\"\")","v":""},null,{"$f":"IF(Y70=\"Saint_Germain\",GE70,\"\")","v":""},null,{"$f":"IF(Y70=\"SSE\",GE70,\"\")","v":""}]
[null,null,null,null,null,null,null,null,null,null,null,null,null,"Aprés-Midi",null,null,null,null,null,null,null,null,"Pays-Bas",null,null,null,"Manager/AM/Technicien",null,null,null,null,null,"Le fichier doit fonctionner bien maintenant",null,null,null,null,null,null,null,null,null,null,null,null,null,null,null,null,null,null,null,null,0,0,0,"","",67,null,{"$f":"IF(AL71=\"\",\"\",IF(AL71>=#REF!,\"x\",\"\"))","v":""},"","","","","","","","","","","","","","","","","","","","","","","","","","","","","","","","",null,"","","","","","","","","","","","","","","","",null,null,null,null,null,null,null,null,null,null,null,null,null,null,null,null,null,null,null,null,null,null,null,null,null,null,null,null,null,null,null,null,null,null,null,null,null,null,null,null,null,null,null,null,null,null,null,null,null,null,null,null,null,null,null,null,null,null,null,null,null,null,null,null,null,null,null,null,null,null,null,null,null,null,null,null,"","",null,"",null,"",null,"",null,"",null,"",null,"",null,"",null,"",null,"",null,"",null,"",null,"",null,"",null,""]
[null,null,null,null,null,null,null,null,null,null,null,null,null,"Aprés-Midi",null,null,null,null,null,null,null,null,"Pays-Bas",null,null,null,"Manager/AM/Technicien",null,null,null,null,null,"Le fichier doit fonctionner bien maintenant",null,null,null,null,null,null,null,null,null,null,null,null,null,null,null,null,null,null,null,null,0,0,0,"","",68,null,{"$f":"IF(AL72=\"\",\"\",IF(AL72>=#REF!,\"x\",\"\"))","v":""},"","","","","","","","","","","","","","","","","","","","","","","","","","","","","","","","",null,"","","","","","","","","","","","","","","","",null,null,null,null,null,null,null,null,null,null,null,null,null,null,null,null,null,null,null,null,null,null,null,null,null,null,null,null,null,null,null,null,null,null,null,null,null,null,null,null,null,null,null,null,null,null,null,null,null,null,null,null,null,null,null,null,null,null,null,null,null,null,null,null,null,null,null,null,null,null,null,null,null,null,null,null,"","",null,"",null,"",null,"",null,"",null,"",null,"",null,"",null,"",null,"",null,"",null,"",null,"",null,"",null,""]
[null,null,null,null,null,null,null,null,null,null,null,null,null,"",null,null,null,null,null,null,null,null,"Pays-Bas",null,null,null,"Manager/AM/Technicien",null,null,null,null,null,"Le fichier doit fonctionner bien maintenant",null,null,null,null,null,null,null,null,null,null,null,null,null,null,null,null,null,null,null,null,0,0,0,"","",69,null,{"$f":"IF(AL73=\"\",\"\",IF(AL73>=#REF!,\"x\",\"\"))","v":""},"","","","","","","","","","","","","","","","","","","","","","","","","","","","","","","","",null,"","","","","","","","","","","","","","","","",null,null,null,null,null,null,null,null,null,null,null,null,null,null,null,null,null,null,null,null,null,null,null,null,null,null,null,null,null,null,null,null,null,null,null,null,null,null,null,null,null,null,null,null,null,null,null,null,null,null,null,null,null,null,null,null,null,null,null,null,null,null,null,null,null,null,null,null,null,null,null,null,null,null,null,null,"","",null,"",null,"",null,"",null,"",null,"",null,"",null,"",null,"",null,"",null,"",null,"",null,"",null,"",null,""]
[null,null,null,null,null,null,null,null,null,null,null,null,null,"Jour",null,null,null,null,null,null,null,null,"Pays-Bas",null,null,null,"Manager/AM/Technicien",null,null,null,null,null,"Le fichier doit fonctionner bien maintenant",null,null,null,null,null,null,null,null,null,null,null,null,null,null,null,null,null,null,null,null,0,0,0,"","",70,null,{"$f":"IF(AL74=\"\",\"\",IF(AL74>=#REF!,\"x\",\"\"))","v":""},"","","","","","","","","","","","","","","","","","","","","","","","","","","","","","","","",null,"","","","","","","","","","","","","","","","",null,null,null,null,null,null,null,null,null,null,null,null,null,null,null,null,null,null,null,null,null,null,null,null,null,null,null,null,null,null,null,null,null,null,null,null,null,null,null,null,null,null,null,null,null,null,null,null,null,null,null,null,null,null,null,null,null,null,null,null,null,null,null,null,null,null,null,null,null,null,null,null,null,null,null,null,"","",null,"",null,"",null,"",null,"",null,"",null,"",null,"",null,"",null,"",null,"",null,"",null,"",null,"",null,""]
[null,null,null,null,null,null,null,null,null,null,null,null,null,"Jour",null,null,null,null,null,null,null,null,"l órdinateur",null,null,null,"Manager/AM/Technicien",null,null,null,null,null,"Test pour voir si ça marche",null,null,null,null,null,null,null,null,null,null,null,null,null,null,null,null,null,null,null,null,0,0,0,"","",71,null,{"$f":"IF(AL75=\"\",\"\",IF(AL75>=#REF!,\"x\",\"\"))","v":""},"","","","","","","","","","","","","","","","","","","","","","","","","","","","","","","","",null,"","","","","","","","","","","","","","","","",null,null,null,null,null,null,null,null,null,null,null,null,null,null,null,null,null,null,null,null,null,null,null,null,null,null,null,null,null,null,null,null,null,null,null,null,null,null,null,null,null,null,null,null,null,null,null,null,null,null,null,null,null,null,null,null,null,null,null,null,null,null,null,null,null,null,null,null,null,null,null,null,null,null,null,null,"","",null,"",null,"",null,"",null,"",null,"",null,"",null,"",null,"",null,"",null,"",null,"",null,"",null,"",null,""]
[null,null,null,null,null,null,null,null,null,null,null,null,null,"Matin",null,null,null,null,null,null,null,null,"l órdinateur",null,null,null,"Manager/AM/Technicien",null,null,null,null,null,"Test pour voir si ça marche",null,null,null,null,null,null,null,null,null,null,null,null,null,null,null,null,null,null,null,null,0,0,0,"","",72,null,{"$f":"IF(AL76=\"\",\"\",IF(AL76>=#REF!,\"x\",\"\"))","v":""},"","","","","","","","","","","","","","","","","","","","","","","","","","","","","","","","",null,"","","","","","","","","","","","","","","","",null,null,null,null,null,null,null,null,null,null,null,null,null,null,null,null,null,null,null,null,null,null,null,null,null,null,null,null,null,null,null,null,null,null,null,null,null,null,null,null,null,null,null,null,null,null,null,null,null,null,null,null,null,null,null,null,null,null,null,null,null,null,null,null,null,null,null,null,null,null,null,null,null,null,null,null,"","",null,"",null,"",null,"",null,"",null,"",null,"",null,"",null,"",null,"",null,"",null,"",null,"",null,"",null,""]
[null,null,null,null,null,null,null,null,null,null,null,null,null,"Jour",null,null,null,null,null,null,null,null,"ordinateur",null,null,null,"Manager/AM/Technicien",null,null,null,null,null,"Tester la fonccion de module VBA",null,null,null,null,null,null,null,null,null,null,null,null,null,null,null,null,null,null,null,null,0,0,0,"","",73,null,{"$f":"IF(AL77=\"\",\"\",IF(AL77>=#REF!,\"x\",\"\"))","v":""},"","","","","","","","","","","","","","","","","","","","","","","","","","","","","","","","",null,"","","","","","","","","","","","","","","","",null,null,null,null,null,null,null,null,null,null,null,null,null,null,null,null,null,null,null,null,null,null,null,null,null,null,null,null,null,null,null,null,null,null,null,null,null,null,null,null,null,null,null,null,null,null,null,null,null,null,null,null,null,null,null,null,null,null,null,null,null,null,null,null,null,null,null,null,null,null,null,null,null,null,null,null,"","",null,"",null,"",null,"",null,"",null,"",null,"",null,"",null,"",null,"",null,"",null,"",null,"",null,"",null,""]
[null,null,null,null,null,null,null,null,null,null,null,null,null,"Matin",null,null,null,null,null,null,null,null,"AfficheTousOnglets",null,null,null,"Manager/AM/Technicien",null,null,null,null,null,"code VBA etait pas bien ecrite pour chercher la signature electronique. Modifications fonccionn",null,null,null,null,null,null,null,null,null,null,null,null,null,null,null,null,null,null,null,null,0,0,0,"","",74,null,{"$f":"IF(AL78=\"\",\"\",IF(AL78>=#REF!,\"x\",\"\"))","v":""},"","","","","","","","","","","","","","","","","","","","","","","","","","","","","","","","",null,"","","","","","","","","","","","","","","","",null,null,null,null,null,null,null,null,null,null,null,null,null,null,null,null,null,null,null,null,null,null,null,null,null,null,null,null,null,null,null,null,null,null,null,null,null,null,null,null,null,null,null,null,null,null,null,null,null,null,null,null,null,null,null,null,null,null,null,null,null,null,null,null,null,null,null,null,null,null,null,null,null,null,null,null,"","",null,"",null,"",null,"",null,"",null,"",null,"",null,"",null,"",null,"",null,"",null,"",null,"",null,"",null,""]
[null,null,null,null,null,null,null,null,null,null,null,null,null,"Matin",null,null,null,null,null,null,null,null,"ficehanalyse",null,null,null,"Manager/AM/Technicien",null,null,null,null,null,"La code pour controler le nom du redacteur en sa signature electronique etait entiérement FAUX Il controlait pas le valeur justes !!!!!!",null,null,null,null,null,null,null,null,null,null,null,null,null,null,null,null,null,null,null,null,0,0,0,"","",75,null,{"$f":"IF(AL79=\"\",\"\",IF(AL79>=#REF!,\"x\",\"\"))","v":""},"","","","","","","","","","","","","","","","","","","","","","","","","","","","","","","","",null,"","","","","","","","","","","","","","","","",null,null,null,null,null,null,null,null,null,null,null,null,null,null,null,null,null,null,null,null,null,null,null,null,null,null,null,null,null,null,null,null,null,null,null,null,null,null,null,null,null,null,null,null,null,null,null,null,null,null,null,null,null,null,null,null,null,null,null,null,null,null,null,null,null,null,null,null,null,null,null,null,null,null,null,null,"","",null,"",null,"",null,"",null,"",null,"",null,"",null,"",null,"",null,"",null,"",null,"",null,"",null,"",null,""]
[null,null,null,null,null,null,null,null,null,null,null,null,null,"Jour",null,null,null,null,null,null,null,null,"",null,null,null,"",null,null,null,null,null,"",null,null,null,null,null,null,null,null,null,null,null,null,null,null,null,null,null,null,null,null,0,0,0,"","",76,null,{"$f":"IF(AL80=\"\",\"\",IF(AL80>=#REF!,\"x\",\"\"))","v":""},"","","","","","","","","","","","","","","","","","","","","","","","","","","","","","","","",null,"","","","","","","","","","","","","","","","",null,null,null,null,null,null,null,null,null,null,null,null,null,null,null,null,null,null,null,null,null,null,null,null,null,null,null,null,null,null,null,null,null,null,null,null,null,null,null,null,null,null,null,null,null,null,null,null,null,null,null,null,null,null,null,null,null,null,null,null,null,null,null,null,null,null,null,null,null,null,null,null,null,null,null,null,"","",null,"",null,"",null,"",null,"",null,"",null,"",null,"",null,"",null,"",null,"",null,"",null,"",null,"",null,""]
[null,null,null,null,null,null,null,null,null,null,null,null,null,"Matin",null,null,null,null,null,null,null,null,"",null,null,null,"Manager/AM/Technicien",null,null,null,null,null,"dfgdfg",null,null,null,null,null,null,null,null,null,null,null,null,null,null,null,null,null,null,null,null,0,0,0,"","",77,null,{"$f":"IF(AL81=\"\",\"\",IF(AL81>=#REF!,\"x\",\"\"))","v":""},"","","","","","","","","","","","","","","","","","","","","","","","","","","","","","","","",null,"","","","","","","","","","","","","","","","",null,null,null,null,null,null,null,null,null,null,null,null,null,null,null,null,null,null,null,null,null,null,null,null,null,null,null,null,null,null,null,null,null,null,null,null,null,null,null,null,null,null,null,null,null,null,null,null,null,null,null,null,null,null,null,null,null,null,null,null,null,null,null,null,null,null,null,null,null,null,null,null,null,null,null,null,"","",null,"",null,"",null,"",null,"",null,"",null,"",null,"",null,"",null,"",null,"",null,"",null,"",null,"",null,""]
[null,null,null,null,null,null,null,null,null,null,null,null,null,"Jour",null,null,null,null,null,null,null,null,"",null,null,null,"Rectif des plaques vertes",null,null,null,null,null,"gjhghjghj",null,null,null,null,null,null,null,null,null,null,null,null,null,null,null,null,null,null,null,null,0,0,0,"","",78,null,{"$f":"IF(AL82=\"\",\"\",IF(AL82>=#REF!,\"x\",\"\"))","v":""},"","","","","","","","","","","","","","","","","","","","","","","","","","","","","","","","",null,"","","","","","","","","","","","","","","","",null,null,null,null,null,null,null,null,null,null,null,null,null,null,null,null,null,null,null,null,null,null,null,null,null,null,null,null,null,null,null,null,null,null,null,null,null,null,null,null,null,null,null,null,null,null,null,null,null,null,null,null,null,null,null,null,null,null,null,null,null,null,null,null,null,null,null,null,null,null,null,null,null,null,null,null,"","",null,"",null,"",null,"",null,"",null,"",null,"",null,"",null,"",null,"",null,"",null,"",null,"",null,"",null,""]
[null,null,null,null,null,null,null,null,null,null,null,null,null,"Jour",null,null,null,null,null,null,null,null,"",null,null,null,"Sauteur",null,null,null,null,null,"fghfgfg",null,null,null,null,null,null,null,null,null,null,null,null,null,null,null,null,null,null,null,null,0,0,0,"","",79,null,{"$f":"IF(AL83=\"\",\"\",IF(AL83>=#REF!,\"x\",\"\"))","v":""},"","","","","","","","","","","","","","","","","","","","","","","","","","","","","","","","",null,"","","","","","","","","","","","","","","","",null,null,null,null,null,null,null,null,null,null,null,null,null,null,null,null,null,null,null,null,null,null,null,null,null,null,null,null,null,null,null,null,null,null,null,null,null,null,null,null,null,null,null,null,null,null,null,null,null,null,null,null,null,null,null,null,null,null,null,null,null,null,null,null,null,null,null,null,null,null,null,null,null,null,null,null,"","",null,"",null,"",null,"",null,"",null,"",null,"",null,"",null,"",null,"",null,"",null,"",null,"",null,"",null,""]
[null,null,null,null,null,null,null,null,null,null,null,null,null,"Jour",null,null,null,null,null,null,null,null,"",null,null,null,"Manager/AM/Technicien",null,null,null,null,null,"hfdhfg",null,null,null,null,null,null,null,null,null,null,null,null,null,null,null,null,null,null,null,null,0,0,0,"","",80,null,{"$f":"IF(AL84=\"\",\"\",IF(AL84>=#REF!,\"x\",\"\"))","v":""},"","","","","","","","","","","","","","","","","","","","","","","","","","","","","","","","",null,"","","","","","","","","","","","","","","","",null,null,null,null,null,null,null,null,null,null,null,null,null,null,null,null,null,null,null,null,null,null,null,null,null,null,null,null,null,null,null,null,null,null,null,null,null,null,null,null,null,null,null,null,null,null,null,null,null,null,null,null,null,null,null,null,null,null,null,null,null,null,null,null,null,null,null,null,null,null,null,null,null,null,null,null,"","",null,"",null,"",null,"",null,"",null,"",null,"",null,"",null,"",null,"",null,"",null,"",null,"",null,"",null,""]
[null,null,null,null,null,null,null,null,null,null,null,null,null,"Jour",null,null,null,null,null,null,null,null,"",null,null,null,"Presseur",null,null,null,null,null,"gfhg",null,null,null,null,null,null,null,null,null,null,null,null,null,null,null,null,null,null,null,null,0,0,0,"","",81,null,{"$f":"IF(AL85=\"\",\"\",IF(AL85>=#REF!,\"x\",\"\"))","v":""},"","","","","","","","","","","","","","","","","","","","","","","","","","","","","","","","",null,"","","","","","","","","","","","","","","","",null,null,null,null,null,null,null,null,null,null,null,null,null,null,null,null,null,null,null,null,null,null,null,null,null,null,null,null,null,null,null,null,null,null,null,null,null,null,null,null,null,null,null,null,null,null,null,null,null,null,null,null,null,null,null,null,null,null,null,null,null,null,null,null,null,null,null,null,null,null,null,null,null,null,null,null,"","",null,"",null,"",null,"",null,"",null,"",null,"",null,"",null,"",null,"",null,"",null,"",null,"",null,"",null,""]
[null,null,null,null,null,null,null,null,null,null,null,null,null,"Jour",null,null,null,null,null,null,null,null,"",null,null,null,"Rectif des plaques vertes",null,null,null,null,null,"bvnvbn",null,null,null,null,null,null,null,null,null,null,null,null,null,null,null,null,null,null,null,null,0,0,0,"","",82,null,{"$f":"IF(AL86=\"\",\"\",IF(AL86>=#REF!,\"x\",\"\"))","v":""},"","","","","","","","","","","","","","","","","","","","","","","","","","","","","","","","",null,"","","","","","","","","","","","","","","","",null,null,null,null,null,null,null,null,null,null,null,null,null,null,null,null,null,null,null,null,null,null,null,null,null,null,null,null,null,null,null,null,null,null,null,null,null,null,null,null,null,null,null,null,null,null,null,null,null,null,null,null,null,null,null,null,null,null,null,null,null,null,null,null,null,null,null,null,null,null,null,null,null,null,null,null,"","",null,"",null,"",null,"",null,"",null,"",null,"",null,"",null,"",null,"",null,"",null,"",null,"",null,"",null,""]
[null,null,null,null,null,null,null,null,null,null,null,null,null,"Matin",null,null,null,null,null,null,null,null,"",null,null,null,"Rectif des plaques vertes",null,null,null,null,null,"fdgfdg",null,null,null,null,null,null,null,null,null,null,null,null,null,null,null,null,null,null,null,null,0,0,0,"","",83,null,{"$f":"IF(AL87=\"\",\"\",IF(AL87>=#REF!,\"x\",\"\"))","v":""},"","","","","","","","","","","","","","","","","","","","","","","","","","","","","","","","",null,"","","","","","","","","","","","","","","","",null,null,null,null,null,null,null,null,null,null,null,null,null,null,null,null,null,null,null,null,null,null,null,null,null,null,null,null,null,null,null,null,null,null,null,null,null,null,null,null,null,null,null,null,null,null,null,null,null,null,null,null,null,null,null,null,null,null,null,null,null,null,null,null,null,null,null,null,null,null,null,null,null,null,null,null,"","",null,"",null,"",null,"",null,"",null,"",null,"",null,"",null,"",null,"",null,"",null,"",null,"",null,"",null,""]
[null,null,null,null,null,null,null,null,null,null,null,null,null,"Matin",null,null,null,null,null,null,null,null,"",null,null,null,"Manager/AM/Technicien",null,null,null,null,null,"fghfghfgh",null,null,null,null,null,null,null,null,null,null,null,null,null,null,null,null,null,null,null,null,0,0,0,"","",84,null,{"$f":"IF(AL88=\"\",\"\",IF(AL88>=#REF!,\"x\",\"\"))","v":""},"","","","","","","","","","","","","","","","","","","","","","","","","","","","","","","","",null,"","","","","","","","","","","","","","","","",null,null,null,null,null,null,null,null,null,null,null,null,null,null,null,null,null,null,null,null,null,null,null,null,null,null,null,null,null,null,null,null,null,null,null,null,null,null,null,null,null,null,null,null,null,null,null,null,null,null,null,null,null,null,null,null,null,null,null,null,null,null,null,null,null,null,null,null,null,null,null,null,null,null,null,null,"","",null,"",null,"",null,"",null,"",null,"",null,"",null,"",null,"",null,"",null,"",null,"",null,"",null,"",null,""]
[null,null,null,null,null,null,null,null,null,null,null,null,null,"Jour",null,null,null,null,null,null,null,null,"",null,null,null,"Presseur",null,null,null,null,null,"test1",null,null,null,null,null,null,null,null,null,null,null,null,null,null,null,null,null,null,null,null,0,0,0,"","",85,null,{"$f":"IF(AL89=\"\",\"\",IF(AL89>=#REF!,\"x\",\"\"))","v":""},"","","","","","","","","","","","","","","","","","","","","","","","","","","","","","","","",null,"","","","","","","","","","","","","","","","",null,null,null,null,null,null,null,null,null,null,null,null,null,null,null,null,null,null,null,null,null,null,null,null,null,null,null,null,null,null,null,null,null,null,null,null,null,null,null,null,null,null,null,null,null,null,null,null,null,null,null,null,null,null,null,null,null,null,null,null,null,null,null,null,null,null,null,null,null,null,null,null,null,null,null,null,"","",null,"",null,"",null,"",null,"",null,"",null,"",null,"",null,"",null,"",null,"",null,"",null,"",null,"",null,""]
[null,null,null,null,null,null,null,null,null,null,null,null,null,"Jour",null,null,null,null,null,null,null,null,"",null,null,null,"Activités annexes",null,null,null,null,null,"jhgjghjhg",null,null,null,null,null,null,null,null,null,null,null,null,null,null,null,null,null,null,null,null,0,0,0,"","",86,null,{"$f":"IF(AL90=\"\",\"\",IF(AL90>=#REF!,\"x\",\"\"))","v":""},"","","","","","","","","","","","","","","","","","","","","","","","","","","","","","","","",null,"","","","","","","","","","","","","","","","",null,null,null,null,null,null,null,null,null,null,null,null,null,null,null,null,null,null,null,null,null,null,null,null,null,null,null,null,null,null,null,null,null,null,null,null,null,null,null,null,null,null,null,null,null,null,null,null,null,null,null,null,null,null,null,null,null,null,null,null,null,null,null,null,null,null,null,null,null,null,null,null,null,null,null,null,"","",null,"",null,"",null,"",null,"",null,"",null,"",null,"",null,"",null,"",null,"",null,"",null,"",null,"",null,""]
[null,null,null,null,null,null,null,null,null,null,null,null,null,"Matin",null,null,null,null,null,null,null,null,"",null,null,null,"Rectif des plaques vertes",null,null,null,null,null,"fdfgfdg",null,null,null,null,null,null,null,null,null,null,null,null,null,null,null,null,null,null,null,null,0,0,0,"","",87,null,{"$f":"IF(AL91=\"\",\"\",IF(AL91>=#REF!,\"x\",\"\"))","v":""},"","","","","","","","","","","","","","","","","","","","","","","","","","","","","","","","",null,"","","","","","","","","","","","","","","","",null,null,null,null,null,null,null,null,null,null,null,null,null,null,null,null,null,null,null,null,null,null,null,null,null,null,null,null,null,null,null,null,null,null,null,null,null,null,null,null,null,null,null,null,null,null,null,null,null,null,null,null,null,null,null,null,null,null,null,null,null,null,null,null,null,null,null,null,null,null,null,null,null,null,null,null,"","",null,"",null,"",null,"",null,"",null,"",null,"",null,"",null,"",null,"",null,"",null,"",null,"",null,"",null,""]
[null,null,null,null,null,null,null,null,null,null,null,null,null,"Matin",null,null,null,null,null,null,null,null,"",null,null,null,"Sauteur",null,null,null,null,null,"ghjghjghj",null,null,null,null,null,null,null,null,null,null,null,null,null,null,null,null,null,null,null,null,0,0,0,"","",88,null,{"$f":"IF(AL92=\"\",\"\",IF(AL92>=#REF!,\"x\",\"\"))","v":""},"","","","","","","","","","","","","","","","","","","","","","","","","","","","","","","","",null,"","","","","","","","","","","","","","","","",null,null,null,null,null,null,null,null,null,null,null,null,null,null,null,null,null,null,null,null,null,null,null,null,null,null,null,null,null,null,null,null,null,null,null,null,null,null,null,null,null,null,null,null,null,null,null,null,null,null,null,null,null,null,null,null,null,null,null,null,null,null,null,null,null,null,null,null,null,null,null,null,null,null,null,null,"","",null,"",null,"",null,"",null,"",null,"",null,"",null,"",null,"",null,"",null,"",null,"",null,"",null,"",null,""]
[null,null,null,null,null,null,null,null,null,null,null,null,null,"Matin",null,null,null,null,null,null,null,null,"",null,null,null,"Presseur",null,null,null,null,null,"ghfghfg",null,null,null,null,null,null,null,null,null,null,null,null,null,null,null,null,null,null,null,null,0,0,0,"","",89,null,{"$f":"IF(AL93=\"\",\"\",IF(AL93>=#REF!,\"x\",\"\"))","v":""},"","","","","","","","","","","","","","","","","","","","","","","","","","","","","","","","",null,"","","","","","","","","","","","","","","","",null,null,null,null,null,null,null,null,null,null,null,null,null,null,null,null,null,null,null,null,null,null,null,null,null,null,null,null,null,null,null,null,null,null,null,null,null,null,null,null,null,null,null,null,null,null,null,null,null,null,null,null,null,null,null,null,null,null,null,null,null,null,null,null,null,null,null,null,null,null,null,null,null,null,null,null,"","",null,"",null,"",null,"",null,"",null,"",null,"",null,"",null,"",null,"",null,"",null,"",null,"",null,"",null,""]
[null,null,null,null,null,null,null,null,null,null,null,null,null,"Matin",null,null,null,null,null,null,null,null,"",null,null,null,"Nettoyage presses MacNeil",null,null,null,null,null,"test1",null,null,null,null,null,null,null,null,null,null,null,null,null,null,null,null,null,null,null,null,0,0,0,"","",90,null,{"$f":"IF(AL94=\"\",\"\",IF(AL94>=#REF!,\"x\",\"\"))","v":""},"","","","","","","","","","","","","","","","","","","","","","","","","","","","","","","","",null,"","","","","","","","","","","","","","","","",null,null,null,null,null,null,null,null,null,null,null,null,null,null,null,null,null,null,null,null,null,null,null,null,null,null,null,null,null,null,null,null,null,null,null,null,null,null,null,null,null,null,null,null,null,null,null,null,null,null,null,null,null,null,null,null,null,null,null,null,null,null,null,null,null,null,null,null,null,null,null,null,null,null,null,null,"","",null,"",null,"",null,"",null,"",null,"",null,"",null,"",null,"",null,"",null,"",null,"",null,"",null,"",null,""]
[null,null,null,null,null,null,null,null,null,null,null,null,null,"Matin",null,null,null,null,null,null,null,null,"",null,null,null,"Sauteur",null,null,null,null,null,"gdgdf",null,null,null,null,null,null,null,null,null,null,null,null,null,null,null,null,null,null,null,null,0,0,0,"","",91,null,{"$f":"IF(AL95=\"\",\"\",IF(AL95>=#REF!,\"x\",\"\"))","v":""},"","","","","","","","","","","","","","","","","","","","","","","","","","","","","","","","",null,"","","","","","","","","","","","","","","","",null,null,null,null,null,null,null,null,null,null,null,null,null,null,null,null,null,null,null,null,null,null,null,null,null,null,null,null,null,null,null,null,null,null,null,null,null,null,null,null,null,null,null,null,null,null,null,null,null,null,null,null,null,null,null,null,null,null,null,null,null,null,null,null,null,null,null,null,null,null,null,null,null,null,null,null,"","",null,"",null,"",null,"",null,"",null,"",null,"",null,"",null,"",null,"",null,"",null,"",null,"",null,"",null,""]
[null,null,null,null,null,null,null,null,null,null,null,null,null,"Matin",null,null,null,null,null,null,null,null,"",null,null,null,"Sauteur",null,null,null,null,null,"hjghjgj",null,null,null,null,null,null,null,null,null,null,null,null,null,null,null,null,null,null,null,null,0,0,0,"","",92,null,{"$f":"IF(AL96=\"\",\"\",IF(AL96>=#REF!,\"x\",\"\"))","v":""},"","","","","","","","","","","","","","","","","","","","","","","","","","","","","","","","",null,"","","","","","","","","","","","","","","","",null,null,null,null,null,null,null,null,null,null,null,null,null,null,null,null,null,null,null,null,null,null,null,null,null,null,null,null,null,null,null,null,null,null,null,null,null,null,null,null,null,null,null,null,null,null,null,null,null,null,null,null,null,null,null,null,null,null,null,null,null,null,null,null,null,null,null,null,null,null,null,null,null,null,null,null,"","",null,"",null,"",null,"",null,"",null,"",null,"",null,"",null,"",null,"",null,"",null,"",null,"",null,"",null,""]
[null,null,null,null,null,null,null,null,null,null,null,null,null,"Matin",null,null,null,null,null,null,null,null,"",null,null,null,"Manager/AM/Technicien",null,null,null,null,null,"jkhjk",null,null,null,null,null,null,null,null,null,null,null,null,null,null,null,null,null,null,null,null,0,0,0,"","",93,null,{"$f":"IF(AL97=\"\",\"\",IF(AL97>=#REF!,\"x\",\"\"))","v":""},"","","","","","","","","","","","","","","","","","","","","","","","","","","","","","","","",null,"","","","","","","","","","","","","","","","",null,null,null,null,null,null,null,null,null,null,null,null,null,null,null,null,null,null,null,null,null,null,null,null,null,null,null,null,null,null,null,null,null,null,null,null,null,null,null,null,null,null,null,null,null,null,null,null,null,null,null,null,null,null,null,null,null,null,null,null,null,null,null,null,null,null,null,null,null,null,null,null,null,null,null,null,"","",null,"",null,"",null,"",null,"",null,"",null,"",null,"",null,"",null,"",null,"",null,"",null,"",null,"",null,""]
[null,null,null,null,null,null,null,null,null,null,null,null,null,"Jour",null,null,null,null,null,null,null,null,"",null,null,null,"Presseur",null,null,null,null,null,"test",null,null,null,null,null,null,null,null,null,null,null,null,null,null,null,null,null,null,null,null,0,0,0,"","",94,null,{"$f":"IF(AL98=\"\",\"\",IF(AL98>=#REF!,\"x\",\"\"))","v":""},"","","","","","","","","","","","","","","","","","","","","","","","","","","","","","","","",null,"","","","","","","","","","","","","","","","",null,null,null,null,null,null,null,null,null,null,null,null,null,null,null,null,null,null,null,null,null,null,null,null,null,null,null,null,null,null,null,null,null,null,null,null,null,null,null,null,null,null,null,null,null,null,null,null,null,null,null,null,null,null,null,null,null,null,null,null,null,null,null,null,null,null,null,null,null,null,null,null,null,null,null,null,"","",null,"",null,"",null,"",null,"",null,"",null,"",null,"",null,"",null,"",null,"",null,"",null,"",null,"",null,""]
[null,null,null,null,null,null,null,null,null,null,null,null,null,null,null,null,null,null,null,null,null,null,"",null,null,null,"Sauteur",null,null,null,null,null,"fghgfh",null,null,null,null,null,null,null,null,null,null,null,null,null,null,null,null,null,null,null,null,0,0,0,"","",95,null,{"$f":"IF(AL99=\"\",\"\",IF(AL99>=#REF!,\"x\",\"\"))","v":""},"","","","","","","","","","","","","","","","","","","","","","","","","","","","","","","","",null,"","","","","","","","","","","","","","","","",null,null,null,null,null,null,null,null,null,null,null,null,null,null,null,null,null,null,null,null,null,null,null,null,null,null,null,null,null,null,null,null,null,null,null,null,null,null,null,null,null,null,null,null,null,null,null,null,null,null,null,null,null,null,null,null,null,null,null,null,null,null,null,null,null,null,null,null,null,null,null,null,null,null,null,null,"","",null,"",null,"",null,"",null,"",null,"",null,"",null,"",null,"",null,"",null,"",null,"",null,"",null,"",null,""]
[null,null,null,null,null,null,null,null,null,null,null,null,null,null,null,null,null,null,null,null,null,null,"",null,null,null,"Presseur",null,null,null,null,null,"hgfgh",null,null,null,null,null,null,null,null,null,null,null,null,null,null,null,null,null,null,null,null,0,0,0,"","",96,null,{"$f":"IF(AL100=\"\",\"\",IF(AL100>=#REF!,\"x\",\"\"))","v":""},"","","","","","","","","","","","","","","","","","","","","","","","","","","","","","","","",null,"","","","","","","","","","","","","","","","",null,null,null,null,null,null,null,null,null,null,null,null,null,null,null,null,null,null,null,null,null,null,null,null,null,null,null,null,null,null,null,null,null,null,null,null,null,null,null,null,null,null,null,null,null,null,null,null,null,null,null,null,null,null,null,null,null,null,null,null,null,null,null,null,null,null,null,null,null,null,null,null,null,null,null,null,"","",null,"",null,"",null,"",null,"",null,"",null,"",null,"",null,"",null,"",null,"",null,"",null,"",null,"",null,""]
[null,null,null,null,null,null,null,null,null,null,null,null,null,null,null,null,null,null,null,null,null,null,"",null,null,null,"Rectif des plaques vertes",null,null,null,null,null,"fghjghj",null,null,null,null,null,null,null,null,null,null,null,null,null,null,null,null,null,null,null,null,0,0,0,"","",97,null,{"$f":"IF(AL101=\"\",\"\",IF(AL101>=#REF!,\"x\",\"\"))","v":""},"","","","","","","","","","","","","","","","","","","","","","","","","","","","","","","","",null,"","","","","","","","","","","","","","","","",null,null,null,null,null,null,null,null,null,null,null,null,null,null,null,null,null,null,null,null,null,null,null,null,null,null,null,null,null,null,null,null,null,null,null,null,null,null,null,null,null,null,null,null,null,null,null,null,null,null,null,null,null,null,null,null,null,null,null,null,null,null,null,null,null,null,null,null,null,null,null,null,null,null,null,null,"","",null,"",null,"",null,"",null,"",null,"",null,"",null,"",null,"",null,"",null,"",null,"",null,"",null,"",null,""]
[null,null,null,null,null,null,null,null,null,null,null,null,null,null,null,null,null,null,null,null,null,null,"",null,null,null,"Presseur",null,null,null,null,null,"jkhjkhjk",null,null,null,null,null,null,null,null,null,null,null,null,null,null,null,null,null,null,null,null,0,0,0,"","",98,null,{"$f":"IF(AL102=\"\",\"\",IF(AL102>=#REF!,\"x\",\"\"))","v":""},"","","","","","","","","","","","","","","","","","","","","","","","","","","","","","","","",null,"","","","","","","","","","","","","","","","",null,null,null,null,null,null,null,null,null,null,null,null,null,null,null,null,null,null,null,null,null,null,null,null,null,null,null,null,null,null,null,null,null,null,null,null,null,null,null,null,null,null,null,null,null,null,null,null,null,null,null,null,null,null,null,null,null,null,null,null,null,null,null,null,null,null,null,null,null,null,null,null,null,null,null,null,"","",null,"",null,"",null,"",null,"",null,"",null,"",null,"",null,"",null,"",null,"",null,"",null,"",null,"",null,""]
[null,null,null,null,null,null,null,null,null,null,null,null,null,null,null,null,null,null,null,null,null,null,"",null,null,null,"Manager/AM/Technicien",null,null,null,null,null,"jghjg",null,null,null,null,null,null,null,null,null,null,null,null,null,null,null,null,null,null,null,null,0,0,0,"","",99,null,{"$f":"IF(AL103=\"\",\"\",IF(AL103>=#REF!,\"x\",\"\"))","v":""},"","","","","","","","","","","","","","","","","","","","","","","","","","","","","","","","",null,"","","","","","","","","","","","","","","","",null,null,null,null,null,null,null,null,null,null,null,null,null,null,null,null,null,null,null,null,null,null,null,null,null,null,null,null,null,null,null,null,null,null,null,null,null,null,null,null,null,null,null,null,null,null,null,null,null,null,null,null,null,null,null,null,null,null,null,null,null,null,null,null,null,null,null,null,null,null,null,null,null,null,null,null,"","",null,"",null,"",null,"",null,"",null,"",null,"",null,"",null,"",null,"",null,"",null,"",null,"",null,"",null,""]
[null,null,null,null,null,null,null,null,null,null,null,null,null,null,null,null,null,null,null,null,null,null,"",null,null,null,"Manager/AM/Technicien",null,null,null,null,null,"hggfhgf",null,null,null,null,null,null,null,null,null,null,null,null,null,null,null,null,null,null,null,null,0,0,0,"","",100,null,{"$f":"IF(AL104=\"\",\"\",IF(AL104>=#REF!,\"x\",\"\"))","v":""},"","","","","","","","","","","","","","","","","","","","","","","","","","","","","","","","",null,"","","","","","","","","","","","","","","","",null,null,null,null,null,null,null,null,null,null,null,null,null,null,null,null,null,null,null,null,null,null,null,null,null,null,null,null,null,null,null,null,null,null,null,null,null,null,null,null,null,null,null,null,null,null,null,null,null,null,null,null,null,null,null,null,null,null,null,null,null,null,null,null,null,null,null,null,null,null,null,null,null,null,null,null,"","",null,"",null,"",null,"",null,"",null,"",null,"",null,"",null,"",null,"",null,"",null,"",null,"",null,"",null,""]
[null,null,null,null,null,null,null,null,null,null,null,null,null,null,null,null,null,null,null,null,null,null,"",null,null,null,"Presseur",null,null,null,null,null,"gfhfgh",null,null,null,null,null,null,null,null,null,null,null,null,null,null,null,null,null,null,null,null,0,0,0,"","",101,null,{"$f":"IF(AL105=\"\",\"\",IF(AL105>=#REF!,\"x\",\"\"))","v":""},"","","","","","","","","","","","","","","","","","","","","","","","","","","","","","","","",null,"","","","","","","","","","","","","","","","",null,null,null,null,null,null,null,null,null,null,null,null,null,null,null,null,null,null,null,null,null,null,null,null,null,null,null,null,null,null,null,null,null,null,null,null,null,null,null,null,null,null,null,null,null,null,null,null,null,null,null,null,null,null,null,null,null,null,null,null,null,null,null,null,null,null,null,null,null,null,null,null,null,null,null,null,"","",null,"",null,"",null,"",null,"",null,"",null,"",null,"",null,"",null,"",null,"",null,"",null,"",null,"",null,""]
[null,null,null,null,null,null,null,null,null,null,null,null,null,null,null,null,null,null,null,null,null,null,null,null,null,null,null,null,null,null,null,null,null,null,null,null,null,null,null,null,null,null,null,null,null,null,null,null,null,null,null,null,null,0,0,0,"","",102,null,{"$f":"IF(AL106=\"\",\"\",IF(AL106>=#REF!,\"x\",\"\"))","v":""},"","","","","","","","","","","","","","","","","","","","","","","","","","","","","","","","",null,"","","","","","","","","","","","","","","","",null,null,null,null,null,null,null,null,null,null,null,null,null,null,null,null,null,null,null,null,null,null,null,null,null,null,null,null,null,null,null,null,null,null,null,null,null,null,null,null,null,null,null,null,null,null,null,null,null,null,null,null,null,null,null,null,null,null,null,null,null,null,null,null,null,null,null,null,null,null,null,null,null,null,null,null,"","",null,"",null,"",null,"",null,"",null,"",null,"",null,"",null,"",null,"",null,"",null,"",null,"",null,"",null,""]
[null,null,null,null,null,null,null,null,null,null,null,null,null,null,null,null,null,null,null,null,null,null,null,null,null,null,null,null,null,null,null,null,null,null,null,null,null,null,null,null,null,null,null,null,null,null,null,null,null,null,null,null,null,0,0,0,"","",103,null,{"$f":"IF(AL107=\"\",\"\",IF(AL107>=#REF!,\"x\",\"\"))","v":""},"","","","","","","","","","","","","","","","","","","","","","","","","","","","","","","","",null,"","","","","","","","","","","","","","","","",null,null,null,null,null,null,null,null,null,null,null,null,null,null,null,null,null,null,null,null,null,null,null,null,null,null,null,null,null,null,null,null,null,null,null,null,null,null,null,null,null,null,null,null,null,null,null,null,null,null,null,null,null,null,null,null,null,null,null,null,null,null,null,null,null,null,null,null,null,null,null,null,null,null,null,null,"","",null,"",null,"",null,"",null,"",null,"",null,"",null,"",null,"",null,"",null,"",null,"",null,"",null,"",null,""]
[null,null,null,null,null,null,null,null,null,null,null,null,null,null,null,null,null,null,null,null,null,null,null,null,null,null,null,null,null,null,null,null,null,null,null,null,null,null,null,null,null,null,null,null,null,null,null,null,null,null,null,null,null,0,0,0,"","",104,null,{"$f":"IF(AL108=\"\",\"\",IF(AL108>=#REF!,\"x\",\"\"))","v":""},"","","","","","","","","","","","","","","","","","","","","","","","","","","","","","","","",null,"","","","","","","","","","","","","","","","",null,null,null,null,null,null,null,null,null,null,null,null,null,null,null,null,null,null,null,null,null,null,null,null,null,null,null,null,null,null,null,null,null,null,null,null,null,null,null,null,null,null,null,null,null,null,null,null,null,null,null,null,null,null,null,null,null,null,null,null,null,null,null,null,null,null,null,null,null,null,null,null,null,null,null,null,"","",null,"",null,"",null,"",null,"",null,"",null,"",null,"",null,"",null,"",null,"",null,"",null,"",null,"",null,""]
[null,null,null,null,null,null,null,null,null,null,null,null,null,null,null,null,null,null,null,null,null,null,null,null,null,null,null,null,null,null,null,null,null,null,null,null,null,null,null,null,null,null,null,null,null,null,null,null,null,null,null,null,null,0,0,0,"","",105,null,{"$f":"IF(AL109=\"\",\"\",IF(AL109>=#REF!,\"x\",\"\"))","v":""},"","","","","","","","","","","","","","","","","","","","","","","","","","","","","","","","",null,"","","","","","","","","","","","","","","","",null,null,null,null,null,null,null,null,null,null,null,null,null,null,null,null,null,null,null,null,null,null,null,null,null,null,null,null,null,null,null,null,null,null,null,null,null,null,null,null,null,null,null,null,null,null,null,null,null,null,null,null,null,null,null,null,null,null,null,null,null,null,null,null,null,null,null,null,null,null,null,null,null,null,null,null,"","",null,"",null,"",null,"",null,"",null,"",null,"",null,"",null,"",null,"",null,"",null,"",null,"",null,"",null,""]
[null,null,null,null,null,null,null,null,null,null,null,null,null,null,null,null,null,null,null,null,null,null,null,null,null,null,null,null,null,null,null,null,null,null,null,null,null,null,null,null,null,null,null,null,null,null,null,null,null,null,null,null,null,0,0,0,"","",106,null,{"$f":"IF(AL110=\"\",\"\",IF(AL110>=#REF!,\"x\",\"\"))","v":""},"","","","","","","","","","","","","","","","","","","","","","","","","","","","","","","","",null,"","","","","","","","","","","","","","","","",null,null,null,null,null,null,null,null,null,null,null,null,null,null,null,null,null,null,null,null,null,null,null,null,null,null,null,null,null,null,null,null,null,null,null,null,null,null,null,null,null,null,null,null,null,null,null,null,null,null,null,null,null,null,null,null,null,null,null,null,null,null,null,null,null,null,null,null,null,null,null,null,null,null,null,null,"","",null,"",null,"",null,"",null,"",null,"",null,"",null,"",null,"",null,"",null,"",null,"",null,"",null,"",null,""]
[null,null,null,null,null,null,null,null,null,null,null,null,null,null,null,null,null,null,null,null,null,null,null,null,null,null,null,null,null,null,null,null,null,null,null,null,null,null,null,null,null,null,null,null,null,null,null,null,null,null,null,null,null,0,0,0,"","",107,null,{"$f":"IF(AL111=\"\",\"\",IF(AL111>=#REF!,\"x\",\"\"))","v":""},"","","","","","","","","","","","","","","","","","","","","","","","","","","","","","","","",null,"","","","","","","","","","","","","","","","",null,null,null,null,null,null,null,null,null,null,null,null,null,null,null,null,null,null,null,null,null,null,null,null,null,null,null,null,null,null,null,null,null,null,null,null,null,null,null,null,null,null,null,null,null,null,null,null,null,null,null,null,null,null,null,null,null,null,null,null,null,null,null,null,null,null,null,null,null,null,null,null,null,null,null,null,"","",null,"",null,"",null,"",null,"",null,"",null,"",null,"",null,"",null,"",null,"",null,"",null,"",null,"",null,""]
[null,null,null,null,null,null,null,null,null,null,null,null,null,null,null,null,null,null,null,null,null,null,null,null,null,null,null,null,null,null,null,null,null,null,null,null,null,null,null,null,null,null,null,null,null,null,null,null,null,null,null,null,null,0,0,0,"","",108,null,{"$f":"IF(AL112=\"\",\"\",IF(AL112>=#REF!,\"x\",\"\"))","v":""},"","","","","","","","","","","","","","","","","","","","","","","","","","","","","","","","",null,"","","","","","","","","","","","","","","","",null,null,null,null,null,null,null,null,null,null,null,null,null,null,null,null,null,null,null,null,null,null,null,null,null,null,null,null,null,null,null,null,null,null,null,null,null,null,null,null,null,null,null,null,null,null,null,null,null,null,null,null,null,null,null,null,null,null,null,null,null,null,null,null,null,null,null,null,null,null,null,null,null,null,null,null,"","",null,"",null,"",null,"",null,"",null,"",null,"",null,"",null,"",null,"",null,"",null,"",null,"",null,"",null,""]
[null,null,null,null,null,null,null,null,null,null,null,null,null,null,null,null,null,null,null,null,null,null,null,null,null,null,null,null,null,null,null,null,null,null,null,null,null,null,null,null,null,null,null,null,null,null,null,null,null,null,null,null,null,0,0,0,"","",109,null,{"$f":"IF(AL113=\"\",\"\",IF(AL113>=#REF!,\"x\",\"\"))","v":""},"","","","","","","","","","","","","","","","","","","","","","","","","","","","","","","","",null,"","","","","","","","","","","","","","","","",null,null,null,null,null,null,null,null,null,null,null,null,null,null,null,null,null,null,null,null,null,null,null,null,null,null,null,null,null,null,null,null,null,null,null,null,null,null,null,null,null,null,null,null,null,null,null,null,null,null,null,null,null,null,null,null,null,null,null,null,null,null,null,null,null,null,null,null,null,null,null,null,null,null,null,null,"","",null,"",null,"",null,"",null,"",null,"",null,"",null,"",null,"",null,"",null,"",null,"",null,"",null,"",null,""]
[null,null,null,null,null,null,null,null,null,null,null,null,null,null,null,null,null,null,null,null,null,null,null,null,null,null,null,null,null,null,null,null,null,null,null,null,null,null,null,null,null,null,null,null,null,null,null,null,null,null,null,null,null,0,0,0,"","",110,null,{"$f":"IF(AL114=\"\",\"\",IF(AL114>=#REF!,\"x\",\"\"))","v":""},"","","","","","","","","","","","","","","","","","","","","","","","","","","","","","","","",null,"","","","","","","","","","","","","","","","",null,null,null,null,null,null,null,null,null,null,null,null,null,null,null,null,null,null,null,null,null,null,null,null,null,null,null,null,null,null,null,null,null,null,null,null,null,null,null,null,null,null,null,null,null,null,null,null,null,null,null,null,null,null,null,null,null,null,null,null,null,null,null,null,null,null,null,null,null,null,null,null,null,null,null,null,"","",null,"",null,"",null,"",null,"",null,"",null,"",null,"",null,"",null,"",null,"",null,"",null,"",null,"",null,""]
[null,null,null,null,null,null,null,null,null,null,null,null,null,null,null,null,null,null,null,null,null,null,null,null,null,null,null,null,null,null,null,null,null,null,null,null,null,null,null,null,null,null,null,null,null,null,null,null,null,null,null,null,null,0,0,0,"","",111,null,{"$f":"IF(AL115=\"\",\"\",IF(AL115>=#REF!,\"x\",\"\"))","v":""},"","","","","","","","","","","","","","","","","","","","","","","","","","","","","","","","",null,"","","","","","","","","","","","","","","","",null,null,null,null,null,null,null,null,null,null,null,null,null,null,null,null,null,null,null,null,null,null,null,null,null,null,null,null,null,null,null,null,null,null,null,null,null,null,null,null,null,null,null,null,null,null,null,null,null,null,null,null,null,null,null,null,null,null,null,null,null,null,null,null,null,null,null,null,null,null,null,null,null,null,null,null,"","",null,"",null,"",null,"",null,"",null,"",null,"",null,"",null,"",null,"",null,"",null,"",null,"",null,"",null,""]
[null,null,null,null,null,null,null,null,null,null,null,null,null,null,null,null,null,null,null,null,null,null,null,null,null,null,null,null,null,null,null,null,null,null,null,null,null,null,null,null,null,null,null,null,null,null,null,null,null,null,null,null,null,0,0,0,"","",112,null,{"$f":"IF(AL116=\"\",\"\",IF(AL116>=#REF!,\"x\",\"\"))","v":""},"","","","","","","","","","","","","","","","","","","","","","","","","","","","","","","","",null,"","","","","","","","","","","","","","","","",null,null,null,null,null,null,null,null,null,null,null,null,null,null,null,null,null,null,null,null,null,null,null,null,null,null,null,null,null,null,null,null,null,null,null,null,null,null,null,null,null,null,null,null,null,null,null,null,null,null,null,null,null,null,null,null,null,null,null,null,null,null,null,null,null,null,null,null,null,null,null,null,null,null,null,null,"","",null,"",null,"",null,"",null,"",null,"",null,"",null,"",null,"",null,"",null,"",null,"",null,"",null,"",null,""]
[null,null,null,null,null,null,null,null,null,null,null,null,null,null,null,null,null,null,null,null,null,null,null,null,null,null,null,null,null,null,null,null,null,null,null,null,null,null,null,null,null,null,null,null,null,null,null,null,null,null,null,null,null,0,0,0,"","",113,null,{"$f":"IF(AL117=\"\",\"\",IF(AL117>=#REF!,\"x\",\"\"))","v":""},"","","","","","","","","","","","","","","","","","","","","","","","","","","","","","","","",null,"","","","","","","","","","","","","","","","",null,null,null,null,null,null,null,null,null,null,null,null,null,null,null,null,null,null,null,null,null,null,null,null,null,null,null,null,null,null,null,null,null,null,null,null,null,null,null,null,null,null,null,null,null,null,null,null,null,null,null,null,null,null,null,null,null,null,null,null,null,null,null,null,null,null,null,null,null,null,null,null,null,null,null,null,"","",null,"",null,"",null,"",null,"",null,"",null,"",null,"",null,"",null,"",null,"",null,"",null,"",null,"",null,""]
[null,null,null,null,null,null,null,null,null,null,null,null,null,null,null,null,null,null,null,null,null,null,null,null,null,null,null,null,null,null,null,null,null,null,null,null,null,null,null,null,null,null,null,null,null,null,null,null,null,null,null,null,null,0,0,0,"","",114,null,{"$f":"IF(AL118=\"\",\"\",IF(AL118>=#REF!,\"x\",\"\"))","v":""},"","","","","","","","","","","","","","","","","","","","","","","","","","","","","","","","",null,"","","","","","","","","","","","","","","","",null,null,null,null,null,null,null,null,null,null,null,null,null,null,null,null,null,null,null,null,null,null,null,null,null,null,null,null,null,null,null,null,null,null,null,null,null,null,null,null,null,null,null,null,null,null,null,null,null,null,null,null,null,null,null,null,null,null,null,null,null,null,null,null,null,null,null,null,null,null,null,null,null,null,null,null,"","",null,"",null,"",null,"",null,"",null,"",null,"",null,"",null,"",null,"",null,"",null,"",null,"",null,"",null,""]
[null,null,null,null,null,null,null,null,null,null,null,null,null,null,null,null,null,null,null,null,null,null,null,null,null,null,null,null,null,null,null,null,null,null,null,null,null,null,null,null,null,null,null,null,null,null,null,null,null,null,null,null,null,0,0,0,"","",115,null,{"$f":"IF(AL119=\"\",\"\",IF(AL119>=#REF!,\"x\",\"\"))","v":""},"","","","","","","","","","","","","","","","","","","","","","","","","","","","","","","","",null,"","","","","","","","","","","","","","","","",null,null,null,null,null,null,null,null,null,null,null,null,null,null,null,null,null,null,null,null,null,null,null,null,null,null,null,null,null,null,null,null,null,null,null,null,null,null,null,null,null,null,null,null,null,null,null,null,null,null,null,null,null,null,null,null,null,null,null,null,null,null,null,null,null,null,null,null,null,null,null,null,null,null,null,null,"","",null,"",null,"",null,"",null,"",null,"",null,"",null,"",null,"",null,"",null,"",null,"",null,"",null,"",null,""]
[null,null,null,null,null,null,null,null,null,null,null,null,null,null,null,null,null,null,null,null,null,null,null,null,null,null,null,null,null,null,null,null,null,null,null,null,null,null,null,null,null,null,null,null,null,null,null,null,null,null,null,null,null,0,0,0,"","",116,null,{"$f":"IF(AL120=\"\",\"\",IF(AL120>=#REF!,\"x\",\"\"))","v":""},"","","","","","","","","","","","","","","","","","","","","","","","","","","","","","","","",null,"","","","","","","","","","","","","","","","",null,null,null,null,null,null,null,null,null,null,null,null,null,null,null,null,null,null,null,null,null,null,null,null,null,null,null,null,null,null,null,null,null,null,null,null,null,null,null,null,null,null,null,null,null,null,null,null,null,null,null,null,null,null,null,null,null,null,null,null,null,null,null,null,null,null,null,null,null,null,null,null,null,null,null,null,"","",null,"",null,"",null,"",null,"",null,"",null,"",null,"",null,"",null,"",null,"",null,"",null,"",null,"",null,""]
[null,null,null,null,null,null,null,null,null,null,null,null,null,null,null,null,null,null,null,null,null,null,null,null,null,null,null,null,null,null,null,null,null,null,null,null,null,null,null,null,null,null,null,null,null,null,null,null,null,null,null,null,null,0,0,0,"","",117,null,{"$f":"IF(AL121=\"\",\"\",IF(AL121>=#REF!,\"x\",\"\"))","v":""},"","","","","","","","","","","","","","","","","","","","","","","","","","","","","","","","",null,"","","","","","","","","","","","","","","","",null,null,null,null,null,null,null,null,null,null,null,null,null,null,null,null,null,null,null,null,null,null,null,null,null,null,null,null,null,null,null,null,null,null,null,null,null,null,null,null,null,null,null,null,null,null,null,null,null,null,null,null,null,null,null,null,null,null,null,null,null,null,null,null,null,null,null,null,null,null,null,null,null,null,null,null,"","",null,"",null,"",null,"",null,"",null,"",null,"",null,"",null,"",null,"",null,"",null,"",null,"",null,"",null,""]
[null,null,null,null,null,null,null,null,null,null,null,null,null,null,null,null,null,null,null,null,null,null,null,null,null,null,null,null,null,null,null,null,null,null,null,null,null,null,null,null,null,null,null,null,null,null,null,null,null,null,null,null,null,0,0,0,"","",118,null,{"$f":"IF(AL122=\"\",\"\",IF(AL122>=#REF!,\"x\",\"\"))","v":""},"","","","","","","","","","","","","","","","","","","","","","","","","","","","","","","","",null,"","","","","","","","","","","","","","","","",null,null,null,null,null,null,null,null,null,null,null,null,null,null,null,null,null,null,null,null,null,null,null,null,null,null,null,null,null,null,null,null,null,null,null,null,null,null,null,null,null,null,null,null,null,null,null,null,null,null,null,null,null,null,null,null,null,null,null,null,null,null,null,null,null,null,null,null,null,null,null,null,null,null,null,null,"","",null,"",null,"",null,"",null,"",null,"",null,"",null,"",null,"",null,"",null,"",null,"",null,"",null,"",null,""]
[null,null,null,null,null,null,null,null,null,null,null,null,null,null,null,null,null,null,null,null,null,null,null,null,null,null,null,null,null,null,null,null,null,null,null,null,null,null,null,null,null,null,null,null,null,null,null,null,null,null,null,null,null,0,0,0,"","",119,null,{"$f":"IF(AL123=\"\",\"\",IF(AL123>=#REF!,\"x\",\"\"))","v":""},"","","","","","","","","","","","","","","","","","","","","","","","","","","","","","","","",null,"","","","","","","","","","","","","","","","",null,null,null,null,null,null,null,null,null,null,null,null,null,null,null,null,null,null,null,null,null,null,null,null,null,null,null,null,null,null,null,null,null,null,null,null,null,null,null,null,null,null,null,null,null,null,null,null,null,null,null,null,null,null,null,null,null,null,null,null,null,null,null,null,null,null,null,null,null,null,null,null,null,null,null,null,"","",null,"",null,"",null,"",null,"",null,"",null,"",null,"",null,"",null,"",null,"",null,"",null,"",null,"",null,""]
[null,null,null,null,null,null,null,null,null,null,null,null,null,null,null,null,null,null,null,null,null,null,null,null,null,null,null,null,null,null,null,null,null,null,null,null,null,null,null,null,null,null,null,null,null,null,null,null,null,null,null,null,null,0,0,0,"","",120,null,{"$f":"IF(AL124=\"\",\"\",IF(AL124>=#REF!,\"x\",\"\"))","v":""},"","","","","","","","","","","","","","","","","","","","","","","","","","","","","","","","",null,"","","","","","","","","","","","","","","","",null,null,null,null,null,null,null,null,null,null,null,null,null,null,null,null,null,null,null,null,null,null,null,null,null,null,null,null,null,null,null,null,null,null,null,null,null,null,null,null,null,null,null,null,null,null,null,null,null,null,null,null,null,null,null,null,null,null,null,null,null,null,null,null,null,null,null,null,null,null,null,null,null,null,null,null,"","",null,"",null,"",null,"",null,"",null,"",null,"",null,"",null,"",null,"",null,"",null,"",null,"",null,"",null,""]
[null,null,null,null,null,null,null,null,null,null,null,null,null,null,null,null,null,null,null,null,null,null,null,null,null,null,null,null,null,null,null,null,null,null,null,null,null,null,null,null,null,null,null,null,null,null,null,null,null,null,null,null,null,0,0,0,"","",121,null,{"$f":"IF(AL125=\"\",\"\",IF(AL125>=#REF!,\"x\",\"\"))","v":""},"","","","","","","","","","","","","","","","","","","","","","","","","","","","","","","","",null,"","","","","","","","","","","","","","","","",null,null,null,null,null,null,null,null,null,null,null,null,null,null,null,null,null,null,null,null,null,null,null,null,null,null,null,null,null,null,null,null,null,null,null,null,null,null,null,null,null,null,null,null,null,null,null,null,null,null,null,null,null,null,null,null,null,null,null,null,null,null,null,null,null,null,null,null,null,null,null,null,null,null,null,null,"","",null,"",null,"",null,"",null,"",null,"",null,"",null,"",null,"",null,"",null,"",null,"",null,"",null,"",null,""]
[null,null,null,null,null,null,null,null,null,null,null,null,null,null,null,null,null,null,null,null,null,null,null,null,null,null,null,null,null,null,null,null,null,null,null,null,null,null,null,null,null,null,null,null,null,null,null,null,null,null,null,null,null,0,0,0,"","",125,null,{"$f":"IF(AL129=\"\",\"\",IF(AL129>=#REF!,\"x\",\"\"))","v":""},"","","","","","","","","","","","","","","","","","","","","","","","","","","","","","","","",null,"","","","","","","","","","","","","","","","",null,null,null,null,null,null,null,null,null,null,null,null,null,null,null,null,null,null,null,null,null,null,null,null,null,null,null,null,null,null,null,null,null,null,null,null,null,null,null,null,null,null,null,null,null,null,null,null,null,null,null,null,null,null,null,null,null,null,null,null,null,null,null,null,null,null,null,null,null,null,null,null,null,null,null,null,"","",null,"",null,"",null,"",null,"",null,"",null,"",null,"",null,"",null,"",null,"",null,"",null,"",null,"",null,""]
[null,null,null,null,null,null,null,null,null,null,null,null,null,null,null,null,"","",null,{"$f":"IF(S227=\"\",\"\",IF(S227>0,VLOOKUP(S227,#REF!,2,FALSE)))","v":""},null,null,null,"Interne :\nExterne :",null,null,null,null,null,null,null,null,null,null,null,null,null,"","",0,null,null,null,null,null,null,null,null,null,null,null,"",null,0,0,0,"","",223,null,{"$f":"IF(AL227=\"\",\"\",IF(AL227>=#REF!,\"x\",\"\"))","v":""},"","","","","","","","","","","","","","","","","","","","","","","","","","","","","","","","",null,"","","","","","","","","","","","","","","","",null,null,null,null,null,null,null,null,null,null,null,null,null,null,null,null,null,null,null,null,null,null,null,null,null,null,null,null,null,null,null,null,null,null,null,null,null,null,null,null,null,null,null,null,null,null,null,null,null,null,null,null,null,null,null,null,null,null,null,null,null,null,null,null,null,null,null,null,null,null,null,null,null,null,null,null,"","",null,"",null,"",null,"",null,"",null,"",null,"",null,"",null,"",null,"",null,"",null,"",null,"",null,"",null,""]
[null,null,null,null,null,null,null,null,null,null,null,null,null,null,null,null,"","",null,{"$f":"IF(S260=\"\",\"\",IF(S260>0,VLOOKUP(S260,#REF!,2,FALSE)))","v":""},null,null,null,"Interne :\nExterne :",null,null,null,null,null,null,null,null,null,null,null,null,null,"","",0,null,null,null,null,null,null,null,null,null,null,null,"",null,0,0,0,"","",256,null,{"$f":"IF(AL260=\"\",\"\",IF(AL260>=#REF!,\"x\",\"\"))","v":""},"","","","","","","","","","","","","","","","","","","","","","","","","","","","","","","","",null,"","","","","","","","","","","","","","","","",null,null,null,null,null,null,null,null,null,null,null,null,null,null,null,null,null,null,null,null,null,null,null,null,null,null,null,null,null,null,null,null,null,null,null,null,null,null,null,null,null,null,null,null,null,null,null,null,null,null,null,null,null,null,null,null,null,null,null,null,null,null,null,null,null,null,null,null,null,null,null,null,null,null,null,null,"","",null,"",null,"",null,"",null,"",null,"",null,"",null,"",null,"",null,"",null,"",null,"",null,"",null,"",null,""]
[null,null,null,null,null,null,null,null,null,null,null,null,null,null,null,null,"","",null,{"$f":"IF(S289=\"\",\"\",IF(S289>0,VLOOKUP(S289,#REF!,2,FALSE)))","v":""},null,null,null,"Interne :\nExterne :",null,null,null,null,null,null,null,null,null,null,null,null,null,"","",0,null,null,null,null,null,null,null,null,null,null,null,"",null,0,0,0,"","",285,null,{"$f":"IF(AL289=\"\",\"\",IF(AL289>=#REF!,\"x\",\"\"))","v":""},"","","","","","","","","","","","","","","","","","","","","","","","","","","","","","","","",null,"","","","","","","","","","","","","","","","",null,null,null,null,null,null,null,null,null,null,null,null,null,null,null,null,null,null,null,null,null,null,null,null,null,null,null,null,null,null,null,null,null,null,null,null,null,null,null,null,null,null,null,null,null,null,null,null,null,null,null,null,null,null,null,null,null,null,null,null,null,null,null,null,null,null,null,null,null,null,null,null,null,null,null,null,"","",null,"",null,"",null,"",null,"",null,"",null,"",null,"",null,"",null,"",null,"",null,"",null,"",null,"",null,""]
[null,null,null,null,null,null,null,null,null,null,null,null,null,null,null,null,"","",null,{"$f":"IF(S374=\"\",\"\",IF(S374>0,VLOOKUP(S374,#REF!,2,FALSE)))","v":""},null,null,null,"Interne :\nExterne :",null,null,null,null,null,null,null,null,null,null,null,null,null,"","",0,null,null,null,null,null,null,null,null,null,null,null,"",null,0,0,0,"","",370,null,{"$f":"IF(AL374=\"\",\"\",IF(AL374>=#REF!,\"x\",\"\"))","v":""},"","","","","","","","","","","","","","","","","","","","","","","","","","","","","","","","",null,"","","","","","","","","","","","","","","","",null,null,null,null,null,null,null,null,null,null,null,null,null,null,null,null,null,null,null,null,null,null,null,null,null,null,null,null,null,null,null,null,null,null,null,null,null,null,null,null,null,null,null,null,null,null,null,null,null,null,null,null,null,null,null,null,null,null,null,null,null,null,null,null,null,null,null,null,null,null,null,null,null,null,null,null,"","",null,"",null,"",null,"",null,"",null,"",null,"",null,"",null,"",null,"",null,"",null,"",null,"",null,"",null,""]
[null,null,null,null,null,null,null,null,null,null,null,null,null,null,null,null,"","",null,{"$f":"IF(S407=\"\",\"\",IF(S407>0,VLOOKUP(S407,#REF!,2,FALSE)))","v":""},null,null,null,"Interne :\nExterne :",null,null,null,null,null,null,null,null,null,null,null,null,null,"","",0,null,null,null,null,null,null,null,null,null,null,null,"",null,0,0,0,"","",403,null,{"$f":"IF(AL407=\"\",\"\",IF(AL407>=#REF!,\"x\",\"\"))","v":""},"","","","","","","","","","","","","","","","","","","","","","","","","","","","","","","","",null,"","","","","","","","","","","","","","","","",null,null,null,null,null,null,null,null,null,null,null,null,null,null,null,null,null,null,null,null,null,null,null,null,null,null,null,null,null,null,null,null,null,null,null,null,null,null,null,null,null,null,null,null,null,null,null,null,null,null,null,null,null,null,null,null,null,null,null,null,null,null,null,null,null,null,null,null,null,null,null,null,null,null,null,null,"","",null,"",null,"",null,"",null,"",null,"",null,"",null,"",null,"",null,"",null,"",null,"",null,"",null,"",null,""]
[null,null,null,null,null,null,null,null,null,null,null,null,null,null,null,null,"","",null,{"$f":"IF(S443=\"\",\"\",IF(S443>0,VLOOKUP(S443,#REF!,2,FALSE)))","v":""},null,null,null,"Interne :\nExterne :",null,null,null,null,null,null,null,null,null,null,null,null,null,"","",0,null,null,null,null,null,null,null,null,null,null,null,"",null,0,0,0,"","",439,null,{"$f":"IF(AL443=\"\",\"\",IF(AL443>=#REF!,\"x\",\"\"))","v":""},"","","","","","","","","","","","","","","","","","","","","","","","","","","","","","","","",null,"","","","","","","","","","","","","","","","",null,null,null,null,null,null,null,null,null,null,null,null,null,null,null,null,null,null,null,null,null,null,null,null,null,null,null,null,null,null,null,null,null,null,null,null,null,null,null,null,null,null,null,null,null,null,null,null,null,null,null,null,null,null,null,null,null,null,null,null,null,null,null,null,null,null,null,null,null,null,null,null,null,null,null,null,"","",null,"",null,"",null,"",null,"",null,"",null,"",null,"",null,"",null,"",null,"",null,"",null,"",null,"",null,""]
[null,null,null,null,null,null,null,null,null,null,null,null,null,null,null,null,"","",null,{"$f":"IF(S520=\"\",\"\",IF(S520>0,VLOOKUP(S520,#REF!,2,FALSE)))","v":""},null,null,null,"Interne :\nExterne :",null,null,null,null,null,null,null,null,null,null,null,null,null,"","",0,null,null,null,null,null,null,null,null,null,null,null,"",null,0,0,0,"","",516,null,{"$f":"IF(AL520=\"\",\"\",IF(AL520>=#REF!,\"x\",\"\"))","v":""},"","","","","","","","","","","","","","","","","","","","","","","","","","","","","","","","",null,"","","","","","","","","","","","","","","","",null,null,null,null,null,null,null,null,null,null,null,null,null,null,null,null,null,null,null,null,null,null,null,null,null,null,null,null,null,null,null,null,null,null,null,null,null,null,null,null,null,null,null,null,null,null,null,null,null,null,null,null,null,null,null,null,null,null,null,null,null,null,null,null,null,null,null,null,null,null,null,null,null,null,null,null,"","",null,"",null,"",null,"",null,"",null,"",null,"",null,"",null,"",null,"",null,"",null,"",null,"",null,"",null,""]
[null,null,null,null,null,null,null,null,null,null,null,null,null,null,null,null,"","",null,{"$f":"IF(S549=\"\",\"\",IF(S549>0,VLOOKUP(S549,#REF!,2,FALSE)))","v":""},null,null,null,"Interne :\nExterne :",null,null,null,null,null,null,null,null,null,null,null,null,null,"","",0,null,null,null,null,null,null,null,null,null,null,null,"",null,0,0,0,"","",545,null,{"$f":"IF(AL549=\"\",\"\",IF(AL549>=#REF!,\"x\",\"\"))","v":""},"","","","","","","","","","","","","","","","","","","","","","","","","","","","","","","","",null,"","","","","","","","","","","","","","","","",null,null,null,null,null,null,null,null,null,null,null,null,null,null,null,null,null,null,null,null,null,null,null,null,null,null,null,null,null,null,null,null,null,null,null,null,null,null,null,null,null,null,null,null,null,null,null,null,null,null,null,null,null,null,null,null,null,null,null,null,null,null,null,null,null,null,null,null,null,null,null,null,null,null,null,null,"","",null,"",null,"",null,"",null,"",null,"",null,"",null,"",null,"",null,"",null,"",null,"",null,"",null,"",null,""]
[null,null,null,null,null,null,null,null,null,null,null,null,null,null,null,null,"","",null,{"$f":"IF(S634=\"\",\"\",IF(S634>0,VLOOKUP(S634,#REF!,2,FALSE)))","v":""},null,null,null,"Interne :\nExterne :",null,null,null,null,null,null,null,null,null,null,null,null,null,"","",0,null,null,null,null,null,null,null,null,null,null,null,"",null,0,0,0,"","",630,null,{"$f":"IF(AL634=\"\",\"\",IF(AL634>=#REF!,\"x\",\"\"))","v":""},"","","","","","","","","","","","","","","","","","","","","","","","","","","","","","","","",null,"","","","","","","","","","","","","","","","",null,null,null,null,null,null,null,null,null,null,null,null,null,null,null,null,null,null,null,null,null,null,null,null,null,null,null,null,null,null,null,null,null,null,null,null,null,null,null,null,null,null,null,null,null,null,null,null,null,null,null,null,null,null,null,null,null,null,null,null,null,null,null,null,null,null,null,null,null,null,null,null,null,null,null,null,"","",null,"",null,"",null,"",null,"",null,"",null,"",null,"",null,"",null,"",null,"",null,"",null,"",null,"",null,""]
[null,null,null,null,null,null,null,null,null,null,null,null,null,null,null,null,"","",null,{"$f":"IF(S667=\"\",\"\",IF(S667>0,VLOOKUP(S667,#REF!,2,FALSE)))","v":""},null,null,null,"Interne :\nExterne :",null,null,null,null,null,null,null,null,null,null,null,null,null,"","",0,null,null,null,null,null,null,null,null,null,null,null,"",null,0,0,0,"","",663,null,{"$f":"IF(AL667=\"\",\"\",IF(AL667>=#REF!,\"x\",\"\"))","v":""},"","","","","","","","","","","","","","","","","","","","","","","","","","","","","","","","",null,"","","","","","","","","","","","","","","","",null,null,null,null,null,null,null,null,null,null,null,null,null,null,null,null,null,null,null,null,null,null,null,null,null,null,null,null,null,null,null,null,null,null,null,null,null,null,null,null,null,null,null,null,null,null,null,null,null,null,null,null,null,null,null,null,null,null,null,null,null,null,null,null,null,null,null,null,null,null,null,null,null,null,null,null,"","",null,"",null,"",null,"",null,"",null,"",null,"",null,"",null,"",null,"",null,"",null,"",null,"",null,"",null,""]
[null,null,null,null,null,null,null,null,null,null,null,null,null,null,null,null,"","",null,{"$f":"IF(S696=\"\",\"\",IF(S696>0,VLOOKUP(S696,#REF!,2,FALSE)))","v":""},null,null,null,"Interne :\nExterne :",null,null,null,null,null,null,null,null,null,null,null,null,null,"","",0,null,null,null,null,null,null,null,null,null,null,null,"",null,0,0,0,"","",692,null,{"$f":"IF(AL696=\"\",\"\",IF(AL696>=#REF!,\"x\",\"\"))","v":""},"","","","","","","","","","","","","","","","","","","","","","","","","","","","","","","","",null,"","","","","","","","","","","","","","","","",null,null,null,null,null,null,null,null,null,null,null,null,null,null,null,null,null,null,null,null,null,null,null,null,null,null,null,null,null,null,null,null,null,null,null,null,null,null,null,null,null,null,null,null,null,null,null,null,null,null,null,null,null,null,null,null,null,null,null,null,null,null,null,null,null,null,null,null,null,null,null,null,null,null,null,null,"","",null,"",null,"",null,"",null,"",null,"",null,"",null,"",null,"",null,"",null,"",null,"",null,"",null,"",null,""]
[null,null,null,null,null,null,null,null,null,null,null,null,null,null,null,null,"","",null,{"$f":"IF(S781=\"\",\"\",IF(S781>0,VLOOKUP(S781,#REF!,2,FALSE)))","v":""},null,null,null,"Interne :\nExterne :",null,null,null,null,null,null,null,null,null,null,null,null,null,"","",0,null,null,null,null,null,null,null,null,null,null,null,"",null,0,0,0,"","",777,null,{"$f":"IF(AL781=\"\",\"\",IF(AL781>=#REF!,\"x\",\"\"))","v":""},"","","","","","","","","","","","","","","","","","","","","","","","","","","","","","","","",null,"","","","","","","","","","","","","","","","",null,null,null,null,null,null,null,null,null,null,null,null,null,null,null,null,null,null,null,null,null,null,null,null,null,null,null,null,null,null,null,null,null,null,null,null,null,null,null,null,null,null,null,null,null,null,null,null,null,null,null,null,null,null,null,null,null,null,null,null,null,null,null,null,null,null,null,null,null,null,null,null,null,null,null,null,"","",null,"",null,"",null,"",null,"",null,"",null,"",null,"",null,"",null,"",null,"",null,"",null,"",null,"",null,""]
[null,null,null,null,null,null,null,null,null,null,null,null,null,null,null,null,"","",null,{"$f":"IF(S808=\"\",\"\",IF(S808>0,VLOOKUP(S808,#REF!,2,FALSE)))","v":""},null,null,null,"Interne :\nExterne :",null,null,null,null,null,null,null,null,null,null,null,null,null,"","",0,null,null,null,null,null,null,null,null,null,null,null,"",null,0,0,0,"","",804,null,{"$f":"IF(AL808=\"\",\"\",IF(AL808>=#REF!,\"x\",\"\"))","v":""},"","","","","","","","","","","","","","","","","","","","","","","","","","","","","","","","",null,"","","","","","","","","","","","","","","","",null,null,null,null,null,null,null,null,null,null,null,null,null,null,null,null,null,null,null,null,null,null,null,null,null,null,null,null,null,null,null,null,null,null,null,null,null,null,null,null,null,null,null,null,null,null,null,null,null,null,null,null,null,null,null,null,null,null,null,null,null,null,null,null,null,null,null,null,null,null,null,null,null,null,null,null,"","",null,"",null,"",null,"",null,"",null,"",null,"",null,"",null,"",null,"",null,"",null,"",null,"",null,"",null,""]
[null,null,null,null,null,null,null,null,null,null,null,null,null,null,null,null,"","",null,{"$f":"IF(S894=\"\",\"\",IF(S894>0,VLOOKUP(S894,#REF!,2,FALSE)))","v":""},null,null,null,"Interne :\nExterne :",null,null,null,null,null,null,null,null,null,null,null,null,null,"","",0,null,null,null,null,null,null,null,null,null,null,null,"",null,0,0,0,"","",890,null,{"$f":"IF(AL894=\"\",\"\",IF(AL894>=#REF!,\"x\",\"\"))","v":""},"","","","","","","","","","","","","","","","","","","","","","","","","","","","","","","","",null,"","","","","","","","","","","","","","","","",null,null,null,null,null,null,null,null,null,null,null,null,null,null,null,null,null,null,null,null,null,null,null,null,null,null,null,null,null,null,null,null,null,null,null,null,null,null,null,null,null,null,null,null,null,null,null,null,null,null,null,null,null,null,null,null,null,null,null,null,null,null,null,null,null,null,null,null,null,null,null,null,null,null,null,null,"","",null,"",null,"",null,"",null,"",null,"",null,"",null,"",null,"",null,"",null,"",null,"",null,"",null,"",null,""]
[null,null,null,null,null,null,null,null,null,null,null,null,null,null,null,null,"","",null,{"$f":"IF(S927=\"\",\"\",IF(S927>0,VLOOKUP(S927,#REF!,2,FALSE)))","v":""},null,null,null,"Interne :\nExterne :",null,null,null,null,null,null,null,null,null,null,null,null,null,"","",0,null,null,null,null,null,null,null,null,null,null,null,"",null,0,0,0,"","",923,null,{"$f":"IF(AL927=\"\",\"\",IF(AL927>=#REF!,\"x\",\"\"))","v":""},"","","","","","","","","","","","","","","","","","","","","","","","","","","","","","","","",null,"","","","","","","","","","","","","","","","",null,null,null,null,null,null,null,null,null,null,null,null,null,null,null,null,null,null,null,null,null,null,null,null,null,null,null,null,null,null,null,null,null,null,null,null,null,null,null,null,null,null,null,null,null,null,null,null,null,null,null,null,null,null,null,null,null,null,null,null,null,null,null,null,null,null,null,null,null,null,null,null,null,null,null,null,"","",null,"",null,"",null,"",null,"",null,"",null,"",null,"",null,"",null,"",null,"",null,"",null,"",null,"",null,""]
[null,null,null,null,null,null,null,null,null,null,null,null,null,null,null,null,"","",null,{"$f":"IF(S956=\"\",\"\",IF(S956>0,VLOOKUP(S956,#REF!,2,FALSE)))","v":""},null,null,null,"Interne :\nExterne :",null,null,null,null,null,null,null,null,null,null,null,null,null,{"$f":"IF(AK956=\"\",\"\",IF(AK956>0,((AI956*AJ956)/AK956),\"\"))","v":""},"",0,null,null,null,null,null,null,null,null,null,null,null,"",null,0,0,0,"","",952,null,{"$f":"IF(AL956=\"\",\"\",IF(AL956>=#REF!,\"x\",\"\"))","v":""},"","","","","","","","","","","","","","","","","","","","","","","","","","","","","","","","",null,"","","","","","","","","","","","","","","","",null,null,null,null,null,null,null,null,null,null,null,null,null,null,null,null,null,null,null,null,null,null,null,null,null,null,null,null,null,null,null,null,null,null,null,null,null,null,null,null,null,null,null,null,null,null,null,null,null,null,null,null,null,null,null,null,null,null,null,null,null,null,null,null,null,null,null,null,null,null,null,null,null,null,null,null,"","",null,"",null,"",null,"",null,"",null,"",null,"",null,"",null,"",null,"",null,"",null,"",null,"",null,"",null,""]
[null,null,null,null,null,null,null,null,null,null,null,null,null,null,null,null,"","",null,{"$f":"IF(S1041=\"\",\"\",IF(S1041>0,VLOOKUP(S1041,#REF!,2,FALSE)))","v":""},null,null,null,"Interne :\nExterne :",null,null,null,null,null,null,null,null,null,null,null,null,null,"","",0,null,null,null,null,null,null,null,null,null,null,null,"",null,0,0,0,"","",1037,null,{"$f":"IF(AL1041=\"\",\"\",IF(AL1041>=#REF!,\"x\",\"\"))","v":""},"","","","","","","","","","","","","","","","","","","","","","","","","","","","","","","","",null,"","","","","","","","","","","","","","","","",null,null,null,null,null,null,null,null,null,null,null,null,null,null,null,null,null,null,null,null,null,null,null,null,null,null,null,null,null,null,null,null,null,null,null,null,null,null,null,null,null,null,null,null,null,null,null,null,null,null,null,null,null,null,null,null,null,null,null,null,null,null,null,null,null,null,null,null,null,null,null,null,null,null,null,null,"","",null,"",null,"",null,"",null,"",null,"",null,"",null,"",null,"",null,"",null,"",null,"",null,"",null,"",null,""]
[null,null,null,null,null,null,null,null,null,null,null,null,null,null,null,null,"","",null,{"$f":"IF(S1074=\"\",\"\",IF(S1074>0,VLOOKUP(S1074,#REF!,2,FALSE)))","v":""},null,null,null,"Interne :\nExterne :",null,null,null,null,null,null,null,null,null,null,null,null,null,0,3,0,null,null,null,null,null,null,null,null,null,null,null,"",null,0,0,0,"","",1070,null,{"$f":"IF(AL1074=\"\",\"\",IF(AL1074>=#REF!,\"x\",\"\"))","v":{"$error":"#REF!"}},{"$error":"#REF!"},"","","","","","","","","","","","","","","","","","","","","","","","","","","","","","","",null,"","","","","","","","","","","","","","","","",null,null,null,null,null,null,null,null,null,null,null,null,null,null,null,null,null,null,null,null,null,null,null,null,null,null,null,null,null,null,null,null,null,null,null,null,null,null,null,null,null,null,null,null,null,null,null,null,null,null,null,null,null,null,null,null,null,null,null,null,null,null,null,null,null,null,null,null,null,null,null,null,null,null,null,null,"","",null,"",null,"",null,"",null,"",null,"",null,"",null,"",null,"",null,"",null,"",null,"",null,"",null,"",null,""]
[null,null,null,null,null,null,null,null,null,null,null,null,null,null,null,null,"","",null,{"$f":"IF(S1122=\"\",\"\",IF(S1122>0,VLOOKUP(S1122,#REF!,2,FALSE)))","v":""},null,null,null,"Interne :\nExterne :",null,null,null,null,null,null,null,null,null,null,null,null,null,"","",0,null,null,null,null,null,null,null,null,null,null,null,"",null,0,0,0,"","",1118,null,{"$f":"IF(AL1122=\"\",\"\",IF(AL1122>=#REF!,\"x\",\"\"))","v":""},"","","","","","","","","","","","","","","","","","","","","","","","","","","","","","","","",null,"","","","","","","","","","","","","","","","",null,null,null,null,null,null,null,null,null,null,null,null,null,null,null,null,null,null,null,null,null,null,null,null,null,null,null,null,null,null,null,null,null,null,null,null,null,null,null,null,null,null,null,null,null,null,null,null,null,null,null,null,null,null,null,null,null,null,null,null,null,null,null,null,null,null,null,null,null,null,null,null,null,null,null,null,"","",null,"",null,"",null,"",null,"",null,"",null,"",null,"",null,"",null,"",null,"",null,"",null,"",null,"",null,""]
[null,null,null,null,null,null,null,null,null,null,null,null,null,null,null,null,"","",null,{"$f":"IF(S1187=\"\",\"\",IF(S1187>0,VLOOKUP(S1187,#REF!,2,FALSE)))","v":""},null,null,null,"Interne :\nExterne :",null,null,null,null,null,null,null,null,null,null,null,null,null,"","",0,null,null,null,null,null,null,null,null,null,null,null,"",null,0,0,0,"","",1183,null,{"$f":"IF(AL1187=\"\",\"\",IF(AL1187>=#REF!,\"x\",\"\"))","v":""},"","","","","","","","","","","","","","","","","","","","","","","","","","","","","","","","",null,"","","","","","","","","","","","","","","","",null,null,null,null,null,null,null,null,null,null,null,null,null,null,null,null,null,null,null,null,null,null,null,null,null,null,null,null,null,null,null,null,null,null,null,null,null,null,null,null,null,null,null,null,null,null,null,null,null,null,null,null,null,null,null,null,null,null,null,null,null,null,null,null,null,null,null,null,null,null,null,null,null,null,null,null,"","",null,"",null,"",null,"",null,"",null,"",null,"",null,"",null,"",null,"",null,"",null,"",null,"",null,"",null,""]
[null,null,null,null,null,null,null,null,null,null,null,null,null,null,null,null,"","",null,{"$f":"IF(S1216=\"\",\"\",IF(S1216>0,VLOOKUP(S1216,#REF!,2,FALSE)))","v":""},null,null,null,"Interne :\nExterne :",null,null,null,null,null,null,null,null,null,null,null,null,null,"","",0,null,null,null,null,null,null,null,null,null,null,null,"",null,0,0,0,"",{"$f":"IF(BE1216=\"\",\"\",IF(BE1216>=50,\"Action(s) inefficace(s)\",\"OK\"))","v":""},1212,null,{"$f":"IF(AL1216=\"\",\"\",IF(AL1216>=#REF!,\"x\",\"\"))","v":""},"","","","","","","","","","","","","","","","","","","","","","","","","","","","","","","","",null,"","","","","","","","","","","","","","","","",null,null,null,null,null,null,null,null,null,null,null,null,null,null,null,null,null,null,null,null,null,null,null,null,null,null,null,null,null,null,null,null,null,null,null,null,null,null,null,null,null,null,null,null,null,null,null,null,null,null,null,null,null,null,null,null,null,null,null,null,null,null,null,null,null,null,null,null,null,null,null,null,null,null,null,null,"","",null,"",null,"",null,"",null,"",null,"",null,"",null,"",null,"",null,"",null,"",null,"",null,"",null,"",null,""]
[null,null,null,null,null,null,null,null,null,null,null,null,null,null,null,null,"","",null,{"$f":"IF(S1301=\"\",\"\",IF(S1301>0,VLOOKUP(S1301,#REF!,2,FALSE)))","v":""},null,null,null,"Interne :\nExterne :",null,null,null,null,null,null,null,null,null,null,null,null,null,"","",0,null,null,null,null,null,null,null,null,null,null,null,"",null,0,0,0,"","",1297,null,{"$f":"IF(AL1301=\"\",\"\",IF(AL1301>=#REF!,\"x\",\"\"))","v":""},"","","","","","","","","","","","","","","","","","","","","","","","","","","","","","","","",null,"","","","","","","","","","","","","","","","",null,null,null,null,null,null,null,null,null,null,null,null,null,null,null,null,null,null,null,null,null,null,null,null,null,null,null,null,null,null,null,null,null,null,null,null,null,null,null,null,null,null,null,null,null,null,null,null,null,null,null,null,null,null,null,null,null,null,null,null,null,null,null,null,null,null,null,null,null,null,null,null,null,null,null,null,"","",null,"",null,"",null,"",null,"",null,"",null,"",null,"",null,"",null,"",null,"",null,"",null,"",null,"",null,""]
[null,null,null,null,null,null,null,null,null,null,null,null,null,null,null,null,"","",null,{"$f":"IF(S1334=\"\",\"\",IF(S1334>0,VLOOKUP(S1334,#REF!,2,FALSE)))","v":""},null,null,null,"Interne :\nExterne :",null,null,null,null,null,null,null,null,null,null,null,null,null,"","",0,null,null,null,null,null,null,null,null,null,null,null,"",null,0,0,0,"","",1330,null,{"$f":"IF(AL1334=\"\",\"\",IF(AL1334>=#REF!,\"x\",\"\"))","v":""},"","","","","","","","","","","","","","","","","","","","","","","","","","","","","","","","",null,"","","","","","","","","","","","","","","","",null,null,null,null,null,null,null,null,null,null,null,null,null,null,null,null,null,null,null,null,null,null,null,null,null,null,null,null,null,null,null,null,null,null,null,null,null,null,null,null,null,null,null,null,null,null,null,null,null,null,null,null,null,null,null,null,null,null,null,null,null,null,null,null,null,null,null,null,null,null,null,null,null,null,null,null,"","",null,"",null,"",null,"",null,"",null,"",null,"",null,"",null,"",null,"",null,"",null,"",null,"",null,"",null,""]
[null,null,null,null,null,null,null,null,null,null,null,null,null,null,null,null,"","",null,{"$f":"IF(S1415=\"\",\"\",IF(S1415>0,VLOOKUP(S1415,#REF!,2,FALSE)))","v":""},null,null,null,"Interne :\nExterne :",null,null,null,null,null,null,null,null,null,null,null,null,null,"","",0,null,null,null,null,null,null,null,null,null,null,null,"",null,0,0,0,"","",1411,null,{"$f":"IF(AL1415=\"\",\"\",IF(AL1415>=#REF!,\"x\",\"\"))","v":""},"","","","","","","","","","","","","","","","","","","","","","","","","","","","","","","","",null,"","","","","","","","","","","","","","","","",null,null,null,null,null,null,null,null,null,null,null,null,null,null,null,null,null,null,null,null,null,null,null,null,null,null,null,null,null,null,null,null,null,null,null,null,null,null,null,null,null,null,null,null,null,null,null,null,null,null,null,null,null,null,null,null,null,null,null,null,null,null,null,null,null,null,null,null,null,null,null,null,null,null,null,null,"","",null,"",null,"",null,"",null,"",null,"",null,"",null,"",null,"",null,"",null,"",null,"",null,"",null,"",null,""]
[null,null,null,null,null,null,null,null,null,null,null,null,null,null,null,null,"","",null,{"$f":"IF(S1448=\"\",\"\",IF(S1448>0,VLOOKUP(S1448,#REF!,2,FALSE)))","v":""},null,null,null,"Interne :\nExterne :",null,null,null,null,null,null,null,null,null,null,null,null,null,"","",0,null,null,null,null,null,null,null,null,null,null,null,"",null,0,0,0,"","",1444,null,{"$f":"IF(AL1448=\"\",\"\",IF(AL1448>=#REF!,\"x\",\"\"))","v":""},"","","","","","","","","","","","","","","","","","","","","","","","","","","","","","","","",null,"","","","","","","","","","","","","","","","",null,null,null,null,null,null,null,null,null,null,null,null,null,null,null,null,null,null,null,null,null,null,null,null,null,null,null,null,null,null,null,null,null,null,null,null,null,null,null,null,null,null,null,null,null,null,null,null,null,null,null,null,null,null,null,null,null,null,null,null,null,null,null,null,null,null,null,null,null,null,null,null,null,null,null,null,"","",null,"",null,"",null,"",null,"",null,"",null,"",null,"",null,"",null,"",null,"",null,"",null,"",null,"",null,""]
[null,null,null,null,null,null,null,null,null,null,null,null,null,null,null,null,"","",null,{"$f":"IF(S1487=\"\",\"\",IF(S1487>0,VLOOKUP(S1487,#REF!,2,FALSE)))","v":""},null,null,null,"Interne :\nExterne :",null,null,null,null,null,null,null,null,null,null,null,null,null,"","",0,null,null,null,null,null,null,null,null,null,null,null,"",null,0,0,0,"","",1483,null,{"$f":"IF(AL1487=\"\",\"\",IF(AL1487>=#REF!,\"x\",\"\"))","v":""},"","","","","","","","","","","","","","","","","","","","","","","","","","","","","","","","",null,"","","","","","","","","","","","","","","","",null,null,null,null,null,null,null,null,null,null,null,null,null,null,null,null,null,null,null,null,null,null,null,null,null,null,null,null,null,null,null,null,null,null,null,null,null,null,null,null,null,null,null,null,null,null,null,null,null,null,null,null,null,null,null,null,null,null,null,null,null,null,null,null,null,null,null,null,null,null,null,null,null,null,null,null,"","",null,"",null,"",null,"",null,"",null,"",null,"",null,"",null,"",null,"",null,"",null,"",null,"",null,"",null,""]
[null,null,null,null,null,null,null,null,null,null,null,null,null,null,null,null,"","",null,{"$f":"IF(S1561=\"\",\"\",IF(S1561>0,VLOOKUP(S1561,#REF!,2,FALSE)))","v":""},null,null,null,"Interne :\nExterne :",null,null,null,null,null,null,null,null,null,null,null,null,null,"","",0,null,null,null,null,null,null,null,null,null,null,null,"",null,0,0,0,"","",1557,null,{"$f":"IF(AL1561=\"\",\"\",IF(AL1561>=#REF!,\"x\",\"\"))","v":""},"","","","","","","","","","","","","","","","","","","","","","","","","","","","","","","","",null,"","","","","","","","","","","","","","","","",null,null,null,null,null,null,null,null,null,null,null,null,null,null,null,null,null,null,null,null,null,null,null,null,null,null,null,null,null,null,null,null,null,null,null,null,null,null,null,null,null,null,null,null,null,null,null,null,null,null,null,null,null,null,null,null,null,null,null,null,null,null,null,null,null,null,null,null,null,null,null,null,null,null,null,null,"","",null,"",null,"",null,"",null,"",null,"",null,"",null,"",null,"",null,"",null,"",null,"",null,"",null,"",null,""]
[null,null,null,null,null,null,null,null,null,null,null,null,null,null,null,null,"","",null,{"$f":"IF(S1594=\"\",\"\",IF(S1594>0,VLOOKUP(S1594,#REF!,2,FALSE)))","v":""},null,null,null,"Interne :\nExterne :",null,null,null,null,null,null,null,null,null,null,null,null,null,"","",0,null,null,null,null,null,null,null,null,null,null,null,"",null,0,0,0,"","",1590,null,{"$f":"IF(AL1594=\"\",\"\",IF(AL1594>=#REF!,\"x\",\"\"))","v":""},"","","","","","","","","","","","","","","","","","","","","","","","","","","","","","","","",null,"","","","","","","","","","","","","","","","",null,null,null,null,null,null,null,null,null,null,null,null,null,null,null,null,null,null,null,null,null,null,null,null,null,null,null,null,null,null,null,null,null,null,null,null,null,null,null,null,null,null,null,null,null,null,null,null,null,null,null,null,null,null,null,null,null,null,null,null,null,null,null,null,null,null,null,null,null,null,null,null,null,null,null,null,"","",null,"",null,"",null,"",null,"",null,"",null,"",null,"",null,"",null,"",null,"",null,"",null,"",null,"",null,""]
[null,null,null,null,null,null,null,null,null,null,null,null,null,null,null,null,"","",null,{"$f":"IF(S1675=\"\",\"\",IF(S1675>0,VLOOKUP(S1675,#REF!,2,FALSE)))","v":""},null,null,null,"Interne :\nExterne :",null,null,null,null,null,null,null,null,null,null,null,null,null,"","",0,null,null,null,null,null,null,null,null,null,null,null,"",null,0,0,0,"","",1671,null,{"$f":"IF(AL1675=\"\",\"\",IF(AL1675>=#REF!,\"x\",\"\"))","v":""},"","","","","","","","","","","","","","","","","","","","","","","","","","","","","","","","",null,"","","","","","","","","","","","","","","","",null,null,null,null,null,null,null,null,null,null,null,null,null,null,null,null,null,null,null,null,null,null,null,null,null,null,null,null,null,null,null,null,null,null,null,null,null,null,null,null,null,null,null,null,null,null,null,null,null,null,null,null,null,null,null,null,null,null,null,null,null,null,null,null,null,null,null,null,null,null,null,null,null,null,null,null,"","",null,"",null,"",null,"",null,"",null,"",null,"",null,"",null,"",null,"",null,"",null,"",null,"",null,"",null,""]
[null,null,null,null,null,null,null,null,null,null,null,null,null,null,null,null,"","",null,{"$f":"IF(S1708=\"\",\"\",IF(S1708>0,VLOOKUP(S1708,#REF!,2,FALSE)))","v":""},null,null,null,"Interne :\nExterne :",null,null,null,null,null,null,null,null,null,null,null,null,null,"","",0,null,null,null,null,null,null,null,null,null,null,null,"",null,0,0,0,"","",1704,null,{"$f":"IF(AL1708=\"\",\"\",IF(AL1708>=#REF!,\"x\",\"\"))","v":""},"","","","","","","","","","","","","","","","","","","","","","","","","","","","","","","","",null,"","","","","","","","","","","","","","","","",null,null,null,null,null,null,null,null,null,null,null,null,null,null,null,null,null,null,null,null,null,null,null,null,null,null,null,null,null,null,null,null,null,null,null,null,null,null,null,null,null,null,null,null,null,null,null,null,null,null,null,null,null,null,null,null,null,null,null,null,null,null,null,null,null,null,null,null,null,null,null,null,null,null,null,null,"","",null,"",null,"",null,"",null,"",null,"",null,"",null,"",null,"",null,"",null,"",null,"",null,"",null,"",null,""]
[null,null,null,null,null,null,null,null,null,null,null,null,null,null,null,null,"","",null,{"$f":"IF(S1741=\"\",\"\",IF(S1741>0,VLOOKUP(S1741,#REF!,2,FALSE)))","v":""},null,null,null,"Interne :\nExterne :",null,null,null,null,null,null,null,null,null,null,null,null,null,"","",0,null,null,null,null,null,null,null,null,null,null,null,"",null,0,0,0,"","",1737,null,{"$f":"IF(AL1741=\"\",\"\",IF(AL1741>=#REF!,\"x\",\"\"))","v":""},"","","","","","","","","","","","","","","","","","","","","","","","","","","","","","","","",null,"","","","","","","","","","","","","","","","",null,null,null,null,null,null,null,null,null,null,null,null,null,null,null,null,null,null,null,null,null,null,null,null,null,null,null,null,null,null,null,null,null,null,null,null,null,null,null,null,null,null,null,null,null,null,null,null,null,null,null,null,null,null,null,null,null,null,null,null,null,null,null,null,null,null,null,null,null,null,null,null,null,null,null,null,"","",null,"",null,"",null,"",null,"",null,"",null,"",null,"",null,"",null,"",null,"",null,"",null,"",null,"",null,""]
[null,null,null,null,null,null,null,null,null,null,null,null,null,null,null,null,"","",null,{"$f":"IF(S1801=\"\",\"\",IF(S1801>0,VLOOKUP(S1801,#REF!,2,FALSE)))","v":""},null,null,null,"Interne :\nExterne :",null,null,null,null,null,null,null,null,null,null,null,null,null,"",{"$f":"IF(AL1801=\"\",\"\",RANK(AL1801,$AL:$AL))","v":""},0,null,null,null,null,null,null,null,null,null,null,null,"",null,0,0,0,"","",1797,null,{"$f":"IF(AL1801=\"\",\"\",IF(AL1801>=#REF!,\"x\",\"\"))","v":""},"","","","","","","","","","","","","","","","","","","","","","","","","","","","","","","","",null,"","","","","","","","","","","","","","","","",null,null,null,null,null,null,null,null,null,null,null,null,null,null,null,null,null,null,null,null,null,null,null,null,null,null,null,null,null,null,null,null,null,null,null,null,null,null,null,null,null,null,null,null,null,null,null,null,null,null,null,null,null,null,null,null,null,null,null,null,null,null,null,null,null,null,null,null,null,null,null,null,null,null,null,null,"","",null,"",null,"",null,"",null,"",null,"",null,"",null,"",null,"",null,"",null,"",null,"",null,"",null,"",null,""]
[null,null,null,null,null,null,null,null,null,null,null,null,null,null,null,null,"","",null,{"$f":"IF(S1854=\"\",\"\",IF(S1854>0,VLOOKUP(S1854,#REF!,2,FALSE)))","v":""},null,null,null,"Interne :\nExterne :",null,null,null,null,null,null,null,null,null,null,null,null,null,"","",0,null,null,null,null,null,null,null,null,null,null,null,"",null,0,0,0,"","",1850,null,{"$f":"IF(AL1854=\"\",\"\",IF(AL1854>=#REF!,\"x\",\"\"))","v":""},"","","","","","","","","","","","","","","","","","","","","","","","","","","","","","","","",null,"","","","","","","","","","","","","","","","",null,null,null,null,null,null,null,null,null,null,null,null,null,null,null,null,null,null,null,null,null,null,null,null,null,null,null,null,null,null,null,null,null,null,null,null,null,null,null,null,null,null,null,null,null,null,null,null,null,null,null,null,null,null,null,null,null,null,null,null,null,null,null,null,null,null,null,null,null,null,null,null,null,null,null,null,"","",null,"",null,"",null,"",null,"",null,"",null,"",null,"",null,"",null,"",null,"",null,"",null,"",null,"",null,""]
[null,null,null,null,null,null,null,null,null,null,null,null,null,null,null,null,"","",null,{"$f":"IF(S1939=\"\",\"\",IF(S1939>0,VLOOKUP(S1939,#REF!,2,FALSE)))","v":""},null,null,null,"Interne :\nExterne :",null,null,null,null,null,null,null,null,null,null,null,null,null,"","",0,null,null,null,null,null,null,null,null,null,null,null,"",null,0,0,0,"","",1935,null,{"$f":"IF(AL1939=\"\",\"\",IF(AL1939>=#REF!,\"x\",\"\"))","v":""},"","","","","","","","","","","","","","","","","","","","","","","","","","","","","","","","",null,"","","","","","","","","","","","","","","","",null,null,null,null,null,null,null,null,null,null,null,null,null,null,null,null,null,null,null,null,null,null,null,null,null,null,null,null,null,null,null,null,null,null,null,null,null,null,null,null,null,null,null,null,null,null,null,null,null,null,null,null,null,null,null,null,null,null,null,null,null,null,null,null,null,null,null,null,null,null,null,null,null,null,null,null,"","",null,"",null,"",null,"",null,"",null,"",null,"",null,"",null,"",null,"",null,"",null,"",null,"",null,"",null,""]
[null,null,null,null,null,null,null,null,null,null,null,null,null,null,null,null,"","",null,{"$f":"IF(S1968=\"\",\"\",IF(S1968>0,VLOOKUP(S1968,#REF!,2,FALSE)))","v":""},null,null,null,"Interne :\nExterne :",null,null,null,null,null,null,null,null,null,null,null,null,null,0,3,0,null,null,null,null,null,null,null,null,null,null,null,"",null,0,0,0,"","",1964,null,{"$f":"IF(AL1968=\"\",\"\",IF(AL1968>=#REF!,\"x\",\"\"))","v":{"$error":"#REF!"}},{"$error":"#REF!"},"","","","","","","","","","","","","","","","","","","","","","","","","","","","","","","",null,"","","","","","","","","","","","","","","","",null,null,null,null,null,null,null,null,null,null,null,null,null,null,null,null,null,null,null,null,null,null,null,null,null,null,null,null,null,null,null,null,null,null,null,null,null,null,null,null,null,null,null,null,null,null,null,null,null,null,null,null,null,null,null,null,null,null,null,null,null,null,null,null,null,null,null,null,null,null,null,null,null,null,null,null,"","",null,"",null,"",null,"",null,"",null,"",null,"",null,"",null,"",null,"",null,"",null,"",null,"",null,"",null,""]
[null,null,null,null,null,null,null,null,null,null,null,null,null,null,null,null,"","",null,{"$f":"IF(S2001=\"\",\"\",IF(S2001>0,VLOOKUP(S2001,#REF!,2,FALSE)))","v":""},null,null,null,"Interne :\nExterne :",null,null,null,null,null,null,null,null,null,null,null,null,null,"","",0,null,null,null,null,null,null,null,null,null,null,null,"",null,0,0,0,"","",1997,null,{"$f":"IF(AL2001=\"\",\"\",IF(AL2001>=#REF!,\"x\",\"\"))","v":""},"","","","","","","","","","","","","","","","","","","","","","","","","","","","","","","","",null,"","","","","","","","","","","","","","","","",null,null,null,null,null,null,null,null,null,null,null,null,null,null,null,null,null,null,null,null,null,null,null,null,null,null,null,null,null,null,null,null,null,null,null,null,null,null,null,null,null,null,null,null,null,null,null,null,null,null,null,null,null,null,null,null,null,null,null,null,null,null,null,null,null,null,null,null,null,null,null,null,null,null,null,null,"","",null,"",null,"",null,"",null,"",null,"",null,"",null,"",null,"",null,"",null,"",null,"",null,"",null,"",null,""]
[null,null,null,null,null,null,null,null,null,null,null,null,null,null,null,null,"","",null,{"$f":"IF(S2082=\"\",\"\",IF(S2082>0,VLOOKUP(S2082,#REF!,2,FALSE)))","v":""},null,null,null,"Interne :\nExterne :",null,null,null,null,null,null,null,null,null,null,null,null,null,"","",0,null,null,null,null,null,null,null,null,null,null,null,"",null,0,0,0,"","",2078,null,{"$f":"IF(AL2082=\"\",\"\",IF(AL2082>=#REF!,\"x\",\"\"))","v":""},"","","","","","","","","","","","","","","","","","","","","","","","","","","","","","","","",null,"","","","","","","","","","","","","","","","",null,null,null,null,null,null,null,null,null,null,null,null,null,null,null,null,null,null,null,null,null,null,null,null,null,null,null,null,null,null,null,null,null,null,null,null,null,null,null,null,null,null,null,null,null,null,null,null,null,null,null,null,null,null,null,null,null,null,null,null,null,null,null,null,null,null,null,null,null,null,null,null,null,null,null,null,"","",null,"",null,"",null,"",null,"",null,"",null,"",null,"",null,"",null,"",null,"",null,"",null,"",null,"",null,""]
[null,null,null,null,null,null,null,null,null,null,null,null,null,null,null,null,"","",null,{"$f":"IF(S2115=\"\",\"\",IF(S2115>0,VLOOKUP(S2115,#REF!,2,FALSE)))","v":""},null,null,null,"Interne :\nExterne :",null,null,null,null,null,null,null,null,null,null,null,null,null,"","",0,null,null,null,null,null,null,null,null,null,null,null,"",null,0,0,0,"","",2111,null,{"$f":"IF(AL2115=\"\",\"\",IF(AL2115>=#REF!,\"x\",\"\"))","v":""},"","","","","","","","","","","","","","","","","","","","","","","","","","","","","","","","",null,"","","","","","","","","","","","","","","","",null,null,null,null,null,null,null,null,null,null,null,null,null,null,null,null,null,null,null,null,null,null,null,null,null,null,null,null,null,null,null,null,null,null,null,null,null,null,null,null,null,null,null,null,null,null,null,null,null,null,null,null,null,null,null,null,null,null,null,null,null,null,null,null,null,null,null,null,null,null,null,null,null,null,null,null,"","",null,"",null,"",null,"",null,"",null,"",null,"",null,"",null,"",null,"",null,"",null,"",null,"",null,"",null,""]
[null,null,null,null,null,null,null,null,null,null,null,null,null,null,null,null,"","",null,{"$f":"IF(S2166=\"\",\"\",IF(S2166>0,VLOOKUP(S2166,#REF!,2,FALSE)))","v":""},null,null,null,"Interne :\nExterne :",null,null,null,null,null,null,null,null,null,null,null,null,null,"","",0,null,null,null,null,null,null,null,null,null,null,null,"",null,0,0,0,"","",2162,null,{"$f":"IF(AL2166=\"\",\"\",IF(AL2166>=#REF!,\"x\",\"\"))","v":""},"","","","","","","","","","","","","","","","","","","","","","","","","","","","","","","","",null,"","","","","","","","","","","","","","","","",null,null,null,null,null,null,null,null,null,null,null,null,null,null,null,null,null,null,null,null,null,null,null,null,null,null,null,null,null,null,null,null,null,null,null,null,null,null,null,null,null,null,null,null,null,null,null,null,null,null,null,null,null,null,null,null,null,null,null,null,null,null,null,null,null,null,null,null,null,null,null,null,null,null,null,null,"","",null,"",null,"",null,"",null,"",null,"",null,"",null,"",null,"",null,"",null,"",null,"",null,"",null,"",null,""]
[null,null,null,null,null,null,null,null,null,null,null,null,null,null,null,null,"","",null,{"$f":"IF(S2228=\"\",\"\",IF(S2228>0,VLOOKUP(S2228,#REF!,2,FALSE)))","v":""},null,null,null,"Interne :\nExterne :",null,null,null,null,null,null,null,null,null,null,null,null,null,"","",0,null,null,null,null,null,null,null,null,null,null,null,"",null,0,0,0,"","",2224,null,{"$f":"IF(AL2228=\"\",\"\",IF(AL2228>=#REF!,\"x\",\"\"))","v":""},"","","","","","","","","","","","","","","","","","","","","","","","","","","","","","","","",null,"","","","","","","","","","","","","","","","",null,null,null,null,null,null,null,null,null,null,null,null,null,null,null,null,null,null,null,null,null,null,null,null,null,null,null,null,null,null,null,null,null,null,null,null,null,null,null,null,null,null,null,null,null,null,null,null,null,null,null,null,null,null,null,null,null,null,null,null,null,null,null,null,null,null,null,null,null,null,null,null,null,null,null,null,"","",null,"",null,"",null,"",null,"",null,"",null,"",null,"",null,"",null,"",null,"",null,"",null,"",null,"",null,""]
[null,null,null,null,null,null,null,null,null,null,null,null,null,null,null,null,"","",null,{"$f":"IF(S2261=\"\",\"\",IF(S2261>0,VLOOKUP(S2261,#REF!,2,FALSE)))","v":""},null,null,null,"Interne :\nExterne :",null,null,null,null,null,null,null,null,null,null,null,null,null,"","",0,null,null,null,null,null,null,null,null,null,null,null,"",null,0,0,0,"","",2257,null,{"$f":"IF(AL2261=\"\",\"\",IF(AL2261>=#REF!,\"x\",\"\"))","v":""},"","","","","","","","","","","","","","","","","","","","","","","","","","","","","","","","",null,"","","","","","","","","","","","","","","","",null,null,null,null,null,null,null,null,null,null,null,null,null,null,null,null,null,null,null,null,null,null,null,null,null,null,null,null,null,null,null,null,null,null,null,null,null,null,null,null,null,null,null,null,null,null,null,null,null,null,null,null,null,null,null,null,null,null,null,null,null,null,null,null,null,null,null,null,null,null,null,null,null,null,null,null,"","",null,"",null,"",null,"",null,"",null,"",null,"",null,"",null,"",null,"",null,"",null,"",null,"",null,"",null,""]
[null,null,null,null,null,null,null,null,null,null,null,null,null,null,null,null,"","",null,{"$f":"IF(S2342=\"\",\"\",IF(S2342>0,VLOOKUP(S2342,#REF!,2,FALSE)))","v":""},null,null,null,"Interne :\nExterne :",null,null,null,null,null,null,null,null,null,null,null,null,null,"","",0,null,null,null,null,null,null,null,null,null,null,null,"",null,0,0,0,"","",2338,null,{"$f":"IF(AL2342=\"\",\"\",IF(AL2342>=#REF!,\"x\",\"\"))","v":""},"","","","","","","","","","","","","","","","","","","","","","","","","","","","","","","","",null,"","","","","","","","","","","","","","","","",null,null,null,null,null,null,null,null,null,null,null,null,null,null,null,null,null,null,null,null,null,null,null,null,null,null,null,null,null,null,null,null,null,null,null,null,null,null,null,null,null,null,null,null,null,null,null,null,null,null,null,null,null,null,null,null,null,null,null,null,null,null,null,null,null,null,null,null,null,null,null,null,null,null,null,null,"","",null,"",null,"",null,"",null,"",null,"",null,"",null,"",null,"",null,"",null,"",null,"",null,"",null,"",null,""]
[null,null,null,null,null,null,null,null,null,null,null,null,null,null,null,null,"","",null,{"$f":"IF(S2375=\"\",\"\",IF(S2375>0,VLOOKUP(S2375,#REF!,2,FALSE)))","v":""},null,null,null,"Interne :\nExterne :",null,null,null,null,null,null,null,null,null,null,null,null,null,"","",0,null,null,null,null,null,null,null,null,null,null,null,"",null,0,0,0,"","",2371,null,{"$f":"IF(AL2375=\"\",\"\",IF(AL2375>=#REF!,\"x\",\"\"))","v":""},"","","","","","","","","","","","","","","","","","","","","","","","","","","","","","","","",null,"","","","","","","","","","","","","","","","",null,null,null,null,null,null,null,null,null,null,null,null,null,null,null,null,null,null,null,null,null,null,null,null,null,null,null,null,null,null,null,null,null,null,null,null,null,null,null,null,null,null,null,null,null,null,null,null,null,null,null,null,null,null,null,null,null,null,null,null,null,null,null,null,null,null,null,null,null,null,null,null,null,null,null,null,"","",null,"",null,"",null,"",null,"",null,"",null,"",null,"",null,"",null,"",null,"",null,"",null,"",null,"",null,""]
[null,null,null,null,null,null,null,null,null,null,null,null,null,null,null,null,"","",null,{"$f":"IF(S2408=\"\",\"\",IF(S2408>0,VLOOKUP(S2408,#REF!,2,FALSE)))","v":""},null,null,null,"Interne :\nExterne :",null,null,null,null,null,null,null,null,null,null,null,null,null,"","",0,null,null,null,null,null,null,null,null,null,null,null,"",null,0,0,0,"","",2404,null,{"$f":"IF(AL2408=\"\",\"\",IF(AL2408>=#REF!,\"x\",\"\"))","v":""},"","","","","","","","","","","","","","","","","","","","","","","","","","","","","","","","",null,"","","","","","","","","","","","","","","","",null,null,null,null,null,null,null,null,null,null,null,null,null,null,null,null,null,null,null,null,null,null,null,null,null,null,null,null,null,null,null,null,null,null,null,null,null,null,null,null,null,null,null,null,null,null,null,null,null,null,null,null,null,null,null,null,null,null,null,null,null,null,null,null,null,null,null,null,null,null,null,null,null,null,null,null,"","",null,"",null,"",null,"",null,"",null,"",null,"",null,"",null,"",null,"",null,"",null,"",null,"",null,"",null,""]
[null,null,null,null,null,null,null,null,null,null,null,null,null,null,null,null,"","",null,{"$f":"IF(S2489=\"\",\"\",IF(S2489>0,VLOOKUP(S2489,#REF!,2,FALSE)))","v":""},null,null,null,"Interne :\nExterne :",null,null,null,null,null,null,null,null,null,null,null,null,null,"","",0,null,null,null,null,null,null,null,null,null,null,null,"",null,0,0,0,"","",2485,null,{"$f":"IF(AL2489=\"\",\"\",IF(AL2489>=#REF!,\"x\",\"\"))","v":""},"","","","","","","","","","","","","","","","","","","","","","","","","","","","","","","","",null,"","","","","","","","","","","","","","","","",null,null,null,null,null,null,null,null,null,null,null,null,null,null,null,null,null,null,null,null,null,null,null,null,null,null,null,null,null,null,null,null,null,null,null,null,null,null,null,null,null,null,null,null,null,null,null,null,null,null,null,null,null,null,null,null,null,null,null,null,null,null,null,null,null,null,null,null,null,null,null,null,null,null,null,null,"","",null,"",null,"",null,"",null,"",null,"",null,"",null,"",null,"",null,"",null,"",null,"",null,"",null,"",null,""]
[null,null,null,null,null,null,null,null,null,null,null,null,null,null,null,null,"","",null,{"$f":"IF(S2532=\"\",\"\",IF(S2532>0,VLOOKUP(S2532,#REF!,2,FALSE)))","v":""},null,null,null,"Interne :\nExterne :",null,null,null,null,null,null,null,null,null,null,null,null,null,"","",0,null,null,null,null,null,null,null,null,null,null,null,"",null,0,0,0,"","",2528,null,{"$f":"IF(AL2532=\"\",\"\",IF(AL2532>=#REF!,\"x\",\"\"))","v":""},"","","","","","","","","","","","","","","","","","","","","","","","","","","","","","","","",null,"","","","","","","","","","","","","","","","",null,null,null,null,null,null,null,null,null,null,null,null,null,null,null,null,null,null,null,null,null,null,null,null,null,null,null,null,null,null,null,null,null,null,null,null,null,null,null,null,null,null,null,null,null,null,null,null,null,null,null,null,null,null,null,null,null,null,null,null,null,null,null,null,null,null,null,null,null,null,null,null,null,null,null,null,"","",null,"",null,"",null,"",null,"",null,"",null,"",null,"",null,"",null,"",null,"",null,"",null,"",null,"",null,""]
[null,null,null,null,null,null,null,null,null,null,null,null,null,null,null,null,"","",null,{"$f":"IF(S2606=\"\",\"\",IF(S2606>0,VLOOKUP(S2606,#REF!,2,FALSE)))","v":""},null,null,null,"Interne :\nExterne :",null,null,null,null,null,null,null,null,null,null,null,null,null,"","",0,null,null,null,null,null,null,null,null,null,null,null,"",null,0,0,0,"","",2602,null,{"$f":"IF(AL2606=\"\",\"\",IF(AL2606>=#REF!,\"x\",\"\"))","v":""},"","","","","","","","","","","","","","","","","","","","","","","","","","","","","","","","",null,"","","","","","","","","","","","","","","","",null,null,null,null,null,null,null,null,null,null,null,null,null,null,null,null,null,null,null,null,null,null,null,null,null,null,null,null,null,null,null,null,null,null,null,null,null,null,null,null,null,null,null,null,null,null,null,null,null,null,null,null,null,null,null,null,null,null,null,null,null,null,null,null,null,null,null,null,null,null,null,null,null,null,null,null,"","",null,"",null,"",null,"",null,"",null,"",null,"",null,"",null,"",null,"",null,"",null,"",null,"",null,"",null,""]
[null,null,null,null,null,null,null,null,null,null,null,null,null,null,null,null,"","",null,{"$f":"IF(S2635=\"\",\"\",IF(S2635>0,VLOOKUP(S2635,#REF!,2,FALSE)))","v":""},null,null,null,"Interne :\nExterne :",null,null,null,null,null,null,null,null,null,null,null,null,null,"","",0,null,null,null,null,null,null,null,null,null,null,null,"",null,0,0,0,"","",2631,null,{"$f":"IF(AL2635=\"\",\"\",IF(AL2635>=#REF!,\"x\",\"\"))","v":""},"","","","","","","","","","","","","","","","","","","","","","","","","","","","","","","","",null,"","","","","","","","","","","","","","","","",null,null,null,null,null,null,null,null,null,null,null,null,null,null,null,null,null,null,null,null,null,null,null,null,null,null,null,null,null,null,null,null,null,null,null,null,null,null,null,null,null,null,null,null,null,null,null,null,null,null,null,null,null,null,null,null,null,null,null,null,null,null,null,null,null,null,null,null,null,null,null,null,null,null,null,null,"","",null,"",null,"",null,"",null,"",null,"",null,"",null,"",null,"",null,"",null,"",null,"",null,"",null,"",null,""]
[null,null,null,null,null,null,null,null,null,null,null,null,null,null,null,null,"","",null,{"$f":"IF(S2668=\"\",\"\",IF(S2668>0,VLOOKUP(S2668,#REF!,2,FALSE)))","v":""},null,null,null,"Interne :\nExterne :",null,null,null,null,null,null,null,null,null,null,null,null,null,"","",0,null,null,null,null,null,null,null,null,null,null,null,"",null,0,0,0,"","",2664,null,{"$f":"IF(AL2668=\"\",\"\",IF(AL2668>=#REF!,\"x\",\"\"))","v":""},"","","","","","","","","","","","","","","","","","","","","","","","","","","","","","","","",null,"","","","","","","","","","","","","","","","",null,null,null,null,null,null,null,null,null,null,null,null,null,null,null,null,null,null,null,null,null,null,null,null,null,null,null,null,null,null,null,null,null,null,null,null,null,null,null,null,null,null,null,null,null,null,null,null,null,null,null,null,null,null,null,null,null,null,null,null,null,null,null,null,null,null,null,null,null,null,null,null,null,null,null,null,"","",null,"",null,"",null,"",null,"",null,"",null,"",null,"",null,"",null,"",null,"",null,"",null,"",null,"",null,""]
[null,null,null,null,null,null,null,null,null,null,null,null,null,null,null,null,"","",null,{"$f":"IF(S2749=\"\",\"\",IF(S2749>0,VLOOKUP(S2749,#REF!,2,FALSE)))","v":""},null,null,null,"Interne :\nExterne :",null,null,null,null,null,null,null,null,null,null,null,null,null,"","",0,null,null,null,null,null,null,null,null,null,null,null,"",null,0,0,0,"","",2745,null,{"$f":"IF(AL2749=\"\",\"\",IF(AL2749>=#REF!,\"x\",\"\"))","v":""},"","","","","","","","","","","","","","","","","","","","","","","","","","","","","","","","",null,"","","","","","","","","","","","","","","","",null,null,null,null,null,null,null,null,null,null,null,null,null,null,null,null,null,null,null,null,null,null,null,null,null,null,null,null,null,null,null,null,null,null,null,null,null,null,null,null,null,null,null,null,null,null,null,null,null,null,null,null,null,null,null,null,null,null,null,null,null,null,null,null,null,null,null,null,null,null,null,null,null,null,null,null,"","",null,"",null,"",null,"",null,"",null,"",null,"",null,"",null,"",null,"",null,"",null,"",null,"",null,"",null,""]
[null,null,null,null,null,null,null,null,null,null,null,null,null,null,null,null,"","",null,{"$f":"IF(S2782=\"\",\"\",IF(S2782>0,VLOOKUP(S2782,#REF!,2,FALSE)))","v":""},null,null,null,"Interne :\nExterne :",null,null,null,null,null,null,null,null,null,null,null,null,null,"","",0,null,null,null,null,null,null,null,null,null,null,null,"",null,0,0,0,"","",2778,null,{"$f":"IF(AL2782=\"\",\"\",IF(AL2782>=#REF!,\"x\",\"\"))","v":""},"","","","","","","","","","","","","","","","","","","","","","","","","","","","","","","","",null,"","","","","","","","","","","","","","","","",null,null,null,null,null,null,null,null,null,null,null,null,null,null,null,null,null,null,null,null,null,null,null,null,null,null,null,null,null,null,null,null,null,null,null,null,null,null,null,null,null,null,null,null,null,null,null,null,null,null,null,null,null,null,null,null,null,null,null,null,null,null,null,null,null,null,null,null,null,null,null,null,null,null,null,null,"","",null,"",null,"",null,"",null,"",null,"",null,"",null,"",null,"",null,"",null,"",null,"",null,"",null,"",null,""]
[null,null,null,null,null,null,null,null,null,null,null,null,null,null,null,null,"","",null,{"$f":"IF(S2845=\"\",\"\",IF(S2845>0,VLOOKUP(S2845,#REF!,2,FALSE)))","v":""},null,null,null,"Interne :\nExterne :",null,null,null,null,null,null,null,null,null,null,null,null,null,"","",0,null,null,null,null,null,null,null,null,null,null,null,"",null,0,0,0,"","",2841,null,{"$f":"IF(AL2845=\"\",\"\",IF(AL2845>=#REF!,\"x\",\"\"))","v":""},"","","","","","","","","","","","","","","","","","","","","","","","","","","","","","","","",null,"","","","","","","","","","","","","","","","",null,null,null,null,null,null,null,null,null,null,null,null,null,null,null,null,null,null,null,null,null,null,null,null,null,null,null,null,null,null,null,null,null,null,null,null,null,null,null,null,null,null,null,null,null,null,null,null,null,null,null,null,null,null,null,null,null,null,null,null,null,null,null,null,null,null,null,null,null,null,null,null,null,null,null,null,"","",null,"",null,"",null,"",null,"",null,"",null,"",null,"",null,"",null,"",null,"",null,"",null,"",null,"",null,""]
[null,null,null,null,null,null,null,null,null,null,null,null,null,null,null,null,"","",null,{"$f":"IF(S2895=\"\",\"\",IF(S2895>0,VLOOKUP(S2895,#REF!,2,FALSE)))","v":""},null,null,null,"Interne :\nExterne :",null,null,null,null,null,null,null,null,null,null,null,null,null,"","",0,null,null,null,null,null,null,null,null,null,null,null,"",null,0,0,0,"","",2891,null,{"$f":"IF(AL2895=\"\",\"\",IF(AL2895>=#REF!,\"x\",\"\"))","v":""},"","","","","","","","","","","","","","","","","","","","","","","","","","","","","","","","",null,"","","","","","","","","","","","","","","","",null,null,null,null,null,null,null,null,null,null,null,null,null,null,null,null,null,null,null,null,null,null,null,null,null,null,null,null,null,null,null,null,null,null,null,null,null,null,null,null,null,null,null,null,null,null,null,null,null,null,null,null,null,null,null,null,null,null,null,null,null,null,null,null,null,null,null,null,null,null,null,null,null,null,null,null,"","",null,"",null,"",null,"",null,"",null,"",null,"",null,"",null,"",null,"",null,"",null,"",null,"",null,"",null,""]
[null,null,null,null,null,null,null,null,null,null,null,null,null,null,null,null,"","",null,{"$f":"IF(S2928=\"\",\"\",IF(S2928>0,VLOOKUP(S2928,#REF!,2,FALSE)))","v":""},null,null,null,"Interne :\nExterne :",null,null,null,null,null,null,null,null,null,null,null,null,null,"","",0,null,null,null,null,null,null,null,null,null,null,null,"",null,0,0,0,"","",2924,null,{"$f":"IF(AL2928=\"\",\"\",IF(AL2928>=#REF!,\"x\",\"\"))","v":""},"","","","","","","","","","","","","","","","","","","","","","","","","","","","","","","","",null,"","","","","","","","","","","","","","","","",null,null,null,null,null,null,null,null,null,null,null,null,null,null,null,null,null,null,null,null,null,null,null,null,null,null,null,null,null,null,null,null,null,null,null,null,null,null,null,null,null,null,null,null,null,null,null,null,null,null,null,null,null,null,null,null,null,null,null,null,null,null,null,null,null,null,null,null,null,null,null,null,null,null,null,null,"","",null,"",null,"",null,"",null,"",null,"",null,"",null,"",null,"",null,"",null,"",null,"",null,"",null,"",null,""]
[null,null,null,null,null,null,null,null,null,null,null,null,null,null,null,null,"","",null,{"$f":"IF(S3009=\"\",\"\",IF(S3009>0,VLOOKUP(S3009,#REF!,2,FALSE)))","v":""},null,null,null,"Interne :\nExterne :",null,null,null,null,null,null,null,null,null,null,null,null,null,"","",0,null,null,null,null,null,null,null,null,null,null,null,"",null,0,0,0,"","",3005,null,{"$f":"IF(AL3009=\"\",\"\",IF(AL3009>=#REF!,\"x\",\"\"))","v":""},"","","","","","","","","","","","","","","","","","","","","","","","","","","","","","","","",null,"","","","","","","","","","","","","","","","",null,null,null,null,null,null,null,null,null,null,null,null,null,null,null,null,null,null,null,null,null,null,null,null,null,null,null,null,null,null,null,null,null,null,null,null,null,null,null,null,null,null,null,null,null,null,null,null,null,null,null,null,null,null,null,null,null,null,null,null,null,null,null,null,null,null,null,null,null,null,null,null,null,null,null,null,"","",null,"",null,"",null,"",null,"",null,"",null,"",null,"",null,"",null,"",null,"",null,"",null,"",null,"",null,""]
[null,null,null,null,null,null,null,null,null,null,null,null,null,null,null,null,"","",null,{"$f":"IF(S3042=\"\",\"\",IF(S3042>0,VLOOKUP(S3042,#REF!,2,FALSE)))","v":""},null,null,null,"Interne :\nExterne :",null,null,null,null,null,null,null,null,null,null,null,null,null,"","",0,null,null,null,null,null,null,null,null,null,null,null,"",null,0,0,0,"","",3038,null,{"$f":"IF(AL3042=\"\",\"\",IF(AL3042>=#REF!,\"x\",\"\"))","v":""},"","","","","","","","","","","","","","","","","","","","","","","","","","","","","","","","",null,"","","","","","","","","","","","","","","","",null,null,null,null,null,null,null,null,null,null,null,null,null,null,null,null,null,null,null,null,null,null,null,null,null,null,null,null,null,null,null,null,null,null,null,null,null,null,null,null,null,null,null,null,null,null,null,null,null,null,null,null,null,null,null,null,null,null,null,null,null,null,null,null,null,null,null,null,null,null,null,null,null,null,null,null,"","",null,"",null,"",null,"",null,"",null,"",null,"",null,"",null,"",null,"",null,"",null,"",null,"",null,"",null,""]
[null,null,null,null,null,null,null,null,null,null,null,null,null,null,null,null,"","",null,{"$f":"IF(S3127=\"\",\"\",IF(S3127>0,VLOOKUP(S3127,#REF!,2,FALSE)))","v":""},null,null,null,"Interne :\nExterne :",null,null,null,null,null,null,null,null,null,null,null,null,null,"","",0,null,null,null,null,null,null,null,null,null,null,null,"",null,0,0,0,"","",3123,null,{"$f":"IF(AL3127=\"\",\"\",IF(AL3127>=#REF!,\"x\",\"\"))","v":""},"","","","","","","","","","","","","","","","","","","","","","","","","","","","","","","","",null,"","","","","","","","","","","","","","","","",null,null,null,null,null,null,null,null,null,null,null,null,null,null,null,null,null,null,null,null,null,null,null,null,null,null,null,null,null,null,null,null,null,null,null,null,null,null,null,null,null,null,null,null,null,null,null,null,null,null,null,null,null,null,null,null,null,null,null,null,null,null,null,null,null,null,null,null,null,null,null,null,null,null,null,null,"","",null,"",null,"",null,"",null,"",null,"",null,"",null,"",null,"",null,"",null,"",null,"",null,"",null,"",null,""]
[null,null,null,null,null,null,null,null,null,null,null,null,null,null,null,null,"","",null,{"$f":"IF(S3156=\"\",\"\",IF(S3156>0,VLOOKUP(S3156,#REF!,2,FALSE)))","v":""},null,null,null,"Interne :\nExterne :",null,null,null,null,null,null,null,null,null,null,null,null,null,"","",0,null,null,null,null,null,null,null,null,null,null,null,"",null,0,0,0,"","",3152,null,{"$f":"IF(AL3156=\"\",\"\",IF(AL3156>=#REF!,\"x\",\"\"))","v":""},"","","","","","","","","","","","","","","","","","","","","","","","","","","","","","","","",null,"","","","","","","","","","","","","","","","",null,null,null,null,null,null,null,null,null,null,null,null,null,null,null,null,null,null,null,null,null,null,null,null,null,null,null,null,null,null,null,null,null,null,null,null,null,null,null,null,null,null,null,null,null,null,null,null,null,null,null,null,null,null,null,null,null,null,null,null,null,null,null,null,null,null,null,null,null,null,null,null,null,null,null,null,"","",null,"",null,"",null,"",null,"",null,"",null,"",null,"",null,"",null,"",null,"",null,"",null,"",null,"",null,""]
[null,null,null,null,null,null,null,null,null,null,null,null,null,null,null,null,"","",null,{"$f":"IF(S3211=\"\",\"\",IF(S3211>0,VLOOKUP(S3211,#REF!,2,FALSE)))","v":""},null,null,null,"Interne :\nExterne :",null,null,null,null,null,null,null,null,null,null,null,null,null,"","",0,null,null,null,null,null,null,null,null,null,null,null,"",null,0,0,0,"","",3207,null,{"$f":"IF(AL3211=\"\",\"\",IF(AL3211>=#REF!,\"x\",\"\"))","v":""},"","","","","","","","","","","","","","","","","","","","","","","","","","","","","","","","",null,"","","","","","","","","","","","","","","","",null,null,null,null,null,null,null,null,null,null,null,null,null,null,null,null,null,null,null,null,null,null,null,null,null,null,null,null,null,null,null,null,null,null,null,null,null,null,null,null,null,null,null,null,null,null,null,null,null,null,null,null,null,null,null,null,null,null,null,null,null,null,null,null,null,null,null,null,null,null,null,null,null,null,null,null,"","",null,"",null,"",null,"",null,"",null,"",null,"",null,"",null,"",null,"",null,"",null,"",null,"",null,"",null,""]
[null,null,null,null,null,null,null,null,null,null,null,null,null,null,null,null,"","",null,{"$f":"IF(S3273=\"\",\"\",IF(S3273>0,VLOOKUP(S3273,#REF!,2,FALSE)))","v":""},null,null,null,"Interne :\nExterne :",null,null,null,null,null,null,null,null,null,null,null,null,null,"",{"$f":"IF(AL3273=\"\",\"\",RANK(AL3273,$AL:$AL))","v":""},0,null,null,null,null,null,null,null,null,null,null,null,"",null,0,0,0,"","",3269,null,{"$f":"IF(AL3273=\"\",\"\",IF(AL3273>=#REF!,\"x\",\"\"))","v":""},"","","","","","","","","","","","","","","","","","","","","","","","","","","","","","","","",null,"","","","","","","","","","","","","","","","",null,null,null,null,null,null,null,null,null,null,null,null,null,null,null,null,null,null,null,null,null,null,null,null,null,null,null,null,null,null,null,null,null,null,null,null,null,null,null,null,null,null,null,null,null,null,null,null,null,null,null,null,null,null,null,null,null,null,null,null,null,null,null,null,null,null,null,null,null,null,null,null,null,null,null,null,"","",null,"",null,"",null,"",null,"",null,"",null,"",null,"",null,"",null,"",null,"",null,"",null,"",null,"",null,""]
[null,null,null,null,null,null,null,null,null,null,null,null,null,null,null,null,"","",null,{"$f":"IF(S3302=\"\",\"\",IF(S3302>0,VLOOKUP(S3302,#REF!,2,FALSE)))","v":""},null,null,null,"Interne :\nExterne :",null,null,null,null,null,null,null,null,null,null,null,null,null,"","",0,null,null,null,null,null,null,null,null,null,null,null,"",null,0,0,0,"","",3298,null,{"$f":"IF(AL3302=\"\",\"\",IF(AL3302>=#REF!,\"x\",\"\"))","v":""},"","","","","","","","","","","","","","","","","","","","","","","","","","","","","","","","",null,"","","","","","","","","","","","","","","","",null,null,null,null,null,null,null,null,null,null,null,null,null,null,null,null,null,null,null,null,null,null,null,null,null,null,null,null,null,null,null,null,null,null,null,null,null,null,null,null,null,null,null,null,null,null,null,null,null,null,null,null,null,null,null,null,null,null,null,null,null,null,null,null,null,null,null,null,null,null,null,null,null,null,null,null,"","",null,"",null,"",null,"",null,"",null,"",null,"",null,"",null,"",null,"",null,"",null,"",null,"",null,"",null,""]
[null,null,null,null,null,null,null,null,null,null,null,null,null,null,null,null,"","",null,{"$f":"IF(S3387=\"\",\"\",IF(S3387>0,VLOOKUP(S3387,#REF!,2,FALSE)))","v":""},null,null,null,"Interne :\nExterne :",null,null,null,null,null,null,null,null,null,null,null,null,null,"","",0,null,null,null,null,null,null,null,null,null,null,null,"",null,0,0,0,"","",3383,null,{"$f":"IF(AL3387=\"\",\"\",IF(AL3387>=#REF!,\"x\",\"\"))","v":""},"","","","","","","","","","","","","","","","","","","","","","","","","","","","","","","","",null,"","","","","","","","","","","","","","","","",null,null,null,null,null,null,null,null,null,null,null,null,null,null,null,null,null,null,null,null,null,null,null,null,null,null,null,null,null,null,null,null,null,null,null,null,null,null,null,null,null,null,null,null,null,null,null,null,null,null,null,null,null,null,null,null,null,null,null,null,null,null,null,null,null,null,null,null,null,null,null,null,null,null,null,null,"","",null,"",null,"",null,"",null,"",null,"",null,"",null,"",null,"",null,"",null,"",null,"",null,"",null,"",null,""]
[null,null,null,null,null,null,null,null,null,null,null,null,null,null,null,null,"","",null,{"$f":"IF(S3416=\"\",\"\",IF(S3416>0,VLOOKUP(S3416,#REF!,2,FALSE)))","v":""},null,null,null,"Interne :\nExterne :",null,null,null,null,null,null,null,null,null,null,null,null,null,"","",0,null,null,null,null,null,null,null,null,null,null,null,"",null,0,0,0,"","",3412,null,{"$f":"IF(AL3416=\"\",\"\",IF(AL3416>=#REF!,\"x\",\"\"))","v":""},"","","","","","","","","","","","","","","","","","","","","","","","","","","","","","","","",null,"","","","","","","","","","","","","","","","",null,null,null,null,null,null,null,null,null,null,null,null,null,null,null,null,null,null,null,null,null,null,null,null,null,null,null,null,null,null,null,null,null,null,null,null,null,null,null,null,null,null,null,null,null,null,null,null,null,null,null,null,null,null,null,null,null,null,null,null,null,null,null,null,null,null,null,null,null,null,null,null,null,null,null,null,"","",null,"",null,"",null,"",null,"",null,"",null,"",null,"",null,"",null,"",null,"",null,"",null,"",null,"",null,""]
[null,null,null,null,null,null,null,null,null,null,null,null,null,null,null,null,"","",null,{"$f":"IF(S3449=\"\",\"\",IF(S3449>0,VLOOKUP(S3449,#REF!,2,FALSE)))","v":""},null,null,null,"Interne :\nExterne :",null,null,null,null,null,null,null,null,null,null,null,null,null,"","",0,null,null,null,null,null,null,null,null,null,null,null,"",null,0,0,0,"","",3445,null,{"$f":"IF(AL3449=\"\",\"\",IF(AL3449>=#REF!,\"x\",\"\"))","v":""},"","","","","","","","","","","","","","","","","","","","","","","","","","","","","","","","",null,"","","","","","","","","","","","","","","","",null,null,null,null,null,null,null,null,null,null,null,null,null,null,null,null,null,null,null,null,null,null,null,null,null,null,null,null,null,null,null,null,null,null,null,null,null,null,null,null,null,null,null,null,null,null,null,null,null,null,null,null,null,null,null,null,null,null,null,null,null,null,null,null,null,null,null,null,null,null,null,null,null,null,null,null,"","",null,"",null,"",null,"",null,"",null,"",null,"",null,"",null,"",null,"",null,"",null,"",null,"",null,"",null,""]
[null,null,null,null,null,null,null,null,null,null,null,null,null,null,null,null,"","",null,{"$f":"IF(S3524=\"\",\"\",IF(S3524>0,VLOOKUP(S3524,#REF!,2,FALSE)))","v":""},null,null,null,"Interne :\nExterne :",null,null,null,null,null,null,null,null,null,null,null,null,null,{"$f":"IF(AK3524=\"\",\"\",IF(AK3524>0,((AI3524*AJ3524)/AK3524),\"\"))","v":""},"",0,null,null,null,null,null,null,null,null,null,null,null,"",null,0,0,0,"","",3520,null,{"$f":"IF(AL3524=\"\",\"\",IF(AL3524>=#REF!,\"x\",\"\"))","v":""},"","","","","","","","","","","","","","","","","","","","","","","","","","","","","","","","",null,"","","","","","","","","","","","","","","","",null,null,null,null,null,null,null,null,null,null,null,null,null,null,null,null,null,null,null,null,null,null,null,null,null,null,null,null,null,null,null,null,null,null,null,null,null,null,null,null,null,null,null,null,null,null,null,null,null,null,null,null,null,null,null,null,null,null,null,null,null,null,null,null,null,null,null,null,null,null,null,null,null,null,null,null,"","",null,"",null,"",null,"",null,"",null,"",null,"",null,"",null,"",null,"",null,"",null,"",null,"",null,"",null,""]
[null,null,null,null,null,null,null,null,null,null,null,null,null,null,null,null,"","",null,{"$f":"IF(S3562=\"\",\"\",IF(S3562>0,VLOOKUP(S3562,#REF!,2,FALSE)))","v":""},null,null,null,"Interne :\nExterne :",null,null,null,null,null,null,null,null,null,null,null,null,null,"","",0,null,null,null,null,null,null,null,null,null,null,null,"",null,0,0,0,"","",3558,null,{"$f":"IF(AL3562=\"\",\"\",IF(AL3562>=#REF!,\"x\",\"\"))","v":""},"","","","","","","","","","","","","","","","","","","","","","","","","","","","","","","","",null,"","","","","","","","","","","","","","","","",null,null,null,null,null,null,null,null,null,null,null,null,null,null,null,null,null,null,null,null,null,null,null,null,null,null,null,null,null,null,null,null,null,null,null,null,null,null,null,null,null,null,null,null,null,null,null,null,null,null,null,null,null,null,null,null,null,null,null,null,null,null,null,null,null,null,null,null,null,null,null,null,null,null,null,null,"","",null,"",null,"",null,"",null,"",null,"",null,"",null,"",null,"",null,"",null,"",null,"",null,"",null,"",null,""]
[null,null,null,null,null,null,null,null,null,null,null,null,null,null,null,null,"","",null,{"$f":"IF(S3647=\"\",\"\",IF(S3647>0,VLOOKUP(S3647,#REF!,2,FALSE)))","v":""},null,null,null,"Interne :\nExterne :",null,null,null,null,null,null,null,null,null,null,null,null,null,"","",0,null,null,null,null,null,null,null,null,null,null,null,"",null,0,0,0,"","",3643,null,{"$f":"IF(AL3647=\"\",\"\",IF(AL3647>=#REF!,\"x\",\"\"))","v":""},"","","","","","","","","","","","","","","","","","","","","","","","","","","","","","","","",null,"","","","","","","","","","","","","","","","",null,null,null,null,null,null,null,null,null,null,null,null,null,null,null,null,null,null,null,null,null,null,null,null,null,null,null,null,null,null,null,null,null,null,null,null,null,null,null,null,null,null,null,null,null,null,null,null,null,null,null,null,null,null,null,null,null,null,null,null,null,null,null,null,null,null,null,null,null,null,null,null,null,null,null,null,"","",null,"",null,"",null,"",null,"",null,"",null,"",null,"",null,"",null,"",null,"",null,"",null,"",null,"",null,""]
[null,null,null,null,null,null,null,null,null,null,null,null,null,null,null,null,"","",null,{"$f":"IF(S3680=\"\",\"\",IF(S3680>0,VLOOKUP(S3680,#REF!,2,FALSE)))","v":""},null,null,null,"Interne :\nExterne :",null,null,null,null,null,null,null,null,null,null,null,null,null,"","",0,null,null,null,null,null,null,null,null,null,null,null,"",null,0,0,0,"","",3676,null,{"$f":"IF(AL3680=\"\",\"\",IF(AL3680>=#REF!,\"x\",\"\"))","v":""},"","","","","","","","","","","","","","","","","","","","","","","","","","","","","","","","",null,"","","","","","","","","","","","","","","","",null,null,null,null,null,null,null,null,null,null,null,null,null,null,null,null,null,null,null,null,null,null,null,null,null,null,null,null,null,null,null,null,null,null,null,null,null,null,null,null,null,null,null,null,null,null,null,null,null,null,null,null,null,null,null,null,null,null,null,null,null,null,null,null,null,null,null,null,null,null,null,null,null,null,null,null,"","",null,"",null,"",null,"",null,"",null,"",null,"",null,"",null,"",null,"",null,"",null,"",null,"",null,"",null,""]
[null,null,null,null,null,null,null,null,null,null,null,null,null,null,null,null,"","",null,{"$f":"IF(S3709=\"\",\"\",IF(S3709>0,VLOOKUP(S3709,#REF!,2,FALSE)))","v":""},null,null,null,"Interne :\nExterne :",null,null,null,null,null,null,null,null,null,null,null,null,null,"","",0,null,null,null,null,null,null,null,null,null,null,null,"",null,0,0,0,"","",3705,null,{"$f":"IF(AL3709=\"\",\"\",IF(AL3709>=#REF!,\"x\",\"\"))","v":""},"","","","","","","","","","","","","","","","","","","","","","","","","","","","","","","","",null,"","","","","","","","","","","","","","","","",null,null,null,null,null,null,null,null,null,null,null,null,null,null,null,null,null,null,null,null,null,null,null,null,null,null,null,null,null,null,null,null,null,null,null,null,null,null,null,null,null,null,null,null,null,null,null,null,null,null,null,null,null,null,null,null,null,null,null,null,null,null,null,null,null,null,null,null,null,null,null,null,null,null,null,null,"","",null,"",null,"",null,"",null,"",null,"",null,"",null,"",null,"",null,"",null,"",null,"",null,"",null,"",null,""]
[null,null,null,null,null,null,null,null,null,null,null,null,null,null,null,null,"","",null,{"$f":"IF(S3794=\"\",\"\",IF(S3794>0,VLOOKUP(S3794,#REF!,2,FALSE)))","v":""},null,null,null,"Interne :\nExterne :",null,null,null,null,null,null,null,null,null,null,null,null,null,"","",0,null,null,null,null,null,null,null,null,null,null,null,"",null,0,0,0,"","",3790,null,{"$f":"IF(AL3794=\"\",\"\",IF(AL3794>=#REF!,\"x\",\"\"))","v":""},"","","","","","","","","","","","","","","","","","","","","","","","","","","","","","","","",null,"","","","","","","","","","","","","","","","",null,null,null,null,null,null,null,null,null,null,null,null,null,null,null,null,null,null,null,null,null,null,null,null,null,null,null,null,null,null,null,null,null,null,null,null,null,null,null,null,null,null,null,null,null,null,null,null,null,null,null,null,null,null,null,null,null,null,null,null,null,null,null,null,null,null,null,null,null,null,null,null,null,null,null,null,"","",null,"",null,"",null,"",null,"",null,"",null,"",null,"",null,"",null,"",null,"",null,"",null,"",null,"",null,""]
[null,null,null,null,null,null,null,null,null,null,null,null,null,null,null,null,"","",null,{"$f":"IF(S3823=\"\",\"\",IF(S3823>0,VLOOKUP(S3823,#REF!,2,FALSE)))","v":""},null,null,null,"Interne :\nExterne :",null,null,null,null,null,null,null,null,null,null,null,null,null,"","",0,null,null,null,null,null,null,null,null,null,null,null,"",null,0,0,0,"","",3819,null,{"$f":"IF(AL3823=\"\",\"\",IF(AL3823>=#REF!,\"x\",\"\"))","v":""},"","","","","","","","","","","","","","","","","","","","","","","","","","","","","","","","",null,"","","","","","","","","","","","","","","","",null,null,null,null,null,null,null,null,null,null,null,null,null,null,null,null,null,null,null,null,null,null,null,null,null,null,null,null,null,null,null,null,null,null,null,null,null,null,null,null,null,null,null,null,null,null,null,null,null,null,null,null,null,null,null,null,null,null,null,null,null,null,null,null,null,null,null,null,null,null,null,null,null,null,null,null,"","",null,"",null,"",null,"",null,"",null,"",null,"",null,"",null,"",null,"",null,"",null,"",null,"",null,"",null,""]
[null,null,null,null,null,null,null,null,null,null,null,null,null,null,null,null,"","",null,{"$f":"IF(S3890=\"\",\"\",IF(S3890>0,VLOOKUP(S3890,#REF!,2,FALSE)))","v":""},null,null,null,"Interne :\nExterne :",null,null,null,null,null,null,null,null,null,null,null,null,null,"","",0,null,null,null,null,null,null,null,null,null,null,null,"",null,0,0,0,"","",3886,null,{"$f":"IF(AL3890=\"\",\"\",IF(AL3890>=#REF!,\"x\",\"\"))","v":""},"","","","","","","","","","","","","","","","","","","","","","","","","","","","","","","","",null,"","","","","","","","","","","","","","","","",null,null,null,null,null,null,null,null,null,null,null,null,null,null,null,null,null,null,null,null,null,null,null,null,null,null,null,null,null,null,null,null,null,null,null,null,null,null,null,null,null,null,null,null,null,null,null,null,null,null,null,null,null,null,null,null,null,null,null,null,null,null,null,null,null,null,null,null,null,null,null,null,null,null,null,null,"","",null,"",null,"",null,"",null,"",null,"",null,"",null,"",null,"",null,"",null,"",null,"",null,"",null,"",null,""]
[null,null,null,null,null,null,null,null,null,null,null,null,null,null,null,null,"","",null,{"$f":"IF(S3940=\"\",\"\",IF(S3940>0,VLOOKUP(S3940,#REF!,2,FALSE)))","v":""},null,null,null,"Interne :\nExterne :",null,null,null,null,null,null,null,null,null,null,null,null,null,"","",0,null,null,null,null,null,null,null,null,null,null,null,"",null,0,0,0,"","",3936,null,{"$f":"IF(AL3940=\"\",\"\",IF(AL3940>=#REF!,\"x\",\"\"))","v":""},"","","","","","","","","","","","","","","","","","","","","","","","","","","","","","","","",null,"","","","","","","","","","","","","","","","",null,null,null,null,null,null,null,null,null,null,null,null,null,null,null,null,null,null,null,null,null,null,null,null,null,null,null,null,null,null,null,null,null,null,null,null,null,null,null,null,null,null,null,null,null,null,null,null,null,null,null,null,null,null,null,null,null,null,null,null,null,null,null,null,null,null,null,null,null,null,null,null,null,null,null,null,"","",null,"",null,"",null,"",null,"",null,"",null,"",null,"",null,"",null,"",null,"",null,"",null,"",null,"",null,""]
[null,null,null,null,null,null,null,null,null,null,null,null,null,null,null,null,"","",null,{"$f":"IF(S3969=\"\",\"\",IF(S3969>0,VLOOKUP(S3969,#REF!,2,FALSE)))","v":""},null,null,null,"Interne :\nExterne :",null,null,null,null,null,null,null,null,null,null,null,null,null,{"$f":"IF(AK3969=\"\",\"\",IF(AK3969>0,((AI3969*AJ3969)/AK3969),\"\"))","v":""},"",0,null,null,null,null,null,null,null,null,null,null,null,"",null,0,0,0,"","",3965,null,{"$f":"IF(AL3969=\"\",\"\",IF(AL3969>=#REF!,\"x\",\"\"))","v":""},"","","","","","","","","","","","","","","","","","","","","","","","","","","","","","","","",null,"","","","","","","","","","","","","","","","",null,null,null,null,null,null,null,null,null,null,null,null,null,null,null,null,null,null,null,null,null,null,null,null,null,null,null,null,null,null,null,null,null,null,null,null,null,null,null,null,null,null,null,null,null,null,null,null,null,null,null,null,null,null,null,null,null,null,null,null,null,null,null,null,null,null,null,null,null,null,null,null,null,null,null,null,"","",null,"",null,"",null,"",null,"",null,"",null,"",null,"",null,"",null,"",null,"",null,"",null,"",null,"",null,""]
[null,null,null,null,null,null,null,null,null,null,null,null,null,null,null,null,"","",null,{"$f":"IF(S4054=\"\",\"\",IF(S4054>0,VLOOKUP(S4054,#REF!,2,FALSE)))","v":""},null,null,null,"Interne :\nExterne :",null,null,null,null,null,null,null,null,null,null,null,null,null,"","",0,null,null,null,null,null,null,null,null,null,null,null,"",null,0,0,0,"","",4050,null,{"$f":"IF(AL4054=\"\",\"\",IF(AL4054>=#REF!,\"x\",\"\"))","v":""},"","","","","","","","","","","","","","","","","","","","","","","","","","","","","","","","",null,"","","","","","","","","","","","","","","","",null,null,null,null,null,null,null,null,null,null,null,null,null,null,null,null,null,null,null,null,null,null,null,null,null,null,null,null,null,null,null,null,null,null,null,null,null,null,null,null,null,null,null,null,null,null,null,null,null,null,null,null,null,null,null,null,null,null,null,null,null,null,null,null,null,null,null,null,null,null,null,null,null,null,null,null,"","",null,"",null,"",null,"",null,"",null,"",null,"",null,"",null,"",null,"",null,"",null,"",null,"",null,"",null,""]
[null,null,null,null,null,null,null,null,null,null,null,null,null,null,null,null,"","",null,{"$f":"IF(S4083=\"\",\"\",IF(S4083>0,VLOOKUP(S4083,#REF!,2,FALSE)))","v":""},null,null,null,"Interne :\nExterne :",null,null,null,null,null,null,null,null,null,null,null,null,null,"","",0,null,null,null,null,null,null,null,null,null,null,null,"",null,0,0,0,"","",4079,null,{"$f":"IF(AL4083=\"\",\"\",IF(AL4083>=#REF!,\"x\",\"\"))","v":""},"","","","","","","","","","","","","","","","","","","","","","","","","","","","","","","","",null,"","","","","","","","","","","","","","","","",null,null,null,null,null,null,null,null,null,null,null,null,null,null,null,null,null,null,null,null,null,null,null,null,null,null,null,null,null,null,null,null,null,null,null,null,null,null,null,null,null,null,null,null,null,null,null,null,null,null,null,null,null,null,null,null,null,null,null,null,null,null,null,null,null,null,null,null,null,null,null,null,null,null,null,null,"","",null,"",null,"",null,"",null,"",null,"",null,"",null,"",null,"",null,"",null,"",null,"",null,"",null,"",null,""]
[null,null,null,null,null,null,null,null,null,null,null,null,null,null,null,null,"","",null,{"$f":"IF(S4168=\"\",\"\",IF(S4168>0,VLOOKUP(S4168,#REF!,2,FALSE)))","v":""},null,null,null,"Interne :\nExterne :",null,null,null,null,null,null,null,null,null,null,null,null,null,"","",0,null,null,null,null,null,null,null,null,null,null,null,"",null,0,0,0,"","",4164,null,{"$f":"IF(AL4168=\"\",\"\",IF(AL4168>=#REF!,\"x\",\"\"))","v":""},"","","","","","","","","","","","","","","","","","","","","","","","","","","","","","","","",null,"","","","","","","","","","","","","","","","",null,null,null,null,null,null,null,null,null,null,null,null,null,null,null,null,null,null,null,null,null,null,null,null,null,null,null,null,null,null,null,null,null,null,null,null,null,null,null,null,null,null,null,null,null,null,null,null,null,null,null,null,null,null,null,null,null,null,null,null,null,null,null,null,null,null,null,null,null,null,null,null,null,null,null,null,"","",null,"",null,"",null,"",null,"",null,"",null,"",null,"",null,"",null,"",null,"",null,"",null,"",null,"",null,""]
[null,null,null,null,null,null,null,null,null,null,null,null,null,null,null,null,"","",null,{"$f":"IF(S4203=\"\",\"\",IF(S4203>0,VLOOKUP(S4203,#REF!,2,FALSE)))","v":""},null,null,null,"Interne :\nExterne :",null,null,null,null,null,null,null,null,null,null,null,null,null,"","",0,null,null,null,null,null,null,null,null,null,null,null,"",null,0,0,0,"","",4199,null,{"$f":"IF(AL4203=\"\",\"\",IF(AL4203>=#REF!,\"x\",\"\"))","v":""},"","","","","","","","","","","","","","","","","","","","","","","","","","","","","","","","",null,"","","","","","","","","","","","","","","","",null,null,null,null,null,null,null,null,null,null,null,null,null,null,null,null,null,null,null,null,null,null,null,null,null,null,null,null,null,null,null,null,null,null,null,null,null,null,null,null,null,null,null,null,null,null,null,null,null,null,null,null,null,null,null,null,null,null,null,null,null,null,null,null,null,null,null,null,null,null,null,null,null,null,null,null,"","",null,"",null,"",null,"",null,"",null,"",null,"",null,"",null,"",null,"",null,"",null,"",null,"",null,"",null,""]
[null,null,null,null,null,null,null,null,null,null,null,null,null,null,null,null,"","",null,{"$f":"IF(S4229=\"\",\"\",IF(S4229>0,VLOOKUP(S4229,#REF!,2,FALSE)))","v":""},null,null,null,"Interne :\nExterne :",null,null,null,null,null,null,null,null,null,null,null,null,null,"","",0,null,null,null,null,null,null,null,null,null,null,null,{"$f":"IF(D4229=\"\",\"\",IF(AW4229=\"\",\"A Planifier\",IF(AY4229<>\"\",\"Soldées\",IF(AW4229<TODAY(),\"Retard\",\"En cours\"))))","v":""},null,{"$f":"AI4229","v":0},{"$f":"AJ4229","v":0},{"$f":"AK4229","v":0},"","",4225,null,{"$f":"IF(AL4229=\"\",\"\",IF(AL4229>=#REF!,\"x\",\"\"))","v":""},{"$f":"CONCATENATE(Y4229,BI4229)","v":""},{"$f":"CONCATENATE(Y4229,AZ4229)","v":""},"","","","","","","","","","","","","","","","","","","","","","","","","","","","","","",null,"","","","","","","","","","","","","","","",{"$f":"CONCATENATE(J4229,AZ4229)","v":""},null,null,null,null,null,null,null,null,null,null,null,null,null,null,null,null,null,null,null,null,null,null,null,null,null,null,null,null,null,null,null,null,null,null,null,null,null,null,null,null,null,null,null,null,null,null,null,null,null,null,null,null,null,null,null,null,null,null,null,null,null,null,null,null,null,null,null,null,null,null,null,null,null,null,null,null,{"$f":"CONCATENATE(Y4229,AZ4229)","v":""},"",null,"",null,"",null,"",null,"",null,"",null,"",null,"",null,"",null,"",null,"",null,"",null,"",null,"",null,""]
[null,null,null,null,null,null,null,null,null,null,null,null,null,null,null,null,"","",null,{"$f":"IF(S4314=\"\",\"\",IF(S4314>0,VLOOKUP(S4314,#REF!,2,FALSE)))","v":""},null,null,null,"Interne :\nExterne :",null,null,null,null,null,null,null,null,null,null,null,null,null,"","",0,null,null,null,null,null,null,null,null,null,null,null,"",null,0,0,0,"","",4310,null,{"$f":"IF(AL4314=\"\",\"\",IF(AL4314>=#REF!,\"x\",\"\"))","v":""},"","","","","","","","","","","","","","","","","","","","","","","","","","","","","","","","",null,"","","","","","","","","","","","","","","","",null,null,null,null,null,null,null,null,null,null,null,null,null,null,null,null,null,null,null,null,null,null,null,null,null,null,null,null,null,null,null,null,null,null,null,null,null,null,null,null,null,null,null,null,null,null,null,null,null,null,null,null,null,null,null,null,null,null,null,null,null,null,null,null,null,null,null,null,null,null,null,null,null,null,null,null,"","",null,"",null,"",null,"",null,"",null,"",null,"",null,"",null,"",null,"",null,"",null,"",null,"",null,"",null,""]
[null,null,null,null,null,null,null,null,null,null,null,null,null,null,null,null,"","",null,{"$f":"IF(S4347=\"\",\"\",IF(S4347>0,VLOOKUP(S4347,#REF!,2,FALSE)))","v":""},null,null,null,"Interne :\nExterne :",null,null,null,null,null,null,null,null,null,null,null,null,null,"","",0,null,null,null,null,null,null,null,null,null,null,null,"",null,0,0,0,"","",4343,null,{"$f":"IF(AL4347=\"\",\"\",IF(AL4347>=#REF!,\"x\",\"\"))","v":""},"","","","","","","","","","","","","","","","","","","","","","","","","","","","","","","","",null,"","","","","","","","","","","","","","","","",null,null,null,null,null,null,null,null,null,null,null,null,null,null,null,null,null,null,null,null,null,null,null,null,null,null,null,null,null,null,null,null,null,null,null,null,null,null,null,null,null,null,null,null,null,null,null,null,null,null,null,null,null,null,null,null,null,null,null,null,null,null,null,null,null,null,null,null,null,null,null,null,null,null,null,null,"","",null,"",null,"",null,"",null,"",null,"",null,"",null,"",null,"",null,"",null,"",null,"",null,"",null,"",null,""]
[null,null,null,null,null,null,null,null,null,null,null,null,null,null,null,null,"","",null,{"$f":"IF(S4428=\"\",\"\",IF(S4428>0,VLOOKUP(S4428,#REF!,2,FALSE)))","v":""},null,null,null,"Interne :\nExterne :",null,null,null,null,null,null,null,null,null,null,null,null,null,"","",0,null,null,null,null,null,null,null,null,null,null,null,"",null,0,0,0,"","",4424,null,{"$f":"IF(AL4428=\"\",\"\",IF(AL4428>=#REF!,\"x\",\"\"))","v":""},"","","","","","","","","","","","","","","","","","","","","","","","","","","","","","","","",null,"","","","","","","","","","","","","","","","",null,null,null,null,null,null,null,null,null,null,null,null,null,null,null,null,null,null,null,null,null,null,null,null,null,null,null,null,null,null,null,null,null,null,null,null,null,null,null,null,null,null,null,null,null,null,null,null,null,null,null,null,null,null,null,null,null,null,null,null,null,null,null,null,null,null,null,null,null,null,null,null,null,null,null,null,"","",null,"",null,"",null,"",null,"",null,"",null,"",null,"",null,"",null,"",null,"",null,"",null,"",null,"",null,""]
[null,null,null,null,null,null,null,null,null,null,null,null,null,null,null,null,"","",null,{"$f":"IF(S4461=\"\",\"\",IF(S4461>0,VLOOKUP(S4461,#REF!,2,FALSE)))","v":""},null,null,null,"Interne :\nExterne :",null,null,null,null,null,null,null,null,null,null,null,null,null,"","",0,null,null,null,null,null,null,null,null,null,null,null,"",null,0,0,0,"","",4457,null,{"$f":"IF(AL4461=\"\",\"\",IF(AL4461>=#REF!,\"x\",\"\"))","v":""},"","","","","","","","","","","","","","","","","","","","","","","","","","","","","","","","",null,"","","","","","","","","","","","","","","","",null,null,null,null,null,null,null,null,null,null,null,null,null,null,null,null,null,null,null,null,null,null,null,null,null,null,null,null,null,null,null,null,null,null,null,null,null,null,null,null,null,null,null,null,null,null,null,null,null,null,null,null,null,null,null,null,null,null,null,null,null,null,null,null,null,null,null,null,null,null,null,null,null,null,null,null,"","",null,"",null,"",null,"",null,"",null,"",null,"",null,"",null,"",null,"",null,"",null,"",null,"",null,"",null,""]
[null,null,null,null,null,null,null,null,null,null,null,null,null,null,null,null,"","",null,{"$f":"IF(S4490=\"\",\"\",IF(S4490>0,VLOOKUP(S4490,#REF!,2,FALSE)))","v":""},null,null,null,"Interne :\nExterne :",null,null,null,null,null,null,null,null,null,null,null,null,null,"","",0,null,null,null,null,null,null,null,null,null,null,null,"",null,0,0,0,"","",4486,null,{"$f":"IF(AL4490=\"\",\"\",IF(AL4490>=#REF!,\"x\",\"\"))","v":""},"","","","","","","","","","","","","","","","","","","","","","","","","","","","","","","","",null,"","","","","","","","","","","","","","","","",null,null,null,null,null,null,null,null,null,null,null,null,null,null,null,null,null,null,null,null,null,null,null,null,null,null,null,null,null,null,null,null,null,null,null,null,null,null,null,null,null,null,null,null,null,null,null,null,null,null,null,null,null,null,null,null,null,null,null,null,null,null,null,null,null,null,null,null,null,null,null,null,null,null,null,null,"","",null,"",null,"",null,"",null,"",null,"",null,"",null,"",null,"",null,"",null,"",null,"",null,"",null,"",null,""]
[null,null,null,null,null,null,null,null,null,null,null,null,null,null,null,null,"","",null,{"$f":"IF(S4569=\"\",\"\",IF(S4569>0,VLOOKUP(S4569,#REF!,2,FALSE)))","v":""},null,null,null,"Interne :\nExterne :",null,null,null,null,null,null,null,null,null,null,null,null,null,"","",0,null,null,null,null,null,null,null,null,null,null,null,"",null,0,0,0,"","",4565,null,{"$f":"IF(AL4569=\"\",\"\",IF(AL4569>=#REF!,\"x\",\"\"))","v":""},"","","","","","","","","","","","","","","","","","","","","","","","","","","","","","","","",null,"","","","","","","","","","","","","","","","",null,null,null,null,null,null,null,null,null,null,null,null,null,null,null,null,null,null,null,null,null,null,null,null,null,null,null,null,null,null,null,null,null,null,null,null,null,null,null,null,null,null,null,null,null,null,null,null,null,null,null,null,null,null,null,null,null,null,null,null,null,null,null,null,null,null,null,null,null,null,null,null,null,null,null,null,"","",null,"",null,"",null,"",null,"",null,"",null,"",null,"",null,"",null,"",null,"",null,"",null,"",null,"",null,""]
[null,null,null,null,null,null,null,null,null,null,null,null,null,null,null,null,"","",null,{"$f":"IF(S4607=\"\",\"\",IF(S4607>0,VLOOKUP(S4607,#REF!,2,FALSE)))","v":""},null,null,null,"Interne :\nExterne :",null,null,null,null,null,null,null,null,null,null,null,null,null,"","",0,null,null,null,null,null,null,null,null,null,null,null,"",null,0,0,0,"","",4603,null,{"$f":"IF(AL4607=\"\",\"\",IF(AL4607>=#REF!,\"x\",\"\"))","v":""},"","","","","","","","","","","","","","","","","","","","","","","","","","","","","","","","",null,"","","","","","","","","","","","","","","","",null,null,null,null,null,null,null,null,null,null,null,null,null,null,null,null,null,null,null,null,null,null,null,null,null,null,null,null,null,null,null,null,null,null,null,null,null,null,null,null,null,null,null,null,null,null,null,null,null,null,null,null,null,null,null,null,null,null,null,null,null,null,null,null,null,null,null,null,null,null,null,null,null,null,null,null,"","",null,"",null,"",null,"",null,"",null,"",null,"",null,"",null,"",null,"",null,"",null,"",null,"",null,"",null,""]
[null,null,null,null,null,null,null,null,null,null,null,null,null,null,null,null,"","",null,{"$f":"IF(S4636=\"\",\"\",IF(S4636>0,VLOOKUP(S4636,#REF!,2,FALSE)))","v":""},null,null,null,"Interne :\nExterne :",null,null,null,null,null,null,null,null,null,null,null,null,null,"","",0,null,null,null,null,null,null,null,null,null,null,null,"",null,0,0,0,"","",4632,null,{"$f":"IF(AL4636=\"\",\"\",IF(AL4636>=#REF!,\"x\",\"\"))","v":""},"","","","","","","","","","","","","","","","","","","","","","","","","","","","","","","","",null,"","","","","","","","","","","","","","","","",null,null,null,null,null,null,null,null,null,null,null,null,null,null,null,null,null,null,null,null,null,null,null,null,null,null,null,null,null,null,null,null,null,null,null,null,null,null,null,null,null,null,null,null,null,null,null,null,null,null,null,null,null,null,null,null,null,null,null,null,null,null,null,null,null,null,null,null,null,null,null,null,null,null,null,null,"","",null,"",null,"",null,"",null,"",null,"",null,"",null,"",null,"",null,"",null,"",null,"",null,"",null,"",null,""]
[null,null,null,null,null,null,null,null,null,null,null,null,null,null,null,null,"","",null,{"$f":"IF(S4721=\"\",\"\",IF(S4721>0,VLOOKUP(S4721,#REF!,2,FALSE)))","v":""},null,null,null,"Interne :\nExterne :",null,null,null,null,null,null,null,null,null,null,null,null,null,"","",0,null,null,null,null,null,null,null,null,null,null,null,"",null,0,0,0,"","",4717,null,{"$f":"IF(AL4721=\"\",\"\",IF(AL4721>=#REF!,\"x\",\"\"))","v":""},"","","","","","","","","","","","","","","","","","","","","","","","","","","","","","","","",null,"","","","","","","","","","","","","","","","",null,null,null,null,null,null,null,null,null,null,null,null,null,null,null,null,null,null,null,null,null,null,null,null,null,null,null,null,null,null,null,null,null,null,null,null,null,null,null,null,null,null,null,null,null,null,null,null,null,null,null,null,null,null,null,null,null,null,null,null,null,null,null,null,null,null,null,null,null,null,null,null,null,null,null,null,"","",null,"",null,"",null,"",null,"",null,"",null,"",null,"",null,"",null,"",null,"",null,"",null,"",null,"",null,""]
[null,null,null,null,null,null,null,null,null,null,null,null,null,null,null,null,"","",null,{"$f":"IF(S4754=\"\",\"\",IF(S4754>0,VLOOKUP(S4754,#REF!,2,FALSE)))","v":""},null,null,null,"Interne :\nExterne :",null,null,null,null,null,null,null,null,null,null,null,null,null,"","",0,null,null,null,null,null,null,null,null,null,null,null,"",null,0,0,0,"","",4750,null,{"$f":"IF(AL4754=\"\",\"\",IF(AL4754>=#REF!,\"x\",\"\"))","v":""},"","","","","","","","","","","","","","","","","","","","","","","","","","","","","","","","",null,"","","","","","","","","","","","","","","","",null,null,null,null,null,null,null,null,null,null,null,null,null,null,null,null,null,null,null,null,null,null,null,null,null,null,null,null,null,null,null,null,null,null,null,null,null,null,null,null,null,null,null,null,null,null,null,null,null,null,null,null,null,null,null,null,null,null,null,null,null,null,null,null,null,null,null,null,null,null,null,null,null,null,null,null,"","",null,"",null,"",null,"",null,"",null,"",null,"",null,"",null,"",null,"",null,"",null,"",null,"",null,"",null,""]
[null,null,null,null,null,null,null,null,null,null,null,null,null,null,null,null,"","",null,{"$f":"IF(S4835=\"\",\"\",IF(S4835>0,VLOOKUP(S4835,#REF!,2,FALSE)))","v":""},null,null,null,"Interne :\nExterne :",null,null,null,null,null,null,null,null,null,null,null,null,null,"","",{"$f":"COUNTA(AP4835:AW4835)","v":0},null,null,null,null,null,null,null,null,null,null,null,"",null,0,0,0,"","",4831,null,{"$f":"IF(AL4835=\"\",\"\",IF(AL4835>=#REF!,\"x\",\"\"))","v":""},"","","","","","","","","","","","","","","","","","","","","","","","","","","","","","","","",null,"","","","","","","","","","","","","","","","",null,null,null,null,null,null,null,null,null,null,null,null,null,null,null,null,null,null,null,null,null,null,null,null,null,null,null,null,null,null,null,null,null,null,null,null,null,null,null,null,null,null,null,null,null,null,null,null,null,null,null,null,null,null,null,null,null,null,null,null,null,null,null,null,null,null,null,null,null,null,null,null,null,null,null,null,"","",null,"",null,"",null,"",null,"",null,"",null,"",null,"",null,"",null,"",null,"",null,"",null,"",null,"",null,""]
[null,null,null,null,null,null,null,null,null,null,null,null,null,null,null,null,"","",null,{"$f":"IF(S4868=\"\",\"\",IF(S4868>0,VLOOKUP(S4868,#REF!,2,FALSE)))","v":""},null,null,null,"Interne :\nExterne :",null,null,null,null,null,null,null,null,null,null,null,null,null,"","",0,null,null,null,null,null,null,null,null,null,null,null,"",null,0,0,0,"","",4864,null,{"$f":"IF(AL4868=\"\",\"\",IF(AL4868>=#REF!,\"x\",\"\"))","v":""},"","","","","","","","","","","","","","","","","","","","","","","","","","","","","","","","",null,"","","","","","","","","","","","","","","","",null,null,null,null,null,null,null,null,null,null,null,null,null,null,null,null,null,null,null,null,null,null,null,null,null,null,null,null,null,null,null,null,null,null,null,null,null,null,null,null,null,null,null,null,null,null,null,null,null,null,null,null,null,null,null,null,null,null,null,null,null,null,null,null,null,null,null,null,null,null,null,null,null,null,null,null,"","",null,"",null,"",null,"",null,"",null,"",null,"",null,"",null,"",null,"",null,"",null,"",null,"",null,"",null,""]
[null,null,null,null,null,null,null,null,null,null,null,null,null,null,null,null,"","",null,{"$f":"IF(S4935=\"\",\"\",IF(S4935>0,VLOOKUP(S4935,#REF!,2,FALSE)))","v":""},null,null,null,"Interne :\nExterne :",null,null,null,null,null,null,null,null,null,null,null,null,null,"","",0,null,null,null,null,null,null,null,null,null,null,null,"",null,0,0,0,"","",4931,null,{"$f":"IF(AL4935=\"\",\"\",IF(AL4935>=#REF!,\"x\",\"\"))","v":""},"","","","","","","","","","","","","","","","","","","","","","","","","","","","","","","","",null,"","","","","","","","","","","","","","","","",null,null,null,null,null,null,null,null,null,null,null,null,null,null,null,null,null,null,null,null,null,null,null,null,null,null,null,null,null,null,null,null,null,null,null,null,null,null,null,null,null,null,null,null,null,null,null,null,null,null,null,null,null,null,null,null,null,null,null,null,null,null,null,null,null,null,null,null,null,null,null,null,null,null,null,null,"","",null,"",null,"",null,"",null,"",null,"",null,"",null,"",null,"",null,"",null,"",null,"",null,"",null,"",null,""]
[null,null,null,null,null,null,null,null,null,null,null,null,null,null,null,null,"","",null,{"$f":"IF(S4981=\"\",\"\",IF(S4981>0,VLOOKUP(S4981,#REF!,2,FALSE)))","v":""},null,null,null,"Interne :\nExterne :",null,null,null,null,null,null,null,null,null,null,null,null,null,"","",0,null,null,null,null,null,null,null,null,null,null,null,"",null,0,0,0,"","",4977,null,{"$f":"IF(AL4981=\"\",\"\",IF(AL4981>=#REF!,\"x\",\"\"))","v":""},"","","","","","","","","","","","","","","","","","","","","","","","","","","","","","","","",null,"","","","","","","","","","","","","","","","",null,null,null,null,null,null,null,null,null,null,null,null,null,null,null,null,null,null,null,null,null,null,null,null,null,null,null,null,null,null,null,null,null,null,null,null,null,null,null,null,null,null,null,null,null,null,null,null,null,null,null,null,null,null,null,null,null,null,null,null,null,null,null,null,null,null,null,null,null,null,null,null,null,null,null,null,"","",null,"",null,"",null,"",null,"",null,"",null,"",null,"",null,"",null,"",null,"",null,"",null,"",null,"",null,""]
[null,null,null,null,null,null,null,null,null,null,null,null,null,null,null,null,"","",null,{"$f":"IF(S5014=\"\",\"\",IF(S5014>0,VLOOKUP(S5014,#REF!,2,FALSE)))","v":""},null,null,null,"Interne :\nExterne :",null,null,null,null,null,null,null,null,null,null,null,null,null,"","",0,null,null,null,null,null,null,null,null,null,null,null,"",null,0,0,0,"","",null,null,{"$f":"IF(AL5014=\"\",\"\",IF(AL5014>=#REF!,\"x\",\"\"))","v":""},"","","","","","","","","","","","","","","","","","","","","","","","","","","","","","","","",null,"","","","","","","","","","","","","","","","",null,null,null,null,null,null,null,null,null,null,null,null,null,null,null,null,null,null,null,null,null,null,null,null,null,null,null,null,null,null,null,null,null,null,null,null,null,null,null,null,null,null,null,null,null,null,null,null,null,null,null,null,null,null,null,null,null,null,null,null,null,null,null,null,null,null,null,null,null,null,null,null,null,null,null,null,"","",null,"",null,"",null,"",null,"",null,"",null,"",null,"",null,"",null,"",null,"",null,"",null,"",null,"",null,""]
[null,null,null,null,null,null,null,null,null,null,null,null,null,null,null,null,"","",null,{"$f":"IF(S5095=\"\",\"\",IF(S5095>0,VLOOKUP(S5095,#REF!,2,FALSE)))","v":""},null,null,null,"Interne :\nExterne :",null,null,null,null,null,null,null,null,null,null,null,null,null,"","",0,null,null,null,null,null,null,null,null,null,null,null,"",null,0,0,0,"","",null,null,{"$f":"IF(AL5095=\"\",\"\",IF(AL5095>=#REF!,\"x\",\"\"))","v":""},"","","","","","","","","","","","","","","","","","","","","","","","","","","","","","","","",null,"","","","","","","","","","","","","","","","",null,null,null,null,null,null,null,null,null,null,null,null,null,null,null,null,null,null,null,null,null,null,null,null,null,null,null,null,null,null,null,null,null,null,null,null,null,null,null,null,null,null,null,null,null,null,null,null,null,null,null,null,null,null,null,null,null,null,null,null,null,null,null,null,null,null,null,null,null,null,null,null,null,null,null,null,"","",null,"",null,"",null,"",null,"",null,"",null,"",null,"",null,"",null,"",null,"",null,"",null,"",null,"",null,""]
[null,null,null,null,null,null,null,null,null,null,null,null,null,null,null,null,"","",null,{"$f":"IF(S5128=\"\",\"\",IF(S5128>0,VLOOKUP(S5128,#REF!,2,FALSE)))","v":""},null,null,null,"Interne :\nExterne :",null,null,null,null,null,null,null,null,null,null,null,null,null,"","",0,null,null,null,null,null,null,null,null,null,null,null,"",null,0,0,0,"","",null,null,{"$f":"IF(AL5128=\"\",\"\",IF(AL5128>=#REF!,\"x\",\"\"))","v":""},"","","","","","","","","","","","","","","","","","","","","","","","","","","","","","","","",null,"","","","","","","","","","","","","","","","",null,null,null,null,null,null,null,null,null,null,null,null,null,null,null,null,null,null,null,null,null,null,null,null,null,null,null,null,null,null,null,null,null,null,null,null,null,null,null,null,null,null,null,null,null,null,null,null,null,null,null,null,null,null,null,null,null,null,null,null,null,null,null,null,null,null,null,null,null,null,null,null,null,null,null,null,"","",null,"",null,"",null,"",null,"",null,"",null,"",null,"",null,"",null,"",null,"",null,"",null,"",null,"",null,""]
[null,null,null,null,null,null,null,null,null,null,null,null,null,null,null,null,"","",null,{"$f":"IF(S5157=\"\",\"\",IF(S5157>0,VLOOKUP(S5157,#REF!,2,FALSE)))","v":""},null,null,null,"Interne :\nExterne :",null,null,null,null,null,null,null,null,null,null,null,null,null,"","",0,null,null,null,null,null,null,null,null,null,null,null,"",null,0,0,0,"","",null,null,{"$f":"IF(AL5157=\"\",\"\",IF(AL5157>=#REF!,\"x\",\"\"))","v":""},"","","","","","","","","","","","","","","","","","","","","","","","","","","","","","","","",null,"","","","","","","","","","","","","","","","",null,null,null,null,null,null,null,null,null,null,null,null,null,null,null,null,null,null,null,null,null,null,null,null,null,null,null,null,null,null,null,null,null,null,null,null,null,null,null,null,null,null,null,null,null,null,null,null,null,null,null,null,null,null,null,null,null,null,null,null,null,null,null,null,null,null,null,null,null,null,null,null,null,null,null,null,"","",null,"",null,"",null,"",null,"",null,"",null,"",null,"",null,"",null,"",null,"",null,"",null,"",null,"",null,""]
[null,null,null,null,null,null,null,null,null,null,null,null,null,null,null,null,"","",null,{"$f":"IF(S5248=\"\",\"\",IF(S5248>0,VLOOKUP(S5248,#REF!,2,FALSE)))","v":""},null,null,null,"Interne :\nExterne :",null,null,null,null,null,null,null,null,null,null,null,null,null,{"$f":"IF(AK5248=\"\",\"\",IF(AK5248>0,((AI5248*AJ5248)/AK5248),\"\"))","v":""},"",0,null,null,null,null,null,null,null,null,null,null,null,"",null,0,0,0,"","",null,null,{"$f":"IF(AL5248=\"\",\"\",IF(AL5248>=#REF!,\"x\",\"\"))","v":""},"","","","","","","","","","","","","","","","","","","","","","","","","","","","","","","","",null,"","","","","","","","","","","","","","","","",null,null,null,null,null,null,null,null,null,null,null,null,null,null,null,null,null,null,null,null,null,null,null,null,null,null,null,null,null,null,null,null,null,null,null,null,null,null,null,null,null,null,null,null,null,null,null,null,null,null,null,null,null,null,null,null,null,null,null,null,null,null,null,null,null,null,null,null,null,null,null,null,null,null,null,null,"","",null,"",null,"",null,"",null,"",null,"",null,"",null,"",null,"",null,"",null,"",null,"",null,"",null,"",null,""]
[null,null,null,null,null,null,null,null,null,null,null,null,null,null,null,null,"","",null,{"$f":"IF(S5274=\"\",\"\",IF(S5274>0,VLOOKUP(S5274,#REF!,2,FALSE)))","v":""},null,null,null,"Interne :\nExterne :",null,null,null,null,null,null,null,null,null,null,null,null,null,"","",0,null,null,null,null,null,null,null,null,null,null,null,"",null,0,0,0,"","",null,null,{"$f":"IF(AL5274=\"\",\"\",IF(AL5274>=#REF!,\"x\",\"\"))","v":""},"","","","","","","","","","","","","","","","","","","","","","","","","","","","","","","","",null,"","","","","","","","","","","","","","","","",null,null,null,null,null,null,null,null,null,null,null,null,null,null,null,null,null,null,null,null,null,null,null,null,null,null,null,null,null,null,null,null,null,null,null,null,null,null,null,null,null,null,null,null,null,null,null,null,null,null,null,null,null,null,null,null,null,null,null,null,null,null,null,null,null,null,null,null,null,null,null,null,null,null,null,null,"","",null,"",null,"",null,"",null,"",null,"",null,"",null,"",null,"",null,"",null,"",null,"",null,"",null,"",null,""]
[null,null,null,null,null,null,null,null,null,null,null,null,null,null,null,null,"","",null,{"$f":"IF(S5355=\"\",\"\",IF(S5355>0,VLOOKUP(S5355,#REF!,2,FALSE)))","v":""},null,null,null,"Interne :\nExterne :",null,null,null,null,null,null,null,null,null,null,null,null,null,"","",0,null,null,null,null,null,null,null,null,null,null,null,"",null,0,0,0,"","",null,null,{"$f":"IF(AL5355=\"\",\"\",IF(AL5355>=#REF!,\"x\",\"\"))","v":""},"","","","","","","","","","","","","","","","","","","","","","","","","","","","","","","","",null,"","","","","","","","","","","","","","","","",null,null,null,null,null,null,null,null,null,null,null,null,null,null,null,null,null,null,null,null,null,null,null,null,null,null,null,null,null,null,null,null,null,null,null,null,null,null,null,null,null,null,null,null,null,null,null,null,null,null,null,null,null,null,null,null,null,null,null,null,null,null,null,null,null,null,null,null,null,null,null,null,null,null,null,null,"","",null,"",null,"",null,"",null,"",null,"",null,"",null,"",null,"",null,"",null,"",null,"",null,"",null,"",null,""]
[null,null,null,null,null,null,null,null,null,null,null,null,null,null,null,null,"","",null,{"$f":"IF(S5388=\"\",\"\",IF(S5388>0,VLOOKUP(S5388,#REF!,2,FALSE)))","v":""},null,null,null,"Interne :\nExterne :",null,null,null,null,null,null,null,null,null,null,null,null,null,"","",0,null,null,null,null,null,null,null,null,null,null,null,"",null,0,0,0,"","",null,null,{"$f":"IF(AL5388=\"\",\"\",IF(AL5388>=#REF!,\"x\",\"\"))","v":""},"","","","","","","","","","","","","","","","","","","","","","","","","","","","","","","","",null,"","","","","","","","","","","","","","","","",null,null,null,null,null,null,null,null,null,null,null,null,null,null,null,null,null,null,null,null,null,null,null,null,null,null,null,null,null,null,null,null,null,null,null,null,null,null,null,null,null,null,null,null,null,null,null,null,null,null,null,null,null,null,null,null,null,null,null,null,null,null,null,null,null,null,null,null,null,null,null,null,null,null,null,null,"","",null,"",null,"",null,"",null,"",null,"",null,"",null,"",null,"",null,"",null,"",null,"",null,"",null,"",null,""]
[null,null,null,null,null,null,null,null,null,null,null,null,null,null,null,null,"","",null,{"$f":"IF(S5421=\"\",\"\",IF(S5421>0,VLOOKUP(S5421,#REF!,2,FALSE)))","v":""},null,null,null,"Interne :\nExterne :",null,null,null,null,null,null,null,null,null,null,null,null,null,"","",0,null,null,null,null,null,null,null,null,null,null,null,"",null,0,0,0,"","",null,null,{"$f":"IF(AL5421=\"\",\"\",IF(AL5421>=#REF!,\"x\",\"\"))","v":""},"","","","","","","","","","","","","","","","","","","","","","","","","","","","","","","","",null,"","","","","","","","","","","","","","","","",null,null,null,null,null,null,null,null,null,null,null,null,null,null,null,null,null,null,null,null,null,null,null,null,null,null,null,null,null,null,null,null,null,null,null,null,null,null,null,null,null,null,null,null,null,null,null,null,null,null,null,null,null,null,null,null,null,null,null,null,null,null,null,null,null,null,null,null,null,null,null,null,null,null,null,null,"","",null,"",null,"",null,"",null,"",null,"",null,"",null,"",null,"",null,"",null,"",null,"",null,"",null,"",null,""]
[null,null,null,null,null,null,null,null,null,null,null,null,null,null,null,null,"","",null,{"$f":"IF(S5502=\"\",\"\",IF(S5502>0,VLOOKUP(S5502,#REF!,2,FALSE)))","v":""},null,null,null,"Interne :\nExterne :",null,null,null,null,null,null,null,null,null,null,null,null,null,"","",0,null,null,null,null,null,null,null,null,null,null,null,"",null,0,0,0,"","",null,null,{"$f":"IF(AL5502=\"\",\"\",IF(AL5502>=#REF!,\"x\",\"\"))","v":""},"","","","","","","","","","","","","","","","","","","","","","","","","","","","","","","","",null,"","","","","","","","","","","","","","","","",null,null,null,null,null,null,null,null,null,null,null,null,null,null,null,null,null,null,null,null,null,null,null,null,null,null,null,null,null,null,null,null,null,null,null,null,null,null,null,null,null,null,null,null,null,null,null,null,null,null,null,null,null,null,null,null,null,null,null,null,null,null,null,null,null,null,null,null,null,null,null,null,null,null,null,null,"","",null,"",null,"",null,"",null,"",null,"",null,"",null,"",null,"",null,"",null,"",null,"",null,"",null,"",null,""]
[null,null,null,null,null,null,null,null,null,null,null,null,null,null,null,null,"","",null,{"$f":"IF(S5535=\"\",\"\",IF(S5535>0,VLOOKUP(S5535,#REF!,2,FALSE)))","v":""},null,null,null,"Interne :\nExterne :",null,null,null,null,null,null,null,null,null,null,null,null,null,"","",0,null,null,null,null,null,null,null,null,null,null,null,"",null,0,0,0,"","",null,null,{"$f":"IF(AL5535=\"\",\"\",IF(AL5535>=#REF!,\"x\",\"\"))","v":""},"","","","","","","","","","","","","","","","","","","","","","","","","","","","","","","","",null,"","","","","","","","","","","","","","","","",null,null,null,null,null,null,null,null,null,null,null,null,null,null,null,null,null,null,null,null,null,null,null,null,null,null,null,null,null,null,null,null,null,null,null,null,null,null,null,null,null,null,null,null,null,null,null,null,null,null,null,null,null,null,null,null,null,null,null,null,null,null,null,null,null,null,null,null,null,null,null,null,null,null,null,null,"","",null,"",null,"",null,"",null,"",null,"",null,"",null,"",null,"",null,"",null,"",null,"",null,"",null,"",null,""]
[null,null,null,null,null,null,null,null,null,null,null,null,null,null,null,null,"","",null,{"$f":"IF(S5614=\"\",\"\",IF(S5614>0,VLOOKUP(S5614,#REF!,2,FALSE)))","v":""},null,null,null,"Interne :\nExterne :",null,null,null,null,null,null,null,null,null,null,null,null,null,"","",0,null,null,null,null,null,null,null,null,null,null,null,"",null,0,0,0,"","",null,null,{"$f":"IF(AL5614=\"\",\"\",IF(AL5614>=#REF!,\"x\",\"\"))","v":""},"","","","","","","","","","","","","","","","","","","","","","","","","","","","","","","","",null,"","","","","","","","","","","","","","","","",null,null,null,null,null,null,null,null,null,null,null,null,null,null,null,null,null,null,null,null,null,null,null,null,null,null,null,null,null,null,null,null,null,null,null,null,null,null,null,null,null,null,null,null,null,null,null,null,null,null,null,null,null,null,null,null,null,null,null,null,null,null,null,null,null,null,null,null,null,null,null,null,null,null,null,null,"","",null,"",null,"",null,"",null,"",null,"",null,"",null,"",null,"",null,"",null,"",null,"",null,"",null,"",null,""]
[null,null,null,null,null,null,null,null,null,null,null,null,null,null,null,null,"","",null,{"$f":"IF(S5648=\"\",\"\",IF(S5648>0,VLOOKUP(S5648,#REF!,2,FALSE)))","v":""},null,null,null,"Interne :\nExterne :",null,null,null,null,null,null,null,null,null,null,null,null,null,"","",0,null,null,null,null,null,null,null,null,null,null,null,"",null,0,0,0,"","",null,null,{"$f":"IF(AL5648=\"\",\"\",IF(AL5648>=#REF!,\"x\",\"\"))","v":""},"","","","","","","","","","","","","","","","","","","","","","","","","","","","","","","","",null,"","","","","","","","","","","","","","","","",null,null,null,null,null,null,null,null,null,null,null,null,null,null,null,null,null,null,null,null,null,null,null,null,null,null,null,null,null,null,null,null,null,null,null,null,null,null,null,null,null,null,null,null,null,null,null,null,null,null,null,null,null,null,null,null,null,null,null,null,null,null,null,null,null,null,null,null,null,null,null,null,null,null,null,null,"","",null,"",null,"",null,"",null,"",null,"",null,"",null,"",null,"",null,"",null,"",null,"",null,"",null,"",null,""]
[null,null,null,null,null,null,null,null,null,null,null,null,null,null,null,null,"","",null,{"$f":"IF(S5681=\"\",\"\",IF(S5681>0,VLOOKUP(S5681,#REF!,2,FALSE)))","v":""},null,null,null,"Interne :\nExterne :",null,null,null,null,null,null,null,null,null,null,null,null,null,"","",0,null,null,null,null,null,null,null,null,null,null,null,"",null,0,0,0,"","",null,null,{"$f":"IF(AL5681=\"\",\"\",IF(AL5681>=#REF!,\"x\",\"\"))","v":""},"","","","","","","","","","","","","","","","","","","","","","","","","","","","","","","","",null,"","","","","","","","","","","","","","","","",null,null,null,null,null,null,null,null,null,null,null,null,null,null,null,null,null,null,null,null,null,null,null,null,null,null,null,null,null,null,null,null,null,null,null,null,null,null,null,null,null,null,null,null,null,null,null,null,null,null,null,null,null,null,null,null,null,null,null,null,null,null,null,null,null,null,null,null,null,null,null,null,null,null,null,null,"","",null,"",null,"",null,"",null,"",null,"",null,"",null,"",null,"",null,"",null,"",null,"",null,"",null,"",null,""]
[null,null,null,null,null,null,null,null,null,null,null,null,null,null,null,null,"","",null,{"$f":"IF(S5762=\"\",\"\",IF(S5762>0,VLOOKUP(S5762,#REF!,2,FALSE)))","v":""},null,null,null,"Interne :\nExterne :",null,null,null,null,null,null,null,null,null,null,null,null,null,"","",0,null,null,null,null,null,null,null,null,null,null,null,"",null,0,0,0,"","",null,null,{"$f":"IF(AL5762=\"\",\"\",IF(AL5762>=#REF!,\"x\",\"\"))","v":""},"","","","","","","","","","","","","","","","","","","","","","","","","","","","","","","","",null,"","","","","","","","","","","","","","","","",null,null,null,null,null,null,null,null,null,null,null,null,null,null,null,null,null,null,null,null,null,null,null,null,null,null,null,null,null,null,null,null,null,null,null,null,null,null,null,null,null,null,null,null,null,null,null,null,null,null,null,null,null,null,null,null,null,null,null,null,null,null,null,null,null,null,null,null,null,null,null,null,null,null,null,null,"","",null,"",null,"",null,"",null,"",null,"",null,"",null,"",null,"",null,"",null,"",null,"",null,"",null,"",null,""]
[null,null,null,null,null,null,null,null,null,null,null,null,null,null,null,null,"","",null,{"$f":"IF(S5795=\"\",\"\",IF(S5795>0,VLOOKUP(S5795,#REF!,2,FALSE)))","v":""},null,null,null,"Interne :\nExterne :",null,null,null,null,null,null,null,null,null,null,null,null,null,"","",{"$f":"COUNTA(AP5795:AW5795)","v":0},null,null,null,null,null,null,null,null,null,null,null,"",null,0,0,0,"","",null,null,{"$f":"IF(AL5795=\"\",\"\",IF(AL5795>=#REF!,\"x\",\"\"))","v":""},"","","","","","","","","","","","","","","","","","","","","","","","","","","","","","","","",null,"","","","","","","","","","","","","","","","",null,null,null,null,null,null,null,null,null,null,null,null,null,null,null,null,null,null,null,null,null,null,null,null,null,null,null,null,null,null,null,null,null,null,null,null,null,null,null,null,null,null,null,null,null,null,null,null,null,null,null,null,null,null,null,null,null,null,null,null,null,null,null,null,null,null,null,null,null,null,null,null,null,null,null,null,"","",null,"",null,"",null,"",null,"",null,"",null,"",null,"",null,"",null,"",null,"",null,"",null,"",null,"",null,""]
[null,null,null,null,null,null,null,null,null,null,null,null,null,null,null,null,"","",null,{"$f":"IF(S5876=\"\",\"\",IF(S5876>0,VLOOKUP(S5876,#REF!,2,FALSE)))","v":""},null,null,null,"Interne :\nExterne :",null,null,null,null,null,null,null,null,null,null,null,null,null,"","",0,null,null,null,null,null,null,null,null,null,null,null,"",null,0,0,0,"","",null,null,{"$f":"IF(AL5876=\"\",\"\",IF(AL5876>=#REF!,\"x\",\"\"))","v":""},"","","","","","","","","","","","","","","","","","","","","","","","","","","","","","","","",null,"","","","","","","","","","","","","","","","",null,null,null,null,null,null,null,null,null,null,null,null,null,null,null,null,null,null,null,null,null,null,null,null,null,null,null,null,null,null,null,null,null,null,null,null,null,null,null,null,null,null,null,null,null,null,null,null,null,null,null,null,null,null,null,null,null,null,null,null,null,null,null,null,null,null,null,null,null,null,null,null,null,null,null,null,"","",null,"",null,"",null,"",null,"",null,"",null,"",null,"",null,"",null,"",null,"",null,"",null,"",null,"",null,""]
[null,null,null,null,null,null,null,null,null,null,null,null,null,null,null,null,"","",null,{"$f":"IF(S5927=\"\",\"\",IF(S5927>0,VLOOKUP(S5927,#REF!,2,FALSE)))","v":""},null,null,null,"Interne :\nExterne :",null,null,null,null,null,null,null,null,null,null,null,null,null,"","",0,null,null,null,null,null,null,null,null,null,null,null,"",null,0,0,0,"","",null,null,{"$f":"IF(AL5927=\"\",\"\",IF(AL5927>=#REF!,\"x\",\"\"))","v":""},"","","","","","","","","","","","","","","","","","","","","","","","","","","","","","","","",null,"","","","","","","","","","","","","","","","",null,null,null,null,null,null,null,null,null,null,null,null,null,null,null,null,null,null,null,null,null,null,null,null,null,null,null,null,null,null,null,null,null,null,null,null,null,null,null,null,null,null,null,null,null,null,null,null,null,null,null,null,null,null,null,null,null,null,null,null,null,null,null,null,null,null,null,null,null,null,null,null,null,null,null,null,"","",null,"",null,"",null,"",null,"",null,"",null,"",null,"",null,"",null,"",null,"",null,"",null,"",null,"",null,""]
[null,null,null,null,null,null,null,null,null,null,null,null,null,null,null,null,"","",null,{"$f":"IF(S5941=\"\",\"\",IF(S5941>0,VLOOKUP(S5941,#REF!,2,FALSE)))","v":""},null,null,null,"Interne :\nExterne :",null,null,null,null,null,null,null,null,null,null,null,null,null,"","",0,null,null,null,null,null,null,null,null,null,null,null,"",null,0,0,0,"","",null,null,{"$f":"IF(AL5941=\"\",\"\",IF(AL5941>=#REF!,\"x\",\"\"))","v":""},"","","","","","","","","","","","","","","","","","","","","","","","","","","","","","","","",null,"","","","","","","","","","","","","","","","",null,null,null,null,null,null,null,null,null,null,null,null,null,null,null,null,null,null,null,null,null,null,null,null,null,null,null,null,null,null,null,null,null,null,null,null,null,null,null,null,null,null,null,null,null,null,null,null,null,null,null,null,null,null,null,null,null,null,null,null,null,null,null,null,null,null,null,null,null,null,null,null,null,null,null,null,"","",null,"",null,"",null,"",null,"",null,"",null,"",null,"",null,"",null,"",null,"",null,"",null,"",null,"",null,""]
[null,null,null,null,null,null,null,null,null,null,null,null,null,null,null,null,{"$f":"IF(O6022=\"\",\"\",IF(O6022>0,NETWORKDAYS(O6022,P6022),NETWORKDAYS(O6022,P6022)))","v":""},{"$f":"IF(P6022=\"\",\"\",IF(P6022>0,P6022-O6022+1))","v":""},null,{"$f":"IF(S6022=\"\",\"\",IF(S6022>0,VLOOKUP(S6022,#REF!,2,FALSE)))","v":""},null,null,null,"Interne :\nExterne :",null,null,null,null,null,null,null,null,null,null,null,null,null,"","",0,null,null,null,null,null,null,null,null,null,null,null,"",null,0,0,0,"","",null,null,{"$f":"IF(AL6022=\"\",\"\",IF(AL6022>=#REF!,\"x\",\"\"))","v":""},"","",{"$f":"IF(Y6022=\"Services_supports\",AL6022,\"\")","v":""},{"$f":"IF(Y6022=\"Services_supports\",BE6022,\"\")","v":""},{"$f":"IF(Y6022=\"Logistique\",AL6022,\"\")","v":""},{"$f":"IF(Y6022=\"Logistique\",BE6022,\"\")","v":""},{"$f":"IF(Y6022=\"PM\",AL6022,\"\")","v":""},{"$f":"IF(Y6022=\"PM\",BE6022,\"\")","v":""},{"$f":"IF(Y6022=\"Compression_MacNeil\",AL6022,\"\")","v":""},{"$f":"IF(Y6022=\"Compression_MacNeil\",BE6022,\"\")","v":""},{"$f":"IF(Y6022=\"Compression_Wickert\",AL6022,\"\")","v":""},{"$f":"IF(Y6022=\"Compression_Wickert\",BE6022,\"\")","v":""},{"$f":"IF(Y6022=\"Découpe_B2\",AL6022,\"\")","v":""},{"$f":"IF(Y6022=\"Découpe_B2\",BE6022,\"\")","v":""},{"$f":"IF(Y6022=\"Injection\",AL6022,\"\")","v":""},{"$f":"IF(Y6022=\"Injection\",BE6022,\"\")","v":""},{"$f":"IF(Y6022=\"Finition\",AL6022,\"\")","v":""},{"$f":"IF(Y6022=\"Finition\",BE6022,\"\")","v":""},{"$f":"IF(Y6022=\"Outillage\",AL6022,\"\")","v":""},{"$f":"IF(Y6022=\"Outillage\",BE6022,\"\")","v":""},{"$f":"IF(Y6022=\"Maintenance_TN\",AL6022,\"\")","v":""},{"$f":"IF(Y6022=\"Maintenance_TN\",BE6022,\"\")","v":""},{"$f":"IF(Y6022=\"Nettoyage\",AL6022,\"\")","v":""},{"$f":"IF(Y6022=\"Nettoyage\",BE6022,\"\")","v":""},{"$f":"IF(Y6022=\"Laboratoire\",AL6022,\"\")","v":""},{"$f":"IF(Y6022=\"Laboratoire\",BE6022,\"\")","v":""},{"$f":"IF(Y6022=\"AQ\",AL6022,\"\")","v":""},{"$f":"IF(Y6022=\"AQ\",BE6022,\"\")","v":""},{"$f":"IF(Y6022=\"Saint_Germain\",AL6022,\"\")","v":""},{"$f":"IF(Y6022=\"Saint_Germain\",BE6022,\"\")","v":""},{"$f":"IF(Y6022=\"SSE\",AL6022,\"\")","v":""},{"$f":"IF(Y6022=\"SSE\",BE6022,\"\")","v":""},null,{"$f":"IF(Y6022=\"Services_Supports\",CONCATENATE(A6022,J6022),\"\")","v":""},{"$f":"IF(Y6022=\"Logistique\",CONCATENATE(A6022,J6022),\"\")","v":""},{"$f":"IF(Y6022=\"PM\",CONCATENATE(A6022,J6022),\"\")","v":""},{"$f":"IF(Y6022=\"Compression_Macneil\",CONCATENATE(A6022,J6022),\"\")","v":""},{"$f":"IF(Y6022=\"Compression_Wickert\",CONCATENATE(A6022,J6022),\"\")","v":""},{"$f":"IF(Y6022=\"Découpe_B2\",CONCATENATE(A6022,J6022),\"\")","v":""},{"$f":"IF(Y6022=\"Injection\",CONCATENATE(A6022,J6022),\"\")","v":""},{"$f":"IF(Y6022=\"Finition\",CONCATENATE(A6022,J6022),\"\")","v":""},{"$f":"IF(Y6022=\"Outillage\",CONCATENATE(A6022,J6022),\"\")","v":""},{"$f":"IF(Y6022=\"Maintenance_TN\",CONCATENATE(A6022,J6022),\"\")","v":""},{"$f":"IF(Y6022=\"Nettoyage\",CONCATENATE(A6022,J6022),\"\")","v":""},{"$f":"IF(Y6022=\"Laboratoire\",CONCATENATE(A6022,J6022),\"\")","v":""},{"$f":"IF(Y6022=\"AQ\",CONCATENATE(A6022,J6022),\"\")","v":""},{"$f":"IF(Y6022=\"Saint_Germain\",CONCATENATE(A6022,J6022),\"\")","v":""},{"$f":"IF(Y6022=\"SSE\",CONCATENATE(A6022,J6022),\"\")","v":""},"",null,null,null,null,null,null,null,null,null,null,null,null,null,null,null,null,null,null,null,null,null,null,null,null,null,null,null,null,null,null,null,null,null,null,null,null,null,null,null,null,null,null,null,null,null,null,null,null,null,null,null,null,null,null,null,null,null,null,null,null,null,null,null,null,null,null,null,null,null,null,null,null,null,null,null,null,"",{"$f":"IF(Y6022=\"Services_Supports\",GE6022,\"\")","v":""},null,{"$f":"IF(Y6022=\"Logistique\",GE6022,\"\")","v":""},null,{"$f":"IF(Y6022=\"PM\",GE6022,\"\")","v":""},null,{"$f":"IF(Y6022=\"Compression_MacNeil\",GE6022,\"\")","v":""},null,{"$f":"IF(Y6022=\"Compression_Wickert\",GE6022,\"\")","v":""},null,{"$f":"IF(Y6022=\"Découpe_B2\",GE6022,\"\")","v":""},null,{"$f":"IF(Y6022=\"Injection\",GE6022,\"\")","v":""},null,{"$f":"IF(Y6022=\"Finition\",GE6022,\"\")","v":""},null,{"$f":"IF(Y6022=\"Outillage\",GE6022,\"\")","v":""},null,{"$f":"IF(Y6022=\"Maintenance_TN\",GE6022,\"\")","v":""},null,{"$f":"IF(Y6022=\"Nettoyage\",GE6022,\"\")","v":""},null,{"$f":"IF(Y6022=\"Laboratoire\",GE6022,\"\")","v":""},null,{"$f":"IF(Y6022=\"AQ\",GE6022,\"\")","v":""},null,{"$f":"IF(Y6022=\"Saint_Germain\",GE6022,\"\")","v":""},null,{"$f":"IF(Y6022=\"SSE\",GE6022,\"\")","v":""}]
[null,null,null,null,null,null,null,null,null,null,null,null,null,null,null,null,"","",null,{"$f":"IF(S6055=\"\",\"\",IF(S6055>0,VLOOKUP(S6055,#REF!,2,FALSE)))","v":""},null,null,null,"Interne :\nExterne :",null,null,null,null,null,null,null,null,null,null,null,null,null,"","",0,null,null,null,null,null,null,null,null,null,null,null,"",null,0,0,0,"","",null,null,{"$f":"IF(AL6055=\"\",\"\",IF(AL6055>=#REF!,\"x\",\"\"))","v":""},"","","","","","","","","","","","","","","","","","","","","","","","","","","","","","","","",null,"","","","","","","","","","","","","","","","",null,null,null,null,null,null,null,null,null,null,null,null,null,null,null,null,null,null,null,null,null,null,null,null,null,null,null,null,null,null,null,null,null,null,null,null,null,null,null,null,null,null,null,null,null,null,null,null,null,null,null,null,null,null,null,null,null,null,null,null,null,null,null,null,null,null,null,null,null,null,null,null,null,null,null,null,"","",null,"",null,"",null,"",null,"",null,"",null,"",null,"",null,"",null,"",null,"",null,"",null,"",null,"",null,""]
[null,null,null,null,null,null,null,null,null,null,null,null,null,null,null,null,"","",null,{"$f":"IF(S6088=\"\",\"\",IF(S6088>0,VLOOKUP(S6088,#REF!,2,FALSE)))","v":""},null,null,null,"Interne :\nExterne :",null,null,null,null,null,null,null,null,null,null,null,null,null,"","",0,null,null,null,null,null,null,null,null,null,null,null,"",null,0,0,0,"","",null,null,{"$f":"IF(AL6088=\"\",\"\",IF(AL6088>=#REF!,\"x\",\"\"))","v":""},"","","","","","","","","","","","","","","","","","","","","","","","","","","","","","","","",null,"","","","","","","","","","","","","","","","",null,null,null,null,null,null,null,null,null,null,null,null,null,null,null,null,null,null,null,null,null,null,null,null,null,null,null,null,null,null,null,null,null,null,null,null,null,null,null,null,null,null,null,null,null,null,null,null,null,null,null,null,null,null,null,null,null,null,null,null,null,null,null,null,null,null,null,null,null,null,null,null,null,null,null,null,"","",null,"",null,"",null,"",null,"",null,"",null,"",null,"",null,"",null,"",null,"",null,"",null,"",null,"",null,""]
[null,null,null,null,null,null,null,null,null,null,null,null,null,null,null,null,"","",null,{"$f":"IF(S6169=\"\",\"\",IF(S6169>0,VLOOKUP(S6169,#REF!,2,FALSE)))","v":""},null,null,null,"Interne :\nExterne :",null,null,null,null,null,null,null,null,null,null,null,null,null,"","",0,null,null,null,null,null,null,null,null,null,null,null,"",null,0,0,0,"","",null,null,{"$f":"IF(AL6169=\"\",\"\",IF(AL6169>=#REF!,\"x\",\"\"))","v":""},"","","","","","","","","","","","","","","","","","","","","","","","","","","","","","","","",null,"","","","","","","","","","","","","","","","",null,null,null,null,null,null,null,null,null,null,null,null,null,null,null,null,null,null,null,null,null,null,null,null,null,null,null,null,null,null,null,null,null,null,null,null,null,null,null,null,null,null,null,null,null,null,null,null,null,null,null,null,null,null,null,null,null,null,null,null,null,null,null,null,null,null,null,null,null,null,null,null,null,null,null,null,"","",null,"",null,"",null,"",null,"",null,"",null,"",null,"",null,"",null,"",null,"",null,"",null,"",null,"",null,""]
[null,null,null,null,null,null,null,null,null,null,null,null,null,null,null,null,"","",null,{"$f":"IF(S6202=\"\",\"\",IF(S6202>0,VLOOKUP(S6202,#REF!,2,FALSE)))","v":""},null,null,null,"Interne :\nExterne :",null,null,null,null,null,null,null,null,null,null,null,null,null,"","",0,null,null,null,null,null,null,null,null,null,null,null,"",null,0,0,0,"","",null,null,{"$f":"IF(AL6202=\"\",\"\",IF(AL6202>=#REF!,\"x\",\"\"))","v":""},"","","","","","","","","","","","","","","","","","","","","","","","","","","","","","","","",null,"","","","","","","","","","","","","","","","",null,null,null,null,null,null,null,null,null,null,null,null,null,null,null,null,null,null,null,null,null,null,null,null,null,null,null,null,null,null,null,null,null,null,null,null,null,null,null,null,null,null,null,null,null,null,null,null,null,null,null,null,null,null,null,null,null,null,null,null,null,null,null,null,null,null,null,null,null,null,null,null,null,null,null,null,"","",null,"",null,"",null,"",null,"",null,"",null,"",null,"",null,"",null,"",null,"",null,"",null,"",null,"",null,""]
[null,null,null,null,null,null,null,null,null,null,null,null,null,null,null,null,"","",null,{"$f":"IF(S6293=\"\",\"\",IF(S6293>0,VLOOKUP(S6293,#REF!,2,FALSE)))","v":""},null,null,null,"Interne :\nExterne :",null,null,null,null,null,null,null,null,null,null,null,null,null,"","",0,null,null,null,null,null,null,null,null,null,null,null,"",null,0,0,0,"","",null,null,{"$f":"IF(AL6293=\"\",\"\",IF(AL6293>=#REF!,\"x\",\"\"))","v":""},"","","","","","","","","","","","","","","","","","","","","","","","","","","","","","","","",null,"","","","","","","","","","","","","","","","",null,null,null,null,null,null,null,null,null,null,null,null,null,null,null,null,null,null,null,null,null,null,null,null,null,null,null,null,null,null,null,null,null,null,null,null,null,null,null,null,null,null,null,null,null,null,null,null,null,null,null,null,null,null,null,null,null,null,null,null,null,null,null,null,null,null,null,null,null,null,null,null,null,null,null,null,"","",null,"",null,"",null,"",null,"",null,"",null,"",null,"",null,"",null,"",null,"",null,"",null,"",null,"",null,""]
[null,null,null,null,null,null,null,null,null,null,null,null,null,null,null,null,"","",null,{"$f":"IF(S6315=\"\",\"\",IF(S6315>0,VLOOKUP(S6315,#REF!,2,FALSE)))","v":""},null,null,null,"Interne :\nExterne :",null,null,null,null,null,null,null,null,null,null,null,null,null,"","",0,null,null,null,null,null,null,null,null,null,null,null,"",null,0,0,0,"","",null,null,{"$f":"IF(AL6315=\"\",\"\",IF(AL6315>=#REF!,\"x\",\"\"))","v":""},"","","","","","","","","","","","","","","","","","","","","","","","","","","","","","","","",null,"","","","","","","","","","","","","","","","",null,null,null,null,null,null,null,null,null,null,null,null,null,null,null,null,null,null,null,null,null,null,null,null,null,null,null,null,null,null,null,null,null,null,null,null,null,null,null,null,null,null,null,null,null,null,null,null,null,null,null,null,null,null,null,null,null,null,null,null,null,null,null,null,null,null,null,null,null,null,null,null,null,null,null,null,"","",null,"",null,"",null,"",null,"",null,"",null,"",null,"",null,"",null,"",null,"",null,"",null,"",null,"",null,""]
[null,null,null,null,null,null,null,null,null,null,null,null,null,null,null,null,"","",null,{"$f":"IF(S6348=\"\",\"\",IF(S6348>0,VLOOKUP(S6348,#REF!,2,FALSE)))","v":""},null,null,null,"Interne :\nExterne :",null,null,null,null,null,null,null,null,null,null,null,null,null,"","",0,null,null,null,null,null,null,null,null,null,null,null,"",null,0,0,0,"","",null,null,{"$f":"IF(AL6348=\"\",\"\",IF(AL6348>=#REF!,\"x\",\"\"))","v":""},"","","","","","","","","","","","","","","","","","","","","","","","","","","","","","","","",null,"","","","","","","","","","","","","","","","",null,null,null,null,null,null,null,null,null,null,null,null,null,null,null,null,null,null,null,null,null,null,null,null,null,null,null,null,null,null,null,null,null,null,null,null,null,null,null,null,null,null,null,null,null,null,null,null,null,null,null,null,null,null,null,null,null,null,null,null,null,null,null,null,null,null,null,null,null,null,null,null,null,null,null,null,"","",null,"",null,"",null,"",null,"",null,"",null,"",null,"",null,"",null,"",null,"",null,"",null,"",null,"",null,""]
[null,null,null,null,null,null,null,null,null,null,null,null,null,null,null,null,"","",null,{"$f":"IF(S6429=\"\",\"\",IF(S6429>0,VLOOKUP(S6429,#REF!,2,FALSE)))","v":""},null,null,null,"Interne :\nExterne :",null,null,null,null,null,null,null,null,null,null,null,null,null,"","",0,null,null,null,null,null,null,null,null,null,null,null,"",null,0,0,0,"","",null,null,{"$f":"IF(AL6429=\"\",\"\",IF(AL6429>=#REF!,\"x\",\"\"))","v":""},"","","","","","","","","","","","","","","","","","","","","","","","","","","","","","","","",null,"","","","","","","","","","","","","","","","",null,null,null,null,null,null,null,null,null,null,null,null,null,null,null,null,null,null,null,null,null,null,null,null,null,null,null,null,null,null,null,null,null,null,null,null,null,null,null,null,null,null,null,null,null,null,null,null,null,null,null,null,null,null,null,null,null,null,null,null,null,null,null,null,null,null,null,null,null,null,null,null,null,null,null,null,"","",null,"",null,"",null,"",null,"",null,"",null,"",null,"",null,"",null,"",null,"",null,"",null,"",null,"",null,""]
[null,null,null,null,null,null,null,null,null,null,null,null,null,null,null,null,"","",null,{"$f":"IF(S6462=\"\",\"\",IF(S6462>0,VLOOKUP(S6462,#REF!,2,FALSE)))","v":""},null,null,null,"Interne :\nExterne :",null,null,null,null,null,null,null,null,null,null,null,null,null,"","",0,null,null,null,null,null,null,null,null,null,null,null,"",null,0,0,0,"","",null,null,{"$f":"IF(AL6462=\"\",\"\",IF(AL6462>=#REF!,\"x\",\"\"))","v":""},"","","","","","","","","","","","","","","","","","","","","","","","","","","","","","","","",null,"","","","","","","","","","","","","","","","",null,null,null,null,null,null,null,null,null,null,null,null,null,null,null,null,null,null,null,null,null,null,null,null,null,null,null,null,null,null,null,null,null,null,null,null,null,null,null,null,null,null,null,null,null,null,null,null,null,null,null,null,null,null,null,null,null,null,null,null,null,null,null,null,null,null,null,null,null,null,null,null,null,null,null,null,"","",null,"",null,"",null,"",null,"",null,"",null,"",null,"",null,"",null,"",null,"",null,"",null,"",null,"",null,""]
[null,null,null,null,null,null,null,null,null,null,null,null,null,null,null,null,null,null,null,null,null,null,null,"",null,null,null,null,null,null,null,null,null,null,null,null,null,null,null,null,null,null,null,null,null,null,null,null,null,null,null,null,null,null,null,null,null,null,null,null,null,"Avant travaux",null,33,{"$f":"BL6547","v":33},{"$f":"BM6547","v":33},33,33,33,33,33,33,33,33,33,{"$f":"BW6547=BV6512","v":false},null,null,null,null,null,null,null,null,null,null,null,null,null,null,null,null,null,null,null,null,null,null,null,null,null,null,null,null,null,null,null,null,null,null,null,null,null,null,null,null,null,null,null,null,null,null,null,null,null,null,null,null,null,null,null,null,null,null,null,null,null,null,null,null,null,null,null,null,null,null,null,null,null,null,null,null,null,null,null,null,null,null,null,null,null,null,null,null,null,null,null,null,null,null,null,null,null,null,null,null,null,null,null,null,null,null,null,null,null,null,null,"A planifier",null,7,{"$f":"GH6547","v":7},{"$f":"GI6547","v":7},7,7,7,7,7,7,7,7,7]
[null,null,null,null,null,null,null,null,null,null,null,null,null,null,null,null,null,null,null,null,null,null,null,null,null,null,null,null,null,null,null,null,null,null,null,null,null,null,null,null,null,null,null,null,null,null,null,null,null,null,null,null,null,null,null,null,null,null,null,null,null,"Laboratoire","Déc N-1","Janv","Fev","Mars","Avr","Mai","Juin","Juil","Août","Sept","Oct","Nov","déc",null,null,null,null,null,null,null,null,null,null,null,null,null,null,null,null,null,null,null,null,null,null,null,null,null,null,null,null,null,null,null,null,null,null,null,null,null,null,null,null,null,null,null,null,null,null,null,null,null,null,null,null,null,null,null,null,null,null,null,null,null,null,null,null,null,null,null,null,null,null,null,null,null,null,null,null,null,null,null,null,null,null,null,null,null,null,null,null,null,null,null,null,null,null,null,null,null,null,null,null,null,null,null,null,null,null,null,null,null,null,null,null,"Soldées",null,0,{"$f":"GH6576","v":0},{"$f":"GI6576","v":0},0,0,0,0,0,0,0,0,0]
[null,null,null,null,null,null,null,null,null,null,null,null,null,null,null,null,null,null,null,null,null,null,null,null,null,null,null,null,null,null,null,null,null,null,null,null,null,null,null,null,null,null,null,null,null,null,null,null,null,null,null,null,null,null,null,null,null,null,null,null,null,null,null,null,null,null,null,null,null,null,null,null,null,null,null,null,null,null,null,null,null,null,null,null,null,null,null,null,null,null,null,null,null,null,null,null,null,null,null,null,null,null,null,null,null,null,null,null,null,null,null,null,null,null,null,null,null,null,null,null,null,null,null,null,null,null,null,null,null,null,null,null,null,null,null,null,null,null,null,null,null,null,null,null,null,null,null,null,null,null,null,null,null,null,null,null,null,null,null,null,null,null,null,null,null,null,null,null,null,null,null,null,null,null,null,null,null,null,null,null,null,null,null,null,null,null,null,"Laboratoire",null,"Janv","Fev","Mars","Avr","Mai","Juin","Juil","Août","Sept","Oct","Nov","Déc",{"$f":"GF6607","v":"Laboratoire"}]
[null,null,null,null,null,null,null,null,null,null,null,null,null,null,null,null,null,null,null,null,null,null,null,null,null,null,null,null,null,null,null,null,null,null,null,null,null,null,null,null,null,null,null,null,null,null,null,null,null,null,null,null,null,null,null,null,null,null,null,null,null,null,null,null,null,null,null,null,null,null,null,null,null,null,null,null,null,null,null,null,null,null,null,null,null,null,null,null,null,null,null,null,null,null,null,null,null,null,null,null,null,null,null,null,null,null,null,null,null,null,null,null,null,null,null,null,null,null,null,null,null,null,null,null,null,null,null,null,null,null,null,null,null,null,null,null,null,null,null,null,null,null,null,null,null,null,null,null,null,null,null,null,null,null,null,null,null,null,null,null,null,null,null,null,null,null,null,null,null,null,null,null,null,null,null,null,null,null,null,null,null,null,null,null,null,null,null,"Soldées",null,0,{"$f":"GH6608","v":0},{"$f":"GI6608","v":0},0,0,0,0,0,0,0,0,0]
[null,null,null,null,null,null,null,null,null,null,null,null,null,null,null,null,null,null,null,null,null,null,null,null,null,null,null,null,null,null,null,null,null,null,null,null,null,null,null,null,null,null,null,null,null,null,null,null,null,null,null,null,null,null,null,null,null,null,null,null,null,null,null,null,null,null,null,null,null,null,null,null,null,null,null,null,null,null,null,null,null,null,null,null,null,null,null,null,null,null,null,null,null,null,null,null,null,null,null,null,null,null,null,null,null,null,null,null,null,null,null,null,null,null,null,null,null,null,null,null,null,null,null,null,null,null,null,null,null,null,null,null,null,null,null,null,null,null,null,null,null,null,null,null,null,null,null,null,null,null,null,null,null,null,null,null,null,null,null,null,null,null,null,null,null,null,null,null,null,null,null,null,null,null,null,null,null,null,null,null,null,null,null,null,null,null,null,"Non soldées",null,{"$f":"SUM(GH6610:GH6612)","v":1},{"$f":"SUM(GI6610:GI6612)","v":1},1,1,1,1,1,1,1,1,1,1]
[null,null,null,null,null,null,null,null,null,null,null,null,null,null,null,null,null,null,null,null,null,null,null,null,null,null,null,null,null,null,null,null,null,null,null,null,null,null,null,null,null,null,null,null,null,null,null,null,null,null,null,null,null,null,null,null,null,null,null,null,null,null,null,null,null,null,null,null,null,null,null,null,null,null,null,null,null,null,null,null,null,null,null,null,null,null,null,null,null,null,null,null,null,null,null,null,null,null,null,null,null,null,null,null,null,null,null,null,null,null,null,null,null,null,null,null,null,null,null,null,null,null,null,null,null,null,null,null,null,null,null,null,null,null,null,null,null,null,null,null,null,null,null,null,null,null,null,null,null,null,null,null,null,null,null,null,null,null,null,null,null,null,null,null,null,null,null,null,null,null,null,null,null,null,null,null,null,null,null,null,null,null,null,null,null,null,null,"En cours",null,0,{"$f":"GH6610","v":0},{"$f":"GI6610","v":0},0,0,0,0,0,0,0,0,0]
[null,null,null,null,null,null,null,null,null,null,null,null,null,null,null,null,null,null,null,null,null,null,null,null,null,null,null,null,null,null,null,null,null,null,null,null,null,null,null,null,null,null,null,null,null,null,null,null,null,null,null,null,null,null,null,null,null,null,null,null,null,null,null,null,null,null,null,null,null,null,null,null,null,null,null,null,null,null,null,null,null,null,null,null,null,null,null,null,null,null,null,null,null,null,null,null,null,null,null,null,null,null,null,null,null,null,null,null,null,null,null,null,null,null,null,null,null,null,null,null,null,null,null,null,null,null,null,null,null,null,null,null,null,null,null,null,null,null,null,null,null,null,null,null,null,null,null,null,null,null,null,null,null,null,null,null,null,null,null,null,null,null,null,null,null,null,null,null,null,null,null,null,null,null,null,null,null,null,null,null,null,null,null,null,null,null,null,"A planifier",null,1,{"$f":"GH6611","v":1},{"$f":"GI6611","v":1},1,1,1,1,1,1,1,1,1]
[null,null,null,null,null,null,null,null,null,null,null,null,null,null,null,null,null,null,null,null,null,null,null,null,null,null,null,null,null,null,null,null,null,null,null,null,null,null,null,null,null,null,null,null,null,null,null,null,null,null,null,null,null,null,null,null,null,null,null,null,null,null,null,null,null,null,null,null,null,null,null,null,null,null,null,null,null,null,null,null,null,null,null,null,null,null,null,null,null,null,null,null,null,null,null,null,null,null,null,null,null,null,null,null,null,null,null,null,null,null,null,null,null,null,null,null,null,null,null,null,null,null,null,null,null,null,null,null,null,null,null,null,null,null,null,null,null,null,null,null,null,null,null,null,null,null,null,null,null,null,null,null,null,null,null,null,null,null,null,null,null,null,null,null,null,null,null,null,null,null,null,null,null,null,null,null,null,null,null,null,null,null,null,null,null,null,null,"Retard + non fait N-1",null,0,{"$f":"GH6612","v":0},{"$f":"GI6612","v":0},0,0,0,0,0,0,0,0,0]
[null,null,null,null,null,null,null,null,null,null,null,null,null,null,null,null,null,null,null,null,null,null,null,null,null,null,null,null,null,null,null,null,null,null,null,null,null,null,null,null,null,null,null,null,null,null,null,null,null,null,null,null,null,null,null,null,null,null,null,null,null,null,null,null,null,null,null,null,null,null,null,null,null,null,null,null,null,null,null,null,null,null,null,null,null,null,null,null,null,null,null,null,null,null,null,null,null,null,null,null,null,null,null,null,null,null,null,null,null,null,null,null,null,null,null,null,null,null,null,null,null,null,null,null,null,null,null,null,null,null,null,null,null,null,null,null,null,null,null,null,null,null,null,null,null,null,null,null,null,null,null,null,null,null,null,null,null,null,null,null,null,null,null,null,null,null,null,null,null,null,null,null,null,null,null,null,null,null,null,null,null,null,null,null,null,null,{"$f":"GG6613=HC6509","v":false},"Total =",{"$f":"MAX(GH6613:GS6613)","v":1},{"$f":"SUM(GH6608:GH6609)","v":1},{"$f":"SUM(GI6608:GI6609)","v":1},1,1,1,1,1,1,1,1,1,1]
[]
[null,null,null,null,null,null,null,null,null,null,null,null,null,null,null,null,null,null,null,null,null,null,null,null,null,null,null,null,null,null,null,null,null,null,null,null,null,null,null,null,null,null,null,null,null,null,null,null,null,null,null,null,null,null,null,null,null,null,null,null,null,null,null,null,null,null,null,null,null,null,null,null,null,null,null,null,null,null,null,null,null,null,null,null,null,null,null,null,null,null,null,null,null,null,null,null,null,null,null,null,null,null,null,null,null,null,null,null,null,null,null,null,null,null,null,null,null,null,null,null,null,null,null,null,null,null,null,null,null,null,null,null,null,null,null,null,null,null,null,null,null,null,null,null,null,null,null,null,null,null,null,null,null,null,null,null,null,null,null,null,null,null,null,null,null,null,null,null,null,null,null,null,null,null,null,null,null,null,null,null,null,null,null,null,null,null,null,"AQ",null,"Janv","Fev","Mars","Avr","Mai","Juin","Juil","Août","Sept","Oct","Nov","Déc",{"$f":"GF6615","v":"AQ"}]
[null,null,null,null,null,null,null,null,null,null,null,null,null,null,null,null,null,null,null,null,null,null,null,null,null,null,null,null,null,null,null,null,null,null,null,null,null,null,null,null,null,null,null,null,null,null,null,null,null,null,null,null,null,null,null,null,null,null,null,null,null,null,null,null,null,null,null,null,null,null,null,null,null,null,null,null,null,null,null,null,null,null,null,null,null,null,null,null,null,null,null,null,null,null,null,null,null,null,null,null,null,null,null,null,null,null,null,null,null,null,null,null,null,null,null,null,null,null,null,null,null,null,null,null,null,null,null,null,null,null,null,null,null,null,null,null,null,null,null,null,null,null,null,null,null,null,null,null,null,null,null,null,null,null,null,null,null,null,null,null,null,null,null,null,null,null,null,null,null,null,null,null,null,null,null,null,null,null,null,null,null,null,null,null,null,null,null,"Soldées",null,1,{"$f":"GH6616","v":1},{"$f":"GI6616","v":1},1,1,1,1,1,1,1,1,1]
[null,null,null,null,null,null,null,null,null,null,null,null,null,null,null,null,null,null,null,null,null,null,null,null,null,null,null,null,null,null,null,null,null,null,null,null,null,null,null,null,null,null,null,null,null,null,null,null,null,null,null,null,null,null,null,null,null,null,null,null,null,null,null,null,null,null,null,null,null,null,null,null,null,null,null,null,null,null,null,null,null,null,null,null,null,null,null,null,null,null,null,null,null,null,null,null,null,null,null,null,null,null,null,null,null,null,null,null,null,null,null,null,null,null,null,null,null,null,null,null,null,null,null,null,null,null,null,null,null,null,null,null,null,null,null,null,null,null,null,null,null,null,null,null,null,null,null,null,null,null,null,null,null,null,null,null,null,null,null,null,null,null,null,null,null,null,null,null,null,null,null,null,null,null,null,null,null,null,null,null,null,null,null,null,null,null,null,"Non soldées",null,{"$f":"SUM(GH6618:GH6620)","v":0},{"$f":"SUM(GI6618:GI6620)","v":0},0,0,0,0,0,0,0,0,0,0]
[null,null,null,null,null,null,null,null,null,null,null,null,null,null,null,null,null,null,null,null,null,null,null,null,null,null,null,null,null,null,null,null,null,null,null,null,null,null,null,null,null,null,null,null,null,null,null,null,null,null,null,null,null,null,null,null,null,null,null,null,null,null,null,null,null,null,null,null,null,null,null,null,null,null,null,null,null,null,null,null,null,null,null,null,null,null,null,null,null,null,null,null,null,null,null,null,null,null,null,null,null,null,null,null,null,null,null,null,null,null,null,null,null,null,null,null,null,null,null,null,null,null,null,null,null,null,null,null,null,null,null,null,null,null,null,null,null,null,null,null,null,null,null,null,null,null,null,null,null,null,null,null,null,null,null,null,null,null,null,null,null,null,null,null,null,null,null,null,null,null,null,null,null,null,null,null,null,null,null,null,null,null,null,null,null,null,null,"En cours",null,0,{"$f":"GH6618","v":0},{"$f":"GI6618","v":0},0,0,0,0,0,0,0,0,0]
[null,null,null,null,null,null,null,null,null,null,null,null,null,null,null,null,null,null,null,null,null,null,null,null,null,null,null,null,null,null,null,null,null,null,null,null,null,null,null,null,null,null,null,null,null,null,null,null,null,null,null,null,null,null,null,null,null,null,null,null,null,null,null,null,null,null,null,null,null,null,null,null,null,null,null,null,null,null,null,null,null,null,null,null,null,null,null,null,null,null,null,null,null,null,null,null,null,null,null,null,null,null,null,null,null,null,null,null,null,null,null,null,null,null,null,null,null,null,null,null,null,null,null,null,null,null,null,null,null,null,null,null,null,null,null,null,null,null,null,null,null,null,null,null,null,null,null,null,null,null,null,null,null,null,null,null,null,null,null,null,null,null,null,null,null,null,null,null,null,null,null,null,null,null,null,null,null,null,null,null,null,null,null,null,null,null,null,"A planifier",null,0,{"$f":"GH6619","v":0},{"$f":"GI6619","v":0},0,0,0,0,0,0,0,0,0]
[null,null,null,null,null,null,null,null,null,null,null,null,null,null,null,null,null,null,null,null,null,null,null,null,null,null,null,null,null,null,null,null,null,null,null,null,null,null,null,null,null,null,null,null,null,null,null,null,null,null,null,null,null,null,null,null,null,null,null,null,null,null,null,null,null,null,null,null,null,null,null,null,null,null,null,null,null,null,null,null,null,null,null,null,null,null,null,null,null,null,null,null,null,null,null,null,null,null,null,null,null,null,null,null,null,null,null,null,null,null,null,null,null,null,null,null,null,null,null,null,null,null,null,null,null,null,null,null,null,null,null,null,null,null,null,null,null,null,null,null,null,null,null,null,null,null,null,null,null,null,null,null,null,null,null,null,null,null,null,null,null,null,null,null,null,null,null,null,null,null,null,null,null,null,null,null,null,null,null,null,null,null,null,null,null,null,null,"Retard + non fait N-1",null,0,{"$f":"GH6620","v":0},{"$f":"GI6620","v":0},0,0,0,0,0,0,0,0,0]
[null,null,null,null,null,null,null,null,null,null,null,null,null,null,null,null,null,null,null,null,null,null,null,null,null,null,null,null,null,null,null,null,null,null,null,null,null,null,null,null,null,null,null,null,null,null,null,null,null,null,null,null,null,null,null,null,null,null,null,null,null,null,null,null,null,null,null,null,null,null,null,null,null,null,null,null,null,null,null,null,null,null,null,null,null,null,null,null,null,null,null,null,null,null,null,null,null,null,null,null,null,null,null,null,null,null,null,null,null,null,null,null,null,null,null,null,null,null,null,null,null,null,null,null,null,null,null,null,null,null,null,null,null,null,null,null,null,null,null,null,null,null,null,null,null,null,null,null,null,null,null,null,null,null,null,null,null,null,null,null,null,null,null,null,null,null,null,null,null,null,null,null,null,null,null,null,null,null,null,null,null,null,null,null,null,null,{"$f":"GG6621=HE6509","v":true},"Total =",{"$f":"MAX(GH6621:GS6621)","v":1},{"$f":"SUM(GH6616:GH6617)","v":1},{"$f":"SUM(GI6616:GI6617)","v":1},1,1,1,1,1,1,1,1,1,1]
[]
[null,null,null,null,null,null,null,null,null,null,null,null,null,null,null,null,null,null,null,null,null,null,null,null,null,null,null,null,null,null,null,null,null,null,null,null,null,null,null,null,null,null,null,null,null,null,null,null,null,null,null,null,null,null,null,null,null,null,null,null,null,null,null,null,null,null,null,null,null,null,null,null,null,null,null,null,null,null,null,null,null,null,null,null,null,null,null,null,null,null,null,null,null,null,null,null,null,null,null,null,null,null,null,null,null,null,null,null,null,null,null,null,null,null,null,null,null,null,null,null,null,null,null,null,null,null,null,null,null,null,null,null,null,null,null,null,null,null,null,null,null,null,null,null,null,null,null,null,null,null,null,null,null,null,null,null,null,null,null,null,null,null,null,null,null,null,null,null,null,null,null,null,null,null,null,null,null,null,null,null,null,null,null,null,null,null,null,"Ventes (Saint_Germain)",null,"Janv","Fev","Mars","Avr","Mai","Juin","Juil","Août","Sept","Oct","Nov","Déc",{"$f":"GF6623","v":"Ventes (Saint_Germain)"}]
[null,null,null,null,null,null,null,null,null,null,null,null,null,null,null,null,null,null,null,null,null,null,null,null,null,null,null,null,null,null,null,null,null,null,null,null,null,null,null,null,null,null,null,null,null,null,null,null,null,null,null,null,null,null,null,null,null,null,null,null,null,null,null,null,null,null,null,null,null,null,null,null,null,null,null,null,null,null,null,null,null,null,null,null,null,null,null,null,null,null,null,null,null,null,null,null,null,null,null,null,null,null,null,null,null,null,null,null,null,null,null,null,null,null,null,null,null,null,null,null,null,null,null,null,null,null,null,null,null,null,null,null,null,null,null,null,null,null,null,null,null,null,null,null,null,null,null,null,null,null,null,null,null,null,null,null,null,null,null,null,null,null,null,null,null,null,null,null,null,null,null,null,null,null,null,null,null,null,null,null,null,null,null,null,null,null,null,"Soldées",null,0,{"$f":"GH6624","v":0},{"$f":"GI6624","v":0},0,0,0,0,0,0,0,0,0]
[null,null,null,null,null,null,null,null,null,null,null,null,null,null,null,null,null,null,null,null,null,null,null,null,null,null,null,null,null,null,null,null,null,null,null,null,null,null,null,null,null,null,null,null,null,null,null,null,null,null,null,null,null,null,null,null,null,null,null,null,null,null,null,null,null,null,null,null,null,null,null,null,null,null,null,null,null,null,null,null,null,null,null,null,null,null,null,null,null,null,null,null,null,null,null,null,null,null,null,null,null,null,null,null,null,null,null,null,null,null,null,null,null,null,null,null,null,null,null,null,null,null,null,null,null,null,null,null,null,null,null,null,null,null,null,null,null,null,null,null,null,null,null,null,null,null,null,null,null,null,null,null,null,null,null,null,null,null,null,null,null,null,null,null,null,null,null,null,null,null,null,null,null,null,null,null,null,null,null,null,null,null,null,null,null,null,null,"Non soldées",null,{"$f":"SUM(GH6626:GH6628)","v":0},{"$f":"SUM(GI6626:GI6628)","v":0},0,0,0,0,0,0,0,0,0,0]
[null,null,null,null,null,null,null,null,null,null,null,null,null,null,null,null,null,null,null,null,null,null,null,null,null,null,null,null,null,null,null,null,null,null,null,null,null,null,null,null,null,null,null,null,null,null,null,null,null,null,null,null,null,null,null,null,null,null,null,null,null,null,null,null,null,null,null,null,null,null,null,null,null,null,null,null,null,null,null,null,null,null,null,null,null,null,null,null,null,null,null,null,null,null,null,null,null,null,null,null,null,null,null,null,null,null,null,null,null,null,null,null,null,null,null,null,null,null,null,null,null,null,null,null,null,null,null,null,null,null,null,null,null,null,null,null,null,null,null,null,null,null,null,null,null,null,null,null,null,null,null,null,null,null,null,null,null,null,null,null,null,null,null,null,null,null,null,null,null,null,null,null,null,null,null,null,null,null,null,null,null,null,null,null,null,null,null,"En cours",null,0,{"$f":"GH6626","v":0},{"$f":"GI6626","v":0},0,0,0,0,0,0,0,0,0]
[null,null,null,null,null,null,null,null,null,null,null,null,null,null,null,null,null,null,null,null,null,null,null,null,null,null,null,null,null,null,null,null,null,null,null,null,null,null,null,null,null,null,null,null,null,null,null,null,null,null,null,null,null,null,null,null,null,null,null,null,null,null,null,null,null,null,null,null,null,null,null,null,null,null,null,null,null,null,null,null,null,null,null,null,null,null,null,null,null,null,null,null,null,null,null,null,null,null,null,null,null,null,null,null,null,null,null,null,null,null,null,null,null,null,null,null,null,null,null,null,null,null,null,null,null,null,null,null,null,null,null,null,null,null,null,null,null,null,null,null,null,null,null,null,null,null,null,null,null,null,null,null,null,null,null,null,null,null,null,null,null,null,null,null,null,null,null,null,null,null,null,null,null,null,null,null,null,null,null,null,null,null,null,null,null,null,null,"A planifier",null,0,{"$f":"GH6627","v":0},{"$f":"GI6627","v":0},0,0,0,0,0,0,0,0,0]
[null,null,null,null,null,null,null,null,null,null,null,null,null,null,null,null,null,null,null,null,null,null,null,null,null,null,null,null,null,null,null,null,null,null,null,null,null,null,null,null,null,null,null,null,null,null,null,null,null,null,null,null,null,null,null,null,null,null,null,null,null,null,null,null,null,null,null,null,null,null,null,null,null,null,null,null,null,null,null,null,null,null,null,null,null,null,null,null,null,null,null,null,null,null,null,null,null,null,null,null,null,null,null,null,null,null,null,null,null,null,null,null,null,null,null,null,null,null,null,null,null,null,null,null,null,null,null,null,null,null,null,null,null,null,null,null,null,null,null,null,null,null,null,null,null,null,null,null,null,null,null,null,null,null,null,null,null,null,null,null,null,null,null,null,null,null,null,null,null,null,null,null,null,null,null,null,null,null,null,null,null,null,null,null,null,null,null,"Retard + non fait N-1",null,0,{"$f":"GH6628","v":0},{"$f":"GI6628","v":0},0,0,0,0,0,0,0,0,0]
[null,null,null,null,null,null,null,null,null,null,null,null,null,null,null,null,null,null,null,null,null,null,null,null,null,null,null,null,null,null,null,null,null,null,null,null,null,null,null,null,null,null,null,null,null,null,null,null,null,null,null,null,null,null,null,null,null,null,null,null,null,null,null,null,null,null,null,null,null,null,null,null,null,null,null,null,null,null,null,null,null,null,null,null,null,null,null,null,null,null,null,null,null,null,null,null,null,null,null,null,null,null,null,null,null,null,null,null,null,null,null,null,null,null,null,null,null,null,null,null,null,null,null,null,null,null,null,null,null,null,null,null,null,null,null,null,null,null,null,null,null,null,null,null,null,null,null,null,null,null,null,null,null,null,null,null,null,null,null,null,null,null,null,null,null,null,null,null,null,null,null,null,null,null,null,null,null,null,null,null,null,null,null,null,null,null,{"$f":"GG6629=HG6509","v":true},"Total =",{"$f":"MAX(GH6629:GS6629)","v":0},{"$f":"SUM(GH6624:GH6625)","v":0},{"$f":"SUM(GI6624:GI6625)","v":0},0,0,0,0,0,0,0,0,0,0]
[]
[null,null,null,null,null,null,null,null,null,null,null,null,null,null,null,null,null,null,null,null,null,null,null,null,null,null,null,null,null,null,null,null,null,null,null,null,null,null,null,null,null,null,null,null,null,null,null,null,null,null,null,null,null,null,null,null,null,null,null,null,null,null,null,null,null,null,null,null,null,null,null,null,null,null,null,null,null,null,null,null,null,null,null,null,null,null,null,null,null,null,null,null,null,null,null,null,null,null,null,null,null,null,null,null,null,null,null,null,null,null,null,null,null,null,null,null,null,null,null,null,null,null,null,null,null,null,null,null,null,null,null,null,null,null,null,null,null,null,null,null,null,null,null,null,null,null,null,null,null,null,null,null,null,null,null,null,null,null,null,null,null,null,null,null,null,null,null,null,null,null,null,null,null,null,null,null,null,null,null,null,null,null,null,null,null,null,null,"SSE",null,"Janv","Fev","Mars","Avr","Mai","Juin","Juil","Août","Sept","Oct","Nov","Déc",{"$f":"GF6631","v":"SSE"}]
[null,null,null,null,null,null,null,null,null,null,null,null,null,null,null,null,null,null,null,null,null,null,null,null,null,null,null,null,null,null,null,null,null,null,null,null,null,null,null,null,null,null,null,null,null,null,null,null,null,null,null,null,null,null,null,null,null,null,null,null,null,null,null,null,null,null,null,null,null,null,null,null,null,null,null,null,null,null,null,null,null,null,null,null,null,null,null,null,null,null,null,null,null,null,null,null,null,null,null,null,null,null,null,null,null,null,null,null,null,null,null,null,null,null,null,null,null,null,null,null,null,null,null,null,null,null,null,null,null,null,null,null,null,null,null,null,null,null,null,null,null,null,null,null,null,null,null,null,null,null,null,null,null,null,null,null,null,null,null,null,null,null,null,null,null,null,null,null,null,null,null,null,null,null,null,null,null,null,null,null,null,null,null,null,null,null,null,"Soldées",null,0,{"$f":"GH6632","v":0},{"$f":"GI6632","v":0},0,0,0,0,0,0,0,0,0]
[null,null,null,null,null,null,null,null,null,null,null,null,null,null,null,null,null,null,null,null,null,null,null,null,null,null,null,null,null,null,null,null,null,null,null,null,null,null,null,null,null,null,null,null,null,null,null,null,null,null,null,null,null,null,null,null,null,null,null,null,null,null,null,null,null,null,null,null,null,null,null,null,null,null,null,null,null,null,null,null,null,null,null,null,null,null,null,null,null,null,null,null,null,null,null,null,null,null,null,null,null,null,null,null,null,null,null,null,null,null,null,null,null,null,null,null,null,null,null,null,null,null,null,null,null,null,null,null,null,null,null,null,null,null,null,null,null,null,null,null,null,null,null,null,null,null,null,null,null,null,null,null,null,null,null,null,null,null,null,null,null,null,null,null,null,null,null,null,null,null,null,null,null,null,null,null,null,null,null,null,null,null,null,null,null,null,null,"Non soldées",null,{"$f":"SUM(GH6634:GH6636)","v":0},{"$f":"SUM(GI6634:GI6636)","v":0},0,0,0,0,0,0,0,0,0,0]
[null,null,null,null,null,null,null,null,null,null,null,null,null,null,null,null,null,null,null,null,null,null,null,null,null,null,null,null,null,null,null,null,null,null,null,null,null,null,null,null,null,null,null,null,null,null,null,null,null,null,null,null,null,null,null,null,null,null,null,null,null,null,null,null,null,null,null,null,null,null,null,null,null,null,null,null,null,null,null,null,null,null,null,null,null,null,null,null,null,null,null,null,null,null,null,null,null,null,null,null,null,null,null,null,null,null,null,null,null,null,null,null,null,null,null,null,null,null,null,null,null,null,null,null,null,null,null,null,null,null,null,null,null,null,null,null,null,null,null,null,null,null,null,null,null,null,null,null,null,null,null,null,null,null,null,null,null,null,null,null,null,null,null,null,null,null,null,null,null,null,null,null,null,null,null,null,null,null,null,null,null,null,null,null,null,null,null,"En cours",null,0,{"$f":"GH6634","v":0},{"$f":"GI6634","v":0},0,0,0,0,0,0,0,0,0]
[null,null,null,null,null,null,null,null,null,null,null,null,null,null,null,null,null,null,null,null,null,null,null,null,null,null,null,null,null,null,null,null,null,null,null,null,null,null,null,null,null,null,null,null,null,null,null,null,null,null,null,null,null,null,null,null,null,null,null,null,null,null,null,null,null,null,null,null,null,null,null,null,null,null,null,null,null,null,null,null,null,null,null,null,null,null,null,null,null,null,null,null,null,null,null,null,null,null,null,null,null,null,null,null,null,null,null,null,null,null,null,null,null,null,null,null,null,null,null,null,null,null,null,null,null,null,null,null,null,null,null,null,null,null,null,null,null,null,null,null,null,null,null,null,null,null,null,null,null,null,null,null,null,null,null,null,null,null,null,null,null,null,null,null,null,null,null,null,null,null,null,null,null,null,null,null,null,null,null,null,null,null,null,null,null,null,null,"A planifier",null,0,{"$f":"GH6635","v":0},{"$f":"GI6635","v":0},0,0,0,0,0,0,0,0,0]
[null,null,null,null,null,null,null,null,null,null,null,null,null,null,null,null,null,null,null,null,null,null,null,null,null,null,null,null,null,null,null,null,null,null,null,null,null,null,null,null,null,null,null,null,null,null,null,null,null,null,null,null,null,null,null,null,null,null,null,null,null,null,null,null,null,null,null,null,null,null,null,null,null,null,null,null,null,null,null,null,null,null,null,null,null,null,null,null,null,null,null,null,null,null,null,null,null,null,null,null,null,null,null,null,null,null,null,null,null,null,null,null,null,null,null,null,null,null,null,null,null,null,null,null,null,null,null,null,null,null,null,null,null,null,null,null,null,null,null,null,null,null,null,null,null,null,null,null,null,null,null,null,null,null,null,null,null,null,null,null,null,null,null,null,null,null,null,null,null,null,null,null,null,null,null,null,null,null,null,null,null,null,null,null,null,null,null,"Retard + non fait N-1",null,0,{"$f":"GH6636","v":0},{"$f":"GI6636","v":0},0,0,0,0,0,0,0,0,0]
[null,null,null,null,null,null,null,null,null,null,null,null,null,null,null,null,null,null,null,null,null,null,null,null,null,null,null,null,null,null,null,null,null,null,null,null,null,null,null,null,null,null,null,null,null,null,null,null,null,null,null,null,null,null,null,null,null,null,null,null,null,null,null,null,null,null,null,null,null,null,null,null,null,null,null,null,null,null,null,null,null,null,null,null,null,null,null,null,null,null,null,null,null,null,null,null,null,null,null,null,null,null,null,null,null,null,null,null,null,null,null,null,null,null,null,null,null,null,null,null,null,null,null,null,null,null,null,null,null,null,null,null,null,null,null,null,null,null,null,null,null,null,null,null,null,null,null,null,null,null,null,null,null,null,null,null,null,null,null,null,null,null,null,null,null,null,null,null,null,null,null,null,null,null,null,null,null,null,null,null,null,null,null,null,null,null,{"$f":"GG6637=HI6509","v":true},"Total =",{"$f":"MAX(GH6637:GS6637)","v":0},{"$f":"SUM(GH6632:GH6633)","v":0},{"$f":"SUM(GI6632:GI6633)","v":0},0,0,0,0,0,0,0,0,0,0]

{"sheet":"Feuil-References","index":3,"n_rows":14,"n_cols":10,"rows_kept":14,"cut":false,"hidden":false,"merged":[]}
["securite_environnement",null,"poste",null,"feuils",null,null,"departement_metier"]
["SÉCURITÉ",null,"Jour",null,"Accueil",-1,null,"Préparation Matière"]
["ENVIRONNEMENT",null,"Matin",null,"Fiche Vierge",2,null,"Injection","D@A.fr","E@A.fr"]
[null,null,"Aprés-Midi",null,"Données",1,null,"Compression","degon.floriane@free.fr"]
[null,null,"Nuit",null,"Graphes",2,null,"Découpe"]
[null,null,null,null,"Paramétrage",2,null,"Finition"]
[null,null,null,null,"Feuil-References",2,null,"Nettoyage"]
[null,null,null,null,"BD",2,null,"AQL"]
[null,null,null,null,"Espion",2,null,"Logistique"]
[null,null,null,null,"Admin",2,null,"Laboratoire"]
[null,null,null,null,null,null,null,"Outillage"]
[null,null,null,null,null,null,null,"Maintenance"]
[null,null,null,null,null,null,null,"Sécurité"]
[null,null,null,null,null,null,null,"Services & Supports"]

{"sheet":"BD","index":4,"n_rows":2,"n_cols":2,"rows_kept":2,"cut":false,"hidden":false,"merged":[]}
["nom prenom","id utilisateur"]
["dursent johan",669504]

{"sheet":"Espion","index":5,"n_rows":8,"n_cols":13,"rows_kept":8,"cut":false,"hidden":false,"merged":[]}
["Début","2016-03-04T06:03:33","Administrateur","LÉANE"]
["2016-03-04T06:09:40","2016-03-04T07:02:51","Administrateur","LÉANE",null,null,null,null,null,null,null,null,"Administrateur"]
["2016-03-04T07:11:26","2016-03-04T07:13:37","Administrateur","LÉANE"]
["2016-03-04T10:05:12","2016-03-04T10:05:57","Administrateur","LÉANE"]
["2016-03-04T10:16:12","2016-03-04T10:27:23","Administrateur","LÉANE"]
["2016-03-04T17:33:44","2016-03-04T17:36:21","Administrateur","LÉANE"]
["2016-03-04T17:36:35","2016-03-04T17:36:43","Administrateur","LÉANE"]
["2016-03-04T17:36:50","2016-03-20T18:39:03","Administrateur","LÉANE"]

{"sheet":"Admin","index":6,"n_rows":44,"n_cols":17,"rows_kept":44,"cut":false,"hidden":false,"merged":[]}
["Nom utilisateur","Mot de passe","e-mail","Admin","espion","Données","Fiche Vierge","BD",null,null,"Accueil","Feuil-References",null,null,null,null,"Écriture sur les pages"]
["Administrateur",123456,"johan.dursent@westpharma.com","X","X","X","X","X",null,null,"X","X",null,null,null,null,"X"]
[]
[]
[]
[]
[]
[]
[]
[]
[]
[]
[]
[]
[]
[]
[]
[]
[]
[]
[]
[]
[]
[]
[]
[]
[]
[]
[]
[]
[]
[]
[]
[]
[]
[]
[null,null,null,null,null,null,null,null,null,null,"Droits","=DECALER(Admin!$D$2;;;NBVAL(Admin!$A$2:$A$20);NBVAL(Admin!$D$1:$Q$1))"]
[null,null,null,null,null,null,null,null,null,null,"feuille","=DECALER(Admin!$D$1;;;;NBVAL(Admin!$D$1:$Q$1))"]
[null,null,null,null,null,null,null,null,null,null,"motpasse","=DECALER(Admin!$B$2;;;NBVAL(Admin!$B$2:$B$20))"]
[null,null,null,null,null,null,null,null,null,null,"utilisateur","=DECALER(Admin!$A$2;;;NBVAL(Admin!$A$2:$A$20))"]
[null,null,null,null,null,null,null,null,null,null,"Zone1","=Feuil2!'D5':'Z66'"]
[null,null,null,null,null,null,null,null,null,null,"Zone2","=Feuil2!'D66':'Z128'"]
[null,null,null,null,null,null,null,null,null,null,"Zone3","=Feuil2!'D128':'Z190'"]
[null,null,null,null,null,null,null,null,null,null,"Zone4","=Feuil2!'D1191':'Z203'"]